Body Name,Service Area,Expenses Type,Invoice Payment Date,Transaction Number,Net Amount,Supplier Name
Manchester City Council,Adult Social Care,Agency staff provision,01.05.2015,5100790101,839.30,Semester Recruitment Ltd
Manchester City Council,Environment and Operations,Building Materials for direct delivery,01.05.2015,5100790180,"1,900.00",A P Broome Landscapes Ltd
Manchester City Council,Environment and Operations,Building Materials for direct delivery,01.05.2015,5100790190,"1,885.00",A P Broome Landscapes Ltd
Manchester City Council,Environment and Operations,Building Materials for direct delivery,01.05.2015,5100790177,"1,850.00",A P Broome Landscapes Ltd
Manchester City Council,Environment and Operations,Building Materials for direct delivery,01.05.2015,5100790182,"1,435.00",A P Broome Landscapes Ltd
Manchester City Council,Environment and Operations,Building Materials for direct delivery,01.05.2015,5100790184,"1,028.00",A P Broome Landscapes Ltd
Manchester City Council,Environment and Operations,Building Materials for direct delivery,01.05.2015,5100790187,850.00,A P Broome Landscapes Ltd
Manchester City Council,Environment and Operations,Building Materials for direct delivery,01.05.2015,5100790170,-850.00,A P Broome Landscapes Ltd
Manchester City Council,Environment and Operations,Building Materials for direct delivery,01.05.2015,5100790167,"-1,028.00",A P Broome Landscapes Ltd
Manchester City Council,Environment and Operations,Building Materials for direct delivery,01.05.2015,5100790164,"-1,435.00",A P Broome Landscapes Ltd
Manchester City Council,Environment and Operations,Building Materials for direct delivery,01.05.2015,5100790155,"-1,850.00",A P Broome Landscapes Ltd
Manchester City Council,Environment and Operations,Building Materials for direct delivery,01.05.2015,5100790173,"-1,885.00",A P Broome Landscapes Ltd
Manchester City Council,Environment and Operations,Building Materials for direct delivery,01.05.2015,5100790161,"-1,900.00",A P Broome Landscapes Ltd
Manchester City Council,Hospitality + Trading Services,Catering Provisions,01.05.2015,1904617002,"1,398.16",Brake Bros Foodservice Ltd
Manchester City Council,Hospitality + Trading Services,Catering Provisions,01.05.2015,1904617001,576.52,Brake Bros Foodservice Ltd
Manchester City Council,Hospitality + Trading Services,Catering Provisions,01.05.2015,1904616971,560.95,Brake Bros Foodservice Ltd
Manchester City Council,Hospitality + Trading Services,Catering Provisions,01.05.2015,1904616977,501.15,Brake Bros Foodservice Ltd
Manchester City Council,Hospitality + Trading Services,Catering Provisions,01.05.2015,1904616999,575.76,Chicken Joes Limited
Manchester City Council,Hospitality + Trading Services,Catering Provisions,01.05.2015,1904616974,559.86,Chicken Joes Limited
Manchester City Council,Hospitality + Trading Services,Compensation Payments,01.05.2015,1904610287,585.00,Department For Work & Pensions
Manchester City Council,Housing Revenue Account,Council Dwelling Adaptations,01.05.2015,5100790174,"1,006.95",Manchester Working Ltd
Manchester City Council,Environment and Operations,External repairs and maintenance for buildings,01.05.2015,5100790186,"1,842.00",A P Broome Landscapes Ltd
Manchester City Council,Environment and Operations,External repairs and maintenance for buildings,01.05.2015,5100790169,"-1,842.00",A P Broome Landscapes Ltd
Manchester City Council,Corporate Services,Fees,01.05.2015,1904616183,"1,650.00",Marston Group Limited
Manchester City Council,Corporate Services,Fees,01.05.2015,1904616155,"25,734.90",Equita Ltd
Manchester City Council,Corporate Services,Fees,01.05.2015,1904616178,"3,416.80",Equita Ltd
Manchester City Council,Corporate Services,Fees,01.05.2015,1904616176,949.75,Equita Ltd
Manchester City Council,Corporate Services,Fees,01.05.2015,1904615059,670.65,Bristow & Sutor
Manchester City Council,Corporate Services,Fees,01.05.2015,1904616176,-949.75,Equita Ltd
Manchester City Council,Corporate Services,Fees,01.05.2015,1904616178,"-3,416.80",Equita Ltd
Manchester City Council,Corporate Services,Fees,01.05.2015,1904616155,"-25,734.90",Equita Ltd
Manchester City Council,Corporate Services,Fees,01.05.2015,1904615059,-670.65,Bristow & Sutor
Manchester City Council,Adult Social Care,Gas,01.05.2015,5100790142,"12,757.08",Manchester School Services Limited
Manchester City Council,Hospitality + Trading Services,Goods purchased for resale in Council outlets,01.05.2015,5100790208,627.00,Thomas Group (Marble & Granite) Ltd
Manchester City Council,Adult Social Care,Grant and subscriptions awarded,01.05.2015,5100790199,"1,000.00",Parish of The Good Shepherd
Manchester City Council,Adult Social Care,Grant and subscriptions awarded,01.05.2015,1904615432,910.00,Redacted Personal Information
Manchester City Council,Manchester Leisure,Grounds Maintenance,01.05.2015,5100790153,"1,758.00",Manchester Youth Academy
Manchester City Council,Insurance Fund,Insurance,01.05.2015,1904610590,"3,000.00",Fentons Solicitors Part of
Manchester City Council,Insurance Fund,Insurance,01.05.2015,1904610604,"4,946.46",Department For Work & Pensions
Manchester City Council,Insurance Fund,Insurance,01.05.2015,1904610447,879.00,Silverbeck Rymer Solicitors
Manchester City Council,Insurance Fund,Insurance,01.05.2015,1904610449,720.00,Silverbeck Rymer Solicitors
Manchester City Council,Adult Social Care,Payments for services,01.05.2015,5100790185,"1,194.00",Faith in Families
Manchester City Council,Adult Social Care,Payments for services,01.05.2015,5100790189,750.00,Faith in Families
Manchester City Council,Manchester Leisure,Professional fees,01.05.2015,5100790081,955.50,Wigan Metropolitan Borough Council
Manchester City Council,Environment and Operations,Refuse Collection,01.05.2015,5100790118,"2,000.00",The Helping Hand Company Ltd
Manchester City Council,Environment and Operations,Refuse Collection,01.05.2015,5100790119,"2,000.00",The Helping Hand Company Ltd
Manchester City Council,Environment and Operations,Refuse Collection,01.05.2015,5100790115,"1,968.75",The Helping Hand Company Ltd
Manchester City Council,Environment and Operations,Refuse Collection,01.05.2015,5100790117,"1,968.75",The Helping Hand Company Ltd
Manchester City Council,Manchester Leisure,Rents,01.05.2015,5100790228,"5,430.07",Wythenshawe Forum Trust Ltd
Manchester City Council,Corporate Services,Training and Development,01.05.2015,5100790232,700.00,NNCEE
Manchester City Council,Corporate Services,Usable Capital Rec,01.05.2015,1904617309,"487,772.72",DCLG
Manchester City Council,Environment and Operations,Legal Fees,01.05.2015,1904601114,600.00,Redacted Personal Information
Manchester City Council,Chief Executives,Compensation Payments,01.05.2015,5100790202,"18,435.00",11KBW
Manchester City Council,Chief Executives,Compensation Payments,01.05.2015,5100790212,"7,000.00",11KBW
Manchester City Council,Chief Executives,Advertising,05.05.2015,5100789966,"1,795.50",Reed Business Information Ltd
Manchester City Council,Hospitality + Trading Services,Agency staff provision,05.05.2015,5100790428,671.20,Hays Personnel
Manchester City Council,Environment and Operations,Agency staff provision,05.05.2015,5100790438,860.30,Hays Personnel
Manchester City Council,Chief Executives,Agency staff provision,05.05.2015,5100790442,"4,029.05",Hays Personnel
Manchester City Council,Regeneration Finance,Agency staff provision,05.05.2015,5100790423,594.00,Hays Personnel
Manchester City Council,Environment and Operations,Building Materials for direct delivery,05.05.2015,5100790411,"1,006.80",Brentwood Moss Nurseries
Manchester City Council,Environment and Operations,Building Materials for direct delivery,05.05.2015,5100790407,679.30,Brentwood Moss Nurseries
Manchester City Council,Environment and Operations,Building Materials for direct delivery,05.05.2015,5100790217,997.85,Landscape Supply Company
Manchester City Council,Hospitality + Trading Services,Building Materials for direct delivery,05.05.2015,1904619395,646.40,Ecomix Concrete Ltd
Manchester City Council,Hospitality + Trading Services,Catering Provisions,05.05.2015,1904618391,748.52,Brake Bros Foodservice Ltd
Manchester City Council,Hospitality + Trading Services,Catering Provisions,05.05.2015,1904619400,"39,395.35",Ralph Livesey Ltd
Manchester City Council,Adult Social Care,Childrens Allowances,05.05.2015,1904610538,"1,261.70",Barnardos Manchester Leaving Care S
Manchester City Council,Adult Social Care,Childrens Allowances,05.05.2015,1904610445,694.80,Barnardos Manchester Leaving Care S
Manchester City Council,Adult Social Care,Compensation Payments,05.05.2015,1904610591,"13,750.00",Abney Garsden Mcdonald
Manchester City Council,Adult Social Care,Compensation Payments,05.05.2015,1904617303,"7,150.00",Abney Garsden Mcdonald
Manchester City Council,Adult Social Care,Compensation Payments,05.05.2015,1904616184,"6,050.00",Abney Garsden Mcdonald
Manchester City Council,Adult Social Care,Compensation Payments,05.05.2015,1904615075,"4,400.00",Abney Garsden Mcdonald
Manchester City Council,Adult Social Care,Compensation Payments,05.05.2015,1904610609,"1,100.00",Abney Garsden Mcdonald
Manchester City Council,Environment and Operations,Compensation Payments,05.05.2015,1904610600,617.35,Redacted Personal Information
Manchester City Council,Environment and Operations,Compensation Payments,05.05.2015,1904615040,"5,000.00",Slater & Gordon (UK) LLP
Manchester City Council,Chief Executives,Data Links,05.05.2015,1904601260,"26,104.60",BT PLC
Manchester City Council,Chief Executives,Data Links,05.05.2015,1904601266,"8,004.00",BT PLC
Manchester City Council,Adult Social Care,Equipment,05.05.2015,5100790178,"1,634.00",Deaf Alerter Plc
Manchester City Council,Environment and Operations,Equipment,05.05.2015,5100790285,590.00,Massey & Harris (Engrg) Ltd
Manchester City Council,Environment and Operations,Equipment,05.05.2015,5100790274,-590.00,Massey & Harris (Engrg) Ltd
Manchester City Council,Environment and Operations,External repairs and maintenance for buildings,05.05.2015,5100790281,"4,950.00",The Fountain Company Ltd
Manchester City Council,Environment and Operations,External repairs and maintenance for buildings,05.05.2015,5100790273,"-4,950.00",The Fountain Company Ltd
Manchester City Council,Hospitality + Trading Services,External repairs and maintenance for buildings,05.05.2015,5100790464,"3,557.01",Manchester Working Ltd
Manchester City Council,Corporate Services,External repairs and maintenance for buildings,05.05.2015,5100790215,"1,491.00",Manchester Working Ltd
Manchester City Council,Adult Social Care,Fixtures and Fitting,05.05.2015,1904610445,"1,349.45",Barnardos Manchester Leaving Care S
Manchester City Council,Adult Social Care,Fixtures and Fitting,05.05.2015,1904610538,600.00,Barnardos Manchester Leaving Care S
Manchester City Council,Chief Executives,Funeral and coroner related services,05.05.2015,1904617025,650.31,Redacted Personal Information
Manchester City Council,Chief Executives,Funeral and coroner related services,05.05.2015,1904617030,640.51,Redacted Personal Information
Manchester City Council,Chief Executives,Funeral and coroner related services,05.05.2015,1904617294,636.81,Redacted Personal Information
Manchester City Council,Chief Executives,Funeral and coroner related services,05.05.2015,1904617028,551.28,Redacted Personal Information
Manchester City Council,Chief Executives,Funeral and coroner related services,05.05.2015,1904617288,512.14,Redacted Personal Information
Manchester City Council,Corporate Services,Furniture,05.05.2015,5100790220,"1,612.00",Back Care Solutions Ltd
Manchester City Council,Corporate Services,Furniture,05.05.2015,5100790279,"-1,612.00",Back Care Solutions Ltd
Manchester City Council,Environment and Operations,I T Provision,05.05.2015,5100790394,"1,184.75",Experian  Ltd
Manchester City Council,Environment and Operations,I T Provision,05.05.2015,5100790393,873.10,Experian  Ltd
Manchester City Council,Manchester Leisure,I T Provision,05.05.2015,5100788979,"2,625.00",Civica UK Ltd
Manchester City Council,Manchester Leisure,I T Provision,05.05.2015,5100790307,"-2,625.00",Civica UK Ltd
Manchester City Council,Chief Executives,Infrastructure Fees,05.05.2015,5100790424,"1,600.00",Hays Personnel
Manchester City Council,Chief Executives,Infrastructure Fees,05.05.2015,5100790437,"1,496.00",Hays Personnel
Manchester City Council,Insurance Fund,Insurance,05.05.2015,1904610588,"2,323.00",Gorvins
Manchester City Council,Adult Social Care,Payments for services,05.05.2015,5100790264,"1,389.75",H.G. Care Services Ltd
Manchester City Council,Adult Social Care,Payments for services,05.05.2015,5100790284,"1,314.00",Action For Children
Manchester City Council,Adult Social Care,Payments for services,05.05.2015,5100790276,"9,900.00",Intercounty Adoption Centre
Manchester City Council,Hospitality + Trading Services,Payments to Sub-Contractors,05.05.2015,5100790500,"18,536.16",Clearway Drainage Systems Ltd
Manchester City Council,Hospitality + Trading Services,Payments to Sub-Contractors,05.05.2015,5100790508,"3,600.00",Clearway Drainage Systems Ltd
Manchester City Council,Hospitality + Trading Services,Payments to Sub-Contractors,05.05.2015,5100790513,"2,724.67",Clearway Drainage Systems Ltd
Manchester City Council,Hospitality + Trading Services,Payments to Sub-Contractors,05.05.2015,5100790507,"2,487.65",Clearway Drainage Systems Ltd
Manchester City Council,Hospitality + Trading Services,Payments to Sub-Contractors,05.05.2015,5100790510,797.50,Clearway Drainage Systems Ltd
Manchester City Council,Hospitality + Trading Services,Payments to Sub-Contractors,05.05.2015,5100790515,600.00,Clearway Drainage Systems Ltd
Manchester City Council,Hospitality + Trading Services,Payments to Sub-Contractors,05.05.2015,5100790520,600.00,Clearway Drainage Systems Ltd
Manchester City Council,Hospitality + Trading Services,Payments to Sub-Contractors,05.05.2015,5100790512,507.50,Clearway Drainage Systems Ltd
Manchester City Council,Adult Social Care,Personal needs of client,05.05.2015,1904610538,717.00,Barnardos Manchester Leaving Care S
Manchester City Council,Adult Social Care,PNOR-Other Amenities,05.05.2015,1904610445,"1,537.29",Barnardos Manchester Leaving Care S
Manchester City Council,Adult Social Care,PNOR-Other Amenities,05.05.2015,1904610538,984.35,Barnardos Manchester Leaving Care S
Manchester City Council,Manchester Leisure,Professional fees,05.05.2015,5100790329,"2,045.80",Clearview Event Services Limited
Manchester City Council,Manchester Leisure,Professional fees,05.05.2015,5100790331,"1,339.40",Clearview Event Services Limited
Manchester City Council,Manchester Leisure,Professional fees,05.05.2015,5100790330,"1,241.40",Clearview Event Services Limited
Manchester City Council,Adult Social Care,Professional fees,05.05.2015,5100790252,"4,029.00",Redacted Personal Information
Manchester City Council,Adult Social Care,Professional fees,05.05.2015,1904615992,700.00,Redacted Personal Information
Manchester City Council,Hospitality + Trading Services,Purchase of stores for re-distribution,05.05.2015,5100790246,989.60,Asd Metal Services
Manchester City Council,Adult Social Care,Rents,05.05.2015,5100790297,"25,967.55",B & A Properties
Manchester City Council,Adult Social Care,Supporting People Payments,05.05.2015,5100790239,"11,360.37",St.Vincent'S Housing Association
Manchester City Council,Adult Social Care,Supporting People Payments,05.05.2015,5100790239,817.89,St.Vincent'S Housing Association
Manchester City Council,Adult Social Care,Supporting People Payments,05.05.2015,5100790149,"2,313.00",Great Places Housing Association
Manchester City Council,Adult Social Care,Supporting People Payments,05.05.2015,5100790092,"4,597.00",Creative Support Limited
Manchester City Council,Adult Social Care,Supporting People Payments,05.05.2015,5100790082,"3,953.95",Eastlands Homes Partnership Ltd
Manchester City Council,Adult Social Care,Supporting People Payments,05.05.2015,5100790082,"2,220.35",Eastlands Homes Partnership Ltd
Manchester City Council,Adult Social Care,Supporting People Payments,05.05.2015,5100790233,"33,650.00",Young People Support Foundation Ltd
Manchester City Council,Adult Social Care,Supporting People Payments,05.05.2015,5100790233,"10,583.37",Young People Support Foundation Ltd
Manchester City Council,Adult Social Care,Supporting People Payments,05.05.2015,5100790298,851.18,The Edward Mayes Trust
Manchester City Council,Manchester Leisure,Third party payments relating to Voluntary Organisations,05.05.2015,5100790482,"1,500.00",Old Moat Youth Outreach Project
Manchester City Council,Adult Social Care,Third party payments relating to Voluntary Organisations,05.05.2015,5100790166,"5,606.50",Venture Arts Ltd
Manchester City Council,Adult Social Care,Third party payments relating to Voluntary Organisations,05.05.2015,5100790154,925.00,Moodswings Network
Manchester City Council,Adult Social Care,Training and Development,05.05.2015,1904610607,645.60,Redacted Personal Information
Manchester City Council,Adult Social Care,Training and Development,05.05.2015,1904610538,"4,340.70",Barnardos Manchester Leaving Care S
Manchester City Council,Adult Social Care,Training and Development,05.05.2015,1904610445,"3,485.25",Barnardos Manchester Leaving Care S
Manchester City Council,Manchester Leisure,Transport and Driver Hire,05.05.2015,5100790175,500.00,Momart Limited
Manchester City Council,Adult Social Care,Transport Coach Hire,05.05.2015,5100790070,"4,095.00",AAB Travel
Manchester City Council,Adult Social Care,Transport Coach Hire,05.05.2015,5100790068,"3,396.00",AAB Travel
Manchester City Council,Adult Social Care,Transport Coach Hire,05.05.2015,5100790299,"-3,396.00",AAB Travel
Manchester City Council,Adult Social Care,Transport Coach Hire,05.05.2015,5100790300,"-4,095.00",AAB Travel
Manchester City Council,Adult Social Care,Transport Coach Hire,05.05.2015,5100790258,"11,208.00",T/A Schools Direct
Manchester City Council,Adult Social Care,Transport Coach Hire,05.05.2015,5100790412,"5,268.60",Parkway Cabs & Cars
Manchester City Council,Adult Social Care,Transport Coach Hire,05.05.2015,5100790473,"-5,268.60",Parkway Cabs & Cars
Manchester City Council,Corporate Services,Transport Taxis,05.05.2015,1904619399,"3,134.00",Manchester Cars
Manchester City Council,Hospitality + Trading Services,Vehicle Hire Costs,05.05.2015,5100790461,"56,333.54",Manchester Van Hire Ltd
Manchester City Council,Hospitality + Trading Services,Vehicle Hire Costs,05.05.2015,5100790335,"2,596.00",Dawson Rentals Sweepers
Manchester City Council,Hospitality + Trading Services,Vehicle Hire Costs,05.05.2015,5100790386,"2,596.00",Dawson Rentals Sweepers
Manchester City Council,Hospitality + Trading Services,Vehicle Hire Costs,05.05.2015,5100790387,"2,134.00",Dawson Rentals Sweepers
Manchester City Council,Hospitality + Trading Services,Vehicle Hire Costs,05.05.2015,5100790390,"2,134.00",Dawson Rentals Sweepers
Manchester City Council,Hospitality + Trading Services,Vehicle Hire Costs,05.05.2015,5100790400,"2,134.00",Dawson Rentals Sweepers
Manchester City Council,Hospitality + Trading Services,Vehicle Hire Costs,05.05.2015,5100790401,"1,752.00",Dawson Rentals Sweepers
Manchester City Council,Childrens Services,Works and associated costs for Land and Buildings,05.05.2015,5100790441,660.00,Turner & Townsend Project
Manchester City Council,Childrens Services,Works and associated costs for Land and Buildings,05.05.2015,5100790433,-660.00,Turner & Townsend Project
Manchester City Council,Childrens Services,Works and associated costs for Land and Buildings,05.05.2015,5100790434,-660.00,Turner & Townsend Project
Manchester City Council,Environment and Operations,Legal Fees,05.05.2015,5100790147,675.00,Redacted Personal Information
Manchester City Council,Adult Social Care,Legal Fees,05.05.2015,1904616072,502.66,Redacted Personal Information
Manchester City Council,Environment and Operations,Legal Fees,05.05.2015,5100790479,500.00,Redacted Personal Information
Manchester City Council,Adult Social Care,Compensation Payments,05.05.2015,1904615080,"8,200.00",Abney Garsden Mcdonald
Manchester City Council,Adult Social Care,Compensation Payments,05.05.2015,1904617299,"5,800.00",Abney Garsden Mcdonald
Manchester City Council,Adult Social Care,Compensation Payments,05.05.2015,1904615066,"11,726.37",Beesley & Co Solicitors
Manchester City Council,Environment and Operations,Compensation Payments,05.05.2015,1904610611,770.00,Department For Work & Pensions
Manchester City Council,Environment and Operations,Compensation Payments,05.05.2015,1904615081,627.00,Department For Work & Pensions
Manchester City Council,Adult Social Care,Compensation Payments,05.05.2015,1904619451,"6,620.00",HMCTS (Manchester County Court)
Manchester City Council,Adult Social Care,Compensation Payments,05.05.2015,1904619451,"6,320.00",HMCTS (Manchester County Court)
Manchester City Council,Adult Social Care,Compensation Payments,05.05.2015,1904619451,"4,110.00",HMCTS (Manchester County Court)
Manchester City Council,Adult Social Care,Compensation Payments,05.05.2015,1904619451,"2,210.00",HMCTS (Manchester County Court)
Manchester City Council,Chief Executives,Compensation Payments,05.05.2015,1904619451,"8,485.00",HMCTS (Manchester County Court)
Manchester City Council,Chief Executives,Compensation Payments,05.05.2015,1904619454,"1,370.00",HMCTS (Manchester County Court)
Manchester City Council,Chief Executives,Compensation Payments,05.05.2015,1904619452,840.00,HMCTS (Manchester County Court)
Manchester City Council,Chief Executives,Compensation Payments,05.05.2015,1904619455,560.00,HMCTS (Manchester County Court)
Manchester City Council,Adult Social Care,Compensation Payments,05.05.2015,1904615072,580.00,Anglia DNA Services Ltd
Manchester City Council,Adult Social Care,Compensation Payments,05.05.2015,1904617300,"8,864.23",Weightmans LLP Solicitors
Manchester City Council,Adult Social Care,Agency staff provision,06.05.2015,5100790562,"3,666.67",Sanctuary Social Care
Manchester City Council,Adult Social Care,Agency staff provision,06.05.2015,5100790562,"3,625.02",Sanctuary Social Care
Manchester City Council,Adult Social Care,Agency staff provision,06.05.2015,5100790562,"2,036.44",Sanctuary Social Care
Manchester City Council,Adult Social Care,Agency staff provision,06.05.2015,5100790562,969.15,Sanctuary Social Care
Manchester City Council,Adult Social Care,Agency staff provision,06.05.2015,5100790562,969.15,Sanctuary Social Care
Manchester City Council,Adult Social Care,Agency staff provision,06.05.2015,5100790562,966.10,Sanctuary Social Care
Manchester City Council,Adult Social Care,Agency staff provision,06.05.2015,5100790562,551.85,Sanctuary Social Care
Manchester City Council,Chief Executives,Agency staff provision,06.05.2015,5100790562,"7,864.21",Sanctuary Social Care
Manchester City Council,Adult Social Care,Agency staff provision,06.05.2015,5100790577,685.79,Ashberry Recruitment Ltd
Manchester City Council,Chief Executives,Agency staff provision,06.05.2015,5100790577,"14,238.73",Ashberry Recruitment Ltd
Manchester City Council,Environment and Operations,Compensation Payments,06.05.2015,1904619441,"3,500.00",Pearson Hinchliffe Solicitors
Manchester City Council,Environment and Operations,Compensation Payments,06.05.2015,1904619407,"4,584.45",Irwin Mitchell Solicitors
Manchester City Council,Environment and Operations,Compensation Payments,06.05.2015,1904619436,"6,750.00",Redacted Personal Information
Manchester City Council,Environment and Operations,Compensation Payments,06.05.2015,1904616144,"3,576.00",Lester Aldridge LLP
Manchester City Council,Regeneration Finance,Consultants Fees,06.05.2015,5100790077,"15,375.00",Susan Woodward Creative Consultancy
Manchester City Council,Regeneration Finance,Consultants Fees,06.05.2015,5100790077,300.00,Susan Woodward Creative Consultancy
Manchester City Council,Manchester Leisure,Equipment,06.05.2015,5100787811,826.00,Instarmac Group Ltd
Manchester City Council,Corporate Services,Fees,06.05.2015,1904616306,"25,381.70",Rossendales Ltd
Manchester City Council,Corporate Services,Fees,06.05.2015,1904616300,946.29,Rossendales Ltd
Manchester City Council,Corporate Services,Fees,06.05.2015,1904616300,-946.29,Rossendales Ltd
Manchester City Council,Corporate Services,Fees,06.05.2015,1904616306,"-25,381.70",Rossendales Ltd
Manchester City Council,Adult Social Care,Foster Payments,06.05.2015,1904625325,774.20,Redacted Personal Information
Manchester City Council,Adult Social Care,Foster Payments,06.05.2015,1904625326,"1,130.76",Redacted Personal Information
Manchester City Council,Adult Social Care,Foster Payments,06.05.2015,1904625329,561.32,Redacted Personal Information
Manchester City Council,Adult Social Care,Foster Payments,06.05.2015,1904625328,"1,200.72",Redacted Personal Information
Manchester City Council,Adult Social Care,Foster Payments,06.05.2015,1904625327,507.72,Redacted Personal Information
Manchester City Council,Chief Executives,Funeral and coroner related services,06.05.2015,5100790586,580.80,Redacted Personal Information
Manchester City Council,Chief Executives,Funeral and coroner related services,06.05.2015,1904619457,897.00,Redacted Personal Information
Manchester City Council,Adult Social Care,Funeral and coroner related services,06.05.2015,5100790618,698.00,Funeral Prtnrs t/a Michael Kennedy
Manchester City Council,Regeneration Finance,Grant and subscriptions awarded,06.05.2015,5100790091,"1,060.00",Skills and Work Solutions Ltd
Manchester City Council,Regeneration Finance,Grant and subscriptions awarded,06.05.2015,5100790093,910.00,Skills and Work Solutions Ltd
Manchester City Council,Environment and Operations,Grant and subscriptions awarded,06.05.2015,1904619409,"1,500.00",The Mustard Tree
Manchester City Council,Chief Executives,Grant and subscriptions awarded,06.05.2015,1904610434,500.00,Reclaim
Manchester City Council,Regeneration Finance,Grant Payments,06.05.2015,5100790481,"22,017.00",Manchester Digital Laboratory
Manchester City Council,Hospitality + Trading Services,Hire of Equipment,06.05.2015,5100790616,562.00,Somerford Equipment Ltd
Manchester City Council,Hospitality + Trading Services,Hire of Machinery,06.05.2015,5100790544,660.00,GHL Liftrucks Ltd
Manchester City Council,Insurance Fund,Insurance,06.05.2015,1904619424,"3,901.90",Slater and Gordon (UK) LLP
Manchester City Council,Adult Social Care,Intermediate Care,06.05.2015,5100790582,"14,132.00",University Hospital of South Mcr
Manchester City Council,Adult Social Care,Internal Repairs and Maintenance for buildings,06.05.2015,1904617291,500.00,Happy Homes Uk Ltd
Manchester City Council,Hospitality + Trading Services,Internal Repairs and Maintenance for buildings,06.05.2015,5100790269,"1,516.73",Manchester Working Ltd
Manchester City Council,Adult Social Care,Internal Repairs and Maintenance for buildings,06.05.2015,1904617289,500.00,Madina Property Services Ltd
Manchester City Council,Chief Executives,Landline Telephone,06.05.2015,1904616317,"3,598.85",Vodafone (Ex C&W)
Manchester City Council,Chief Executives,Mobilephone Charges,06.05.2015,1904619402,"1,358.41",T-Mobile (UK) Ltd
Manchester City Council,Adult Social Care,Payments for services,06.05.2015,5100790565,"45,000.00",Social Care Services (Clayton) Ltd
Manchester City Council,Adult Social Care,Payments for services,06.05.2015,5100790565,500.00,Social Care Services (Clayton) Ltd
Manchester City Council,Regeneration Finance,Professional fees,06.05.2015,5100790077,"15,375.00",Susan Woodward Creative Consultancy
Manchester City Council,Regeneration Finance,Professional fees,06.05.2015,5100790077,300.00,Susan Woodward Creative Consultancy
Manchester City Council,Hospitality + Trading Services,Royalties Payable,06.05.2015,1904619446,"25,810.00",The Barlow R.C.High School
Manchester City Council,Hospitality + Trading Services,Royalties Payable,06.05.2015,1904619444,"30,813.00",Abraham Moss Community School
Manchester City Council,Hospitality + Trading Services,Royalties Payable,06.05.2015,1904619445,"1,854.00",Manchester Enterprise Academy
Manchester City Council,Hospitality + Trading Services,Royalties Payable,06.05.2015,1904619443,"3,219.00",Manchester Communication Academy
Manchester City Council,Hospitality + Trading Services,Royalties Payable,06.05.2015,1904619460,"60,770.00",Chorlton High School
Manchester City Council,Hospitality + Trading Services,Royalties Payable,06.05.2015,1904619442,"25,222.00",St Paul's Catholic High School (Aca
Manchester City Council,Adult Social Care,Supporting People Payments,06.05.2015,5100790415,881.81,Arawak Walton Housing Association
Manchester City Council,Adult Social Care,Supporting People Payments,06.05.2015,5100790415,577.92,Arawak Walton Housing Association
Manchester City Council,Adult Social Care,Supporting People Payments,06.05.2015,5100790415,557.88,Arawak Walton Housing Association
Manchester City Council,Adult Social Care,Third party payments relating to Voluntary Organisations,06.05.2015,5100790492,"7,585.74",Age Concern Manchester
Manchester City Council,Adult Social Care,Third party payments relating to Voluntary Organisations,06.05.2015,5100790636,"6,674.00",Man. Citizens Advice Bureaux
Manchester City Council,Adult Social Care,Third party payments relating to Voluntary Organisations,06.05.2015,5100790666,"-6,674.00",Man. Citizens Advice Bureaux
Manchester City Council,Adult Social Care,Third party payments relating to Voluntary Organisations,06.05.2015,5100790584,"2,700.00",Manchester Communication Academy
Manchester City Council,Adult Social Care,Third party payments to other Local Authorities,06.05.2015,5100790676,"3,055.25",Lancashire County Council
Manchester City Council,Adult Social Care,Third party payments to other Local Authorities,06.05.2015,5100790675,"2,045.60",Lancashire County Council
Manchester City Council,Chief Executives,Training and Development,06.05.2015,5100790626,"5,150.00",The College Of Law
Manchester City Council,Adult Social Care,Transport Taxis,06.05.2015,1904607303,580.00,Herefordshire Council
Manchester City Council,Childrens Services,Works and associated costs for Land and Buildings,06.05.2015,5100790504,557.00,One Education Ltd
Manchester City Council,Environment and Operations,Compensation Payments,06.05.2015,5100790518,"4,711.00",Addleshaw Goddard Solicitors
Manchester City Council,Environment and Operations,Compensation Payments,06.05.2015,1904616187,"2,876.00",Department For Work & Pensions
Manchester City Council,Environment and Operations,Compensation Payments,06.05.2015,1904619420,627.00,Department For Work & Pensions
Manchester City Council,Environment and Operations,Compensation Payments,06.05.2015,1904619421,627.00,Department For Work & Pensions
Manchester City Council,Environment and Operations,Compensation Payments,06.05.2015,1904617298,"1,602.00",Irwin Mitchell Solicitors
Manchester City Council,Adult Social Care,Compensation Payments,06.05.2015,5100784965,554.50,D A Languages Ltd
Manchester City Council,Environment and Operations,Compensation Payments,06.05.2015,1904619435,"6,082.52",GWS Solicitors
Manchester City Council,Adult Social Care,Compensation Payments,06.05.2015,1904615990,"18,000.00",Slater & Gordon (UK) LLP
Manchester City Council,Chief Executives,Advertising,07.05.2015,5100790736,"4,264.02",Trinity Mirror NW2 Ltd
Manchester City Council,Chief Executives,Advertising,07.05.2015,5100790736,"2,777.86",Trinity Mirror NW2 Ltd
Manchester City Council,Chief Executives,Advertising,07.05.2015,5100791005,"7,022.70",TES Global Ltd
Manchester City Council,Chief Executives,Advertising,07.05.2015,5100791003,"2,707.20",TES Global Ltd
Manchester City Council,Adult Social Care,Agency staff provision,07.05.2015,5100790798,"2,478.94",Bs Project Services Ltd T/A
Manchester City Council,Adult Social Care,Agency staff provision,07.05.2015,5100790798,"1,953.86",Bs Project Services Ltd T/A
Manchester City Council,Adult Social Care,Agency staff provision,07.05.2015,5100790798,696.78,Bs Project Services Ltd T/A
Manchester City Council,Chief Executives,Agency staff provision,07.05.2015,5100790798,"2,569.14",Bs Project Services Ltd T/A
Manchester City Council,Chief Executives,Agency staff provision,07.05.2015,5100790798,872.76,Bs Project Services Ltd T/A
Manchester City Council,Chief Executives,Agency staff provision,07.05.2015,5100790683,"1,859.46",SRA Cover Staff Ltd
Manchester City Council,Chief Executives,Agency staff provision,07.05.2015,5100790581,"2,723.00",Hudson Global Resources Ltd
Manchester City Council,Chief Executives,Agency staff provision,07.05.2015,5100790871,"2,388.19",Hudson Global Resources Ltd
Manchester City Council,Environment and Operations,Agency staff provision,07.05.2015,5100790685,"3,107.02",Resolve Personnel Ltd
Manchester City Council,Environment and Operations,Agency staff provision,07.05.2015,5100790685,"1,363.04",Resolve Personnel Ltd
Manchester City Council,Chief Executives,Agency staff provision,07.05.2015,5100790685,"7,864.38",Resolve Personnel Ltd
Manchester City Council,Adult Social Care,Bed & Breakfast Acc,07.05.2015,5100790788,"6,220.00",Redacted Personal Information
Manchester City Council,Adult Social Care,Bed & Breakfast Acc,07.05.2015,5100790806,"9,754.31",G & A Taylor Hotels Ltd
Manchester City Council,Hospitality + Trading Services,Building Materials for direct delivery,07.05.2015,5100790726,"2,816.00",Asd Metal Services
Manchester City Council,Hospitality + Trading Services,Building Materials for direct delivery,07.05.2015,5100790729,920.00,Asd Metal Services
Manchester City Council,Hospitality + Trading Services,Building Materials for direct delivery,07.05.2015,5100790690,965.53,Lafarge Tarmac Trading Ltd
Manchester City Council,Hospitality + Trading Services,Building Materials for direct delivery,07.05.2015,5100790057,604.98,Lafarge Tarmac Trading Ltd
Manchester City Council,Hospitality + Trading Services,Building Materials for direct delivery,07.05.2015,5100790727,616.00,Viewprint
Manchester City Council,Hospitality + Trading Services,Building Materials for direct delivery,07.05.2015,5100790727,616.00,Viewprint
Manchester City Council,Chief Executives,Building Works,07.05.2015,1700056563,"-4,929.12",Computerland Uk Ltd
Manchester City Council,Housing General Fund,Building Works,07.05.2015,1904624420,"3,264.00",Redacted Personal Information
Manchester City Council,Adult Social Care,Carer Support Payments ,07.05.2015,5100790717,"14,768.32",Independent Living Alliance
Manchester City Council,Hospitality + Trading Services,Catering Provisions,07.05.2015,1904625993,702.10,Pasta King (Uk) Ltd
Manchester City Council,Hospitality + Trading Services,Catering Provisions,07.05.2015,1904625716,"1,181.87",Brake Bros Foodservice Ltd
Manchester City Council,Hospitality + Trading Services,Catering Provisions,07.05.2015,1904625911,844.34,Brake Bros Foodservice Ltd
Manchester City Council,Hospitality + Trading Services,Catering Provisions,07.05.2015,1904625728,728.30,Brake Bros Foodservice Ltd
Manchester City Council,Hospitality + Trading Services,Catering Provisions,07.05.2015,1904626026,610.83,Brake Bros Foodservice Ltd
Manchester City Council,Hospitality + Trading Services,Catering Provisions,07.05.2015,1904625738,519.44,Brake Bros Foodservice Ltd
Manchester City Council,Hospitality + Trading Services,Catering Provisions,07.05.2015,1904625905,851.23,BRAMBLES FOODS LTD
Manchester City Council,Hospitality + Trading Services,Cleaning Equipment and Materials,07.05.2015,5100790358,509.70,Alliance Disposables Ltd
Manchester City Council,Environment and Operations,Compensation Payments,07.05.2015,1904616068,"3,450.00",Thompsons Solicitors
Manchester City Council,Hospitality + Trading Services,Compensation Payments,07.05.2015,1904624423,946.17,Silverdale Solicitors
Manchester City Council,Childrens Services,Construction Works,07.05.2015,5100790995,"-2,367.00",Amey Highways Lighting (Manchester)
Manchester City Council,Adult Social Care,Contract Cleaning External,07.05.2015,5100790865,826.62,Sidhil Ltd
Manchester City Council,Chief Executives,Data Links,07.05.2015,1904601259,"66,129.63",BT PLC
Manchester City Council,Chief Executives,Data Links,07.05.2015,1904601255,"14,496.80",BT PLC
Manchester City Council,Chief Executives,Data Links,07.05.2015,1904601254,"11,040.00",BT PLC
Manchester City Council,Chief Executives,Data Links,07.05.2015,1904601247,"7,800.00",BT PLC
Manchester City Council,Chief Executives,Data Links,07.05.2015,1904601257,"7,100.00",BT PLC
Manchester City Council,Environment and Operations,Equipment,07.05.2015,5100790594,"1,010.00",N. A. Brown Limited
Manchester City Council,Manchester Leisure,Equipment,07.05.2015,1904626900,860.46,Redacted Personal Information
Manchester City Council,Hospitality + Trading Services,External repairs and maintenance for buildings,07.05.2015,5100790754,"9,984.20",Manchester Working Ltd
Manchester City Council,Hospitality + Trading Services,External repairs and maintenance for buildings,07.05.2015,5100790755,"2,850.45",Manchester Working Ltd
Manchester City Council,Hospitality + Trading Services,External repairs and maintenance for buildings,07.05.2015,5100790773,"1,762.41",Manchester Working Ltd
Manchester City Council,Hospitality + Trading Services,External repairs and maintenance for buildings,07.05.2015,5100790732,"1,355.20",Manchester Working Ltd
Manchester City Council,Hospitality + Trading Services,External repairs and maintenance for buildings,07.05.2015,5100790753,986.92,Manchester Working Ltd
Manchester City Council,Adult Social Care,Extra Care Sheltd HP,07.05.2015,5100790880,"19,423.92",Homecare Support
Manchester City Council,Adult Social Care,Extra Care Sheltd HP,07.05.2015,5100790834,"23,966.81",Carewatch Care Service
Manchester City Council,Corporate Services,Fees,07.05.2015,1904624502,"13,061.25",Equita Ltd
Manchester City Council,Corporate Services,Fees,07.05.2015,1904624534,"3,011.10",Equita Ltd
Manchester City Council,Corporate Services,Fees,07.05.2015,1904617286,"36,161.75",Rossendales Ltd
Manchester City Council,Corporate Services,Fees,07.05.2015,1904624534,"-3,011.10",Equita Ltd
Manchester City Council,Corporate Services,Fees,07.05.2015,1904624502,"-13,061.25",Equita Ltd
Manchester City Council,Corporate Services,Fees,07.05.2015,1904617286,"-36,161.75",Rossendales Ltd
Manchester City Council,Adult Social Care,Furniture,07.05.2015,5100791161,"1,114.97",The Furnishing Service Ltd
Manchester City Council,Adult Social Care,Furniture,07.05.2015,5100791153,706.84,The Furnishing Service Ltd
Manchester City Council,Corporate Services,Furniture,07.05.2015,5100790994,858.00,Back Care Solutions Ltd
Manchester City Council,Corporate Services,Furniture,07.05.2015,5100790979,562.00,Back Care Solutions Ltd
Manchester City Council,Adult Social Care,Grant and subscriptions awarded,07.05.2015,5100790774,"3,860.00",The Salvation Army
Manchester City Council,Hospitality + Trading Services,Grant and subscriptions awarded,07.05.2015,5100790780,"3,908.00",Association For Public
Manchester City Council,Environment and Operations,Heating Oil,07.05.2015,1904625615,986.89,Emo Oil Ltd
Manchester City Council,Chief Executives,Hire of Equipment,07.05.2015,5100790930,623.00,Jigsaw Systems Limited
Manchester City Council,Corporate Services,I T Provision,07.05.2015,5100790494,"12,041.04",Computerland Uk Ltd
Manchester City Council,Corporate Services,I T Provision,07.05.2015,5100790496,500.32,Computerland Uk Ltd
Manchester City Council,Hospitality + Trading Services,Internal Repairs and Maintenance for buildings,07.05.2015,5100790988,685.78,Manchester Working Ltd
Manchester City Council,Hospitality + Trading Services,Internet access,07.05.2015,1904625680,995.00,SOIL ASSOC CT/INET
Manchester City Council,Chief Executives,Landline Telephone,07.05.2015,1904601258,"15,064.20",BT PLC
Manchester City Council,Manchester Leisure,Library Materials Acquisition,07.05.2015,1904624368,"1,500.00",Oclc (UK) LTD
Manchester City Council,Chief Executives,Mobilephone Charges,07.05.2015,1904619403,"47,226.88",T-Mobile (UK) Ltd
Manchester City Council,Corporate Services,Non Housing Rent Receipts,07.05.2015,1904615426,"1,666.25",Airport Parking & Hotels(M/cr) Ltd
Manchester City Council,Adult Social Care,Payments for services,07.05.2015,5100790942,"5,095.60",The Together Trust
Manchester City Council,Adult Social Care,Payments for services,07.05.2015,5100790968,"4,375.78",The Together Trust
Manchester City Council,Adult Social Care,Payments for services,07.05.2015,5100790969,"4,134.52",The Together Trust
Manchester City Council,Adult Social Care,Payments for services,07.05.2015,5100790970,"4,087.45",The Together Trust
Manchester City Council,Adult Social Care,Payments for services,07.05.2015,5100790938,"4,087.45",The Together Trust
Manchester City Council,Adult Social Care,Payments for services,07.05.2015,5100790944,"4,087.45",The Together Trust
Manchester City Council,Adult Social Care,Payments for services,07.05.2015,5100790948,"4,087.45",The Together Trust
Manchester City Council,Adult Social Care,Payments for services,07.05.2015,5100790949,"4,087.45",The Together Trust
Manchester City Council,Adult Social Care,Payments for services,07.05.2015,5100790952,"4,087.45",The Together Trust
Manchester City Council,Adult Social Care,Payments for services,07.05.2015,5100790954,"4,087.45",The Together Trust
Manchester City Council,Adult Social Care,Payments for services,07.05.2015,5100790893,"3,655.87",The Together Trust
Manchester City Council,Adult Social Care,Payments for services,07.05.2015,5100790931,"3,655.87",The Together Trust
Manchester City Council,Adult Social Care,Payments for services,07.05.2015,5100790940,"3,655.87",The Together Trust
Manchester City Council,Adult Social Care,Payments for services,07.05.2015,5100790943,"3,655.87",The Together Trust
Manchester City Council,Adult Social Care,Payments for services,07.05.2015,5100790951,"3,655.87",The Together Trust
Manchester City Council,Adult Social Care,Payments for services,07.05.2015,5100790941,"3,619.67",The Together Trust
Manchester City Council,Adult Social Care,Payments for services,07.05.2015,5100790967,"3,563.34",The Together Trust
Manchester City Council,Adult Social Care,Payments for services,07.05.2015,5100790964,"3,387.19",The Together Trust
Manchester City Council,Adult Social Care,Payments for services,07.05.2015,5100790965,"3,364.67",The Together Trust
Manchester City Council,Adult Social Care,Payments for services,07.05.2015,5100790959,"3,328.06",The Together Trust
Manchester City Council,Adult Social Care,Payments for services,07.05.2015,5100790890,"2,727.64",The Together Trust
Manchester City Council,Adult Social Care,Payments for services,07.05.2015,5100790936,"2,727.64",The Together Trust
Manchester City Council,Adult Social Care,Payments for services,07.05.2015,5100790961,"2,727.64",The Together Trust
Manchester City Council,Adult Social Care,Payments for services,07.05.2015,5100790962,"2,727.64",The Together Trust
Manchester City Council,Adult Social Care,Payments for services,07.05.2015,5100790935,"2,293.02",The Together Trust
Manchester City Council,Adult Social Care,Payments for services,07.05.2015,5100790955,"1,783.46",The Together Trust
Manchester City Council,Adult Social Care,Payments for services,07.05.2015,5100790970,"1,258.83",The Together Trust
Manchester City Council,Adult Social Care,Payments for services,07.05.2015,5100790946,"1,146.51",The Together Trust
Manchester City Council,Adult Social Care,Payments for services,07.05.2015,5100790781,"1,988.63",H.G. Care Services Ltd
Manchester City Council,Chief Executives,Payments to Sub-Contractors,07.05.2015,5100790932,"13,080.00",Jigsaw Systems Limited
Manchester City Council,Corporate Services,Payments to Sub-Contractors,07.05.2015,5100790993,599.00,Amey Highways Lighting (Manchester)
Manchester City Council,Corporate Services,Payments to Sub-Contractors,07.05.2015,5100790982,-599.00,Amey Highways Lighting (Manchester)
Manchester City Council,Hospitality + Trading Services,Payments to Sub-Contractors,07.05.2015,5100790863,"35,721.78",Rosgal Ltd
Manchester City Council,Chief Executives,Postage,07.05.2015,1904616283,"2,221.31",Royal Mail Group Plc
Manchester City Council,Corporate Services,Professional fees,07.05.2015,5100790319,500.00,Arboricultural Services Treework
Manchester City Council,Environment and Operations,Professional fees,07.05.2015,5100790840,"8,000.00",Northwards Housing Limited
Manchester City Council,Adult Social Care,Professional fees,07.05.2015,1904607185,650.00,Redacted Personal Information
Manchester City Council,Adult Social Care,Professional fees,07.05.2015,5100790985,"15,000.00",MySupportBroker CIC
Manchester City Council,Adult Social Care,Professional fees,07.05.2015,1904607311,625.16,Telfer & Associates
Manchester City Council,Adult Social Care,Professional fees,07.05.2015,1904607313,500.00,AFG Law
Manchester City Council,Chief Executives,Professional fees,07.05.2015,1904625670,594.00,CARNYX GROUP LTD
Manchester City Council,Regeneration Finance,Professional fees,07.05.2015,1904625332,"9,000.00",Future Cities Catapult Services Ltd
Manchester City Council,Hospitality + Trading Services,Purchase of stores for re-distribution,07.05.2015,5100790845,899.70,Encore Diamond (UK) Ltd
Manchester City Council,Adult Social Care,Rents,07.05.2015,5100790713,"2,718.24",Mosscare Housing Ltd
Manchester City Council,Adult Social Care,Rents,07.05.2015,5100790710,"1,621.88",Mosscare Housing Ltd
Manchester City Council,Adult Social Care,Rents,07.05.2015,5100790973,"11,812.06",Happy Homes Uk Ltd
Manchester City Council,Adult Social Care,Rents,07.05.2015,5100790802,"20,011.43",M & Q Properties Management Ltd
Manchester City Council,Regeneration Finance,Subsistence and Conference Expenses,07.05.2015,1904625634,896.00,Redacted Personal Information
Manchester City Council,Regeneration Finance,Subsistence and Conference Expenses,07.05.2015,1904625638,551.57,"HUAJING BUILDING CO., LTD"
Manchester City Council,Adult Social Care,Supporting People Payments,07.05.2015,5100790621,"10,867.50",Chapter 1
Manchester City Council,Adult Social Care,Supporting People Payments,07.05.2015,5100790789,"1,388.22",Salvation Army Housing Association
Manchester City Council,Adult Social Care,Supporting People Payments,07.05.2015,5100790743,"6,991.85",ACORN Recovery Projects
Manchester City Council,Adult Social Care,Supporting People Payments,07.05.2015,5100790749,"6,991.82",ACORN Recovery Projects
Manchester City Council,Adult Social Care,Third party payments relating to Voluntary Organisations,07.05.2015,5100790715,"8,413.00",The Shaw Centre
Manchester City Council,Adult Social Care,Third party payments relating to Voluntary Organisations,07.05.2015,5100790716,"5,983.33",The Shaw Centre
Manchester City Council,Childrens Services,Third party payments relating to Voluntary Organisations,07.05.2015,5100790661,"2,912.25",Wythenshawe Community Initiative
Manchester City Council,Childrens Services,Third party payments relating to Voluntary Organisations,07.05.2015,5100790668,"-2,376.00",Wythenshawe Community Initiative
Manchester City Council,Adult Social Care,Third party payments relating to Voluntary Organisations,07.05.2015,5100790792,"5,781.25",Black Health Agency
Manchester City Council,Adult Social Care,Third party payments relating to Voluntary Organisations,07.05.2015,5100790649,"2,395.00",Wai Yin Society
Manchester City Council,Adult Social Care,Third party payments relating to Voluntary Organisations,07.05.2015,5100788972,524.82,University Hospital of South Mcr
Manchester City Council,Adult Social Care,Third party payments relating to Voluntary Organisations,07.05.2015,5100790977,"5,312.50",Pure Innovations Ltd
Manchester City Council,Adult Social Care,Third party payments relating to Voluntary Organisations,07.05.2015,5100790978,"5,312.50",Pure Innovations Ltd
Manchester City Council,Adult Social Care,Third party payments relating to Voluntary Organisations,07.05.2015,5100790677,"8,158.00",Greater Manchester Immigration Aid
Manchester City Council,Adult Social Care,Third party payments relating to Voluntary Organisations,07.05.2015,5100790674,"88,750.00",Man. Citizens Advice Bureaux
Manchester City Council,Adult Social Care,Third party payments relating to Voluntary Organisations,07.05.2015,5100790667,"6,666.00",Man. Citizens Advice Bureaux
Manchester City Council,Adult Social Care,Third party payments relating to Voluntary Organisations,07.05.2015,5100790768,"17,474.00",Breakthrough Uk Ltd
Manchester City Council,Adult Social Care,Third party payments to Health Authority,07.05.2015,5100784948,"159,172.00",The Pennine Acute Hospital Nhs Trus
Manchester City Council,Adult Social Care,Transport Coach Hire,07.05.2015,5100790842,"2,200.00",G.M Travel
Manchester City Council,Adult Social Care,Transport Coach Hire,07.05.2015,5100790514,"2,178.00",Billys Buses
Manchester City Council,Adult Social Care,Transport Coach Hire,07.05.2015,5100790521,"1,485.00",Billys Buses
Manchester City Council,Adult Social Care,Transport Coach Hire,07.05.2015,5100790786,"1,152.00",Mike Davies Transport
Manchester City Council,Chief Executives,Vehicle Plant Furniture and Equipment,07.05.2015,5100791072,"4,929.12",Computerland Uk Ltd
Manchester City Council,Hospitality + Trading Services,Legal Fees,07.05.2015,1904619426,"1,000.00",Redacted Personal Information
Manchester City Council,Adult Social Care,Legal Fees,07.05.2015,5100790869,500.00,Redacted Personal Information
Manchester City Council,Regeneration Finance,Compensation Payments,07.05.2015,5100790974,"12,144.25",Addleshaw Goddard Solicitors
Manchester City Council,Regeneration Finance,Compensation Payments,07.05.2015,5100790975,"8,664.00",Addleshaw Goddard Solicitors
Manchester City Council,Corporate Services,Compensation Payments,07.05.2015,1904625661,"3,687.00",HMCTS (Manchester)
Manchester City Council,Adult Social Care,Compensation Payments,07.05.2015,1904619440,829.00,Department For Work & Pensions
Manchester City Council,Chief Executives,Compensation Payments,07.05.2015,5100790696,700.00,Redacted Personal Information
Manchester City Council,Environment and Operations,Compensation Payments,07.05.2015,1904616068,"2,544.50",Thompsons Solicitors
Manchester City Council,Adult Social Care,Compensation Payments,07.05.2015,1904616094,770.00,Redacted Personal Information
Manchester City Council,Adult Social Care,Compensation Payments,07.05.2015,1904624417,"2,900.00",WE Solicitors
Manchester City Council,Adult Social Care,Compensation Payments,07.05.2015,1904624418,"2,139.00",WE Solicitors LLP
Manchester City Council,Adult Social Care,Agency staff provision,08.05.2015,5100790895,968.45,Semester Recruitment Ltd
Manchester City Council,Adult Social Care,Agency staff provision,08.05.2015,5100790902,840.00,Semester Recruitment Ltd
Manchester City Council,Adult Social Care,Agency staff provision,08.05.2015,5100790899,671.44,Semester Recruitment Ltd
Manchester City Council,Adult Social Care,Agency staff provision,08.05.2015,5100790897,509.74,Semester Recruitment Ltd
Manchester City Council,Chief Executives,Agency staff provision,08.05.2015,5100791325,"19,185.47",SRA Cover Staff Ltd
Manchester City Council,Adult Social Care,Agency staff provision,08.05.2015,5100791044,804.30,Ashberry Recruitment Ltd
Manchester City Council,Hospitality + Trading Services,ClothsUniformLaundry,08.05.2015,5100790122,"5,422.00",Arco Group Ltd
Manchester City Council,Environment and Operations,Equipment,08.05.2015,5100791018,"1,092.46",Amey Highways Lighting (Manchester)
Manchester City Council,Environment and Operations,Equipment,08.05.2015,5100791015,"-1,092.46",Amey Highways Lighting (Manchester)
Manchester City Council,Hospitality + Trading Services,External repairs and maintenance for buildings,08.05.2015,5100791083,"16,992.74",Manchester Working Ltd
Manchester City Council,Hospitality + Trading Services,External repairs and maintenance for buildings,08.05.2015,5100791254,"16,071.85",Manchester Working Ltd
Manchester City Council,Hospitality + Trading Services,External repairs and maintenance for buildings,08.05.2015,5100791076,"13,063.47",Manchester Working Ltd
Manchester City Council,Hospitality + Trading Services,External repairs and maintenance for buildings,08.05.2015,5100791237,"8,269.01",Manchester Working Ltd
Manchester City Council,Hospitality + Trading Services,External repairs and maintenance for buildings,08.05.2015,5100791081,"7,425.08",Manchester Working Ltd
Manchester City Council,Hospitality + Trading Services,External repairs and maintenance for buildings,08.05.2015,5100791074,"6,513.75",Manchester Working Ltd
Manchester City Council,Hospitality + Trading Services,External repairs and maintenance for buildings,08.05.2015,5100791230,"6,322.13",Manchester Working Ltd
Manchester City Council,Hospitality + Trading Services,External repairs and maintenance for buildings,08.05.2015,5100791084,"6,064.74",Manchester Working Ltd
Manchester City Council,Hospitality + Trading Services,External repairs and maintenance for buildings,08.05.2015,5100791086,"3,004.93",Manchester Working Ltd
Manchester City Council,Hospitality + Trading Services,External repairs and maintenance for buildings,08.05.2015,5100791236,"2,095.34",Manchester Working Ltd
Manchester City Council,Hospitality + Trading Services,External repairs and maintenance for buildings,08.05.2015,5100791245,"1,521.92",Manchester Working Ltd
Manchester City Council,Hospitality + Trading Services,External repairs and maintenance for buildings,08.05.2015,5100791252,"1,401.61",Manchester Working Ltd
Manchester City Council,Hospitality + Trading Services,External repairs and maintenance for buildings,08.05.2015,5100791089,"1,029.21",Manchester Working Ltd
Manchester City Council,Corporate Services,External repairs and maintenance for buildings,08.05.2015,5100791111,-585.00,Manchester Working Ltd
Manchester City Council,Adult Social Care,Extra Care Sheltd HP,08.05.2015,5100791085,"20,582.24",Carewest Limited
Manchester City Council,Corporate Services,Grant and subscriptions awarded,08.05.2015,5100791250,709.00,BCIS
Manchester City Council,Adult Social Care,Grant and subscriptions awarded,08.05.2015,5100791193,"4,542.61",The Fostering Network
Manchester City Council,Adult Social Care,Grant and subscriptions awarded,08.05.2015,5100791104,867.50,Greater Manchester Police Sports &
Manchester City Council,Adult Social Care,Grant and subscriptions awarded,08.05.2015,5100791103,"22,500.00",The Booth Centre
Manchester City Council,Adult Social Care,Grant and subscriptions awarded,08.05.2015,5100791107,"18,614.30",The Booth Centre
Manchester City Council,Adult Social Care,Grant and subscriptions awarded,08.05.2015,5100791106,"1,251.10",The Booth Centre
Manchester City Council,Manchester Leisure,Grant Payments,08.05.2015,5100791197,"4,500.00",Comma Press
Manchester City Council,Chief Executives,Hire of Equipment,08.05.2015,5100791098,"68,679.53",Xerox (Uk) Ltd
Manchester City Council,Chief Executives,Hire of Equipment,08.05.2015,5100791095,"44,425.58",Xerox (Uk) Ltd
Manchester City Council,Chief Executives,Hire of Equipment,08.05.2015,5100791096,"8,550.65",Xerox (Uk) Ltd
Manchester City Council,Chief Executives,Hire of Equipment,08.05.2015,5100791105,"1,592.55",Xerox (Uk) Ltd
Manchester City Council,Hospitality + Trading Services,Hire of Machinery,08.05.2015,5100791032,"1,038.50",R & M Developments Ltd
Manchester City Council,Hospitality + Trading Services,Hire of Machinery,08.05.2015,5100791027,"1,038.50",R & M Developments Ltd
Manchester City Council,Hospitality + Trading Services,Hire of Machinery,08.05.2015,5100791031,"1,012.50",R & M Developments Ltd
Manchester City Council,Hospitality + Trading Services,Hire of Machinery,08.05.2015,5100791117,"2,623.08",Gibsons Garden Machinery Limited
Manchester City Council,Hospitality + Trading Services,Hire of Machinery,08.05.2015,5100791036,"1,980.00",Gibsons Garden Machinery Limited
Manchester City Council,Corporate Services,Internal Repairs and Maintenance for buildings,08.05.2015,5100790767,"7,500.00",Manchester Working Ltd
Manchester City Council,Manchester Leisure,Landline Telephone,08.05.2015,1904627431,"1,742.50",BT PLC
Manchester City Council,Manchester Leisure,Landline Telephone,08.05.2015,1904627431,"1,710.52",BT PLC
Manchester City Council,Manchester Leisure,Landline Telephone,08.05.2015,1904627431,845.25,BT PLC
Manchester City Council,Manchester Leisure,Landline Telephone,08.05.2015,1904627431,741.76,BT PLC
Manchester City Council,Manchester Leisure,Landline Telephone,08.05.2015,1904627431,727.38,BT PLC
Manchester City Council,Manchester Leisure,Landline Telephone,08.05.2015,1904627431,656.92,BT PLC
Manchester City Council,Hospitality + Trading Services,Landline Telephone,08.05.2015,1904627431,"2,279.84",BT PLC
Manchester City Council,Hospitality + Trading Services,Landline Telephone,08.05.2015,1904627431,"1,220.32",BT PLC
Manchester City Council,Hospitality + Trading Services,Landline Telephone,08.05.2015,1904627431,660.53,BT PLC
Manchester City Council,Hospitality + Trading Services,Landline Telephone,08.05.2015,1904627431,581.26,BT PLC
Manchester City Council,Environment and Operations,Landline Telephone,08.05.2015,1904627431,565.80,BT PLC
Manchester City Council,Environment and Operations,Landline Telephone,08.05.2015,1904627431,555.60,BT PLC
Manchester City Council,Adult Social Care,Landline Telephone,08.05.2015,1904627431,"2,268.66",BT PLC
Manchester City Council,Adult Social Care,Landline Telephone,08.05.2015,1904627431,"1,847.28",BT PLC
Manchester City Council,Adult Social Care,Landline Telephone,08.05.2015,1904627431,"1,641.08",BT PLC
Manchester City Council,Adult Social Care,Landline Telephone,08.05.2015,1904627431,"1,216.66",BT PLC
Manchester City Council,Adult Social Care,Landline Telephone,08.05.2015,1904627431,875.93,BT PLC
Manchester City Council,Adult Social Care,Landline Telephone,08.05.2015,1904627431,810.96,BT PLC
Manchester City Council,Adult Social Care,Landline Telephone,08.05.2015,1904627431,745.94,BT PLC
Manchester City Council,Adult Social Care,Landline Telephone,08.05.2015,1904627431,688.46,BT PLC
Manchester City Council,Adult Social Care,Landline Telephone,08.05.2015,1904627431,657.65,BT PLC
Manchester City Council,Adult Social Care,Landline Telephone,08.05.2015,1904627431,622.20,BT PLC
Manchester City Council,Adult Social Care,Landline Telephone,08.05.2015,1904627431,589.29,BT PLC
Manchester City Council,Corporate Services,Landline Telephone,08.05.2015,1904627431,594.68,BT PLC
Manchester City Council,Chief Executives,Landline Telephone,08.05.2015,1904627431,"142,979.41",BT PLC
Manchester City Council,Chief Executives,Landline Telephone,08.05.2015,1904627431,"2,116.43",BT PLC
Manchester City Council,Chief Executives,Landline Telephone,08.05.2015,1904627431,619.93,BT PLC
Manchester City Council,Regeneration Finance,Landline Telephone,08.05.2015,1904627431,546.40,BT PLC
Manchester City Council,Housing Revenue Account,Licences Purchase,08.05.2015,5100791217,525.00,Ncc Services Limited
Manchester City Council,Chief Executives,Machinery and equipment repairs,08.05.2015,5100790360,508.25,Neopost Ltd (Consumables)
Manchester City Council,Chief Executives,Machinery and equipment repairs,08.05.2015,5100790362,"1,620.68",Neopost Finance Ltd (Rental)
Manchester City Council,Adult Social Care,Payments for services,08.05.2015,5100791046,750.00,Action For Children
Manchester City Council,Chief Executives,Payments to Sub-Contractors,08.05.2015,5100791335,754.00,Meltwater (UK) Ltd
Manchester City Council,Adult Social Care,Personal needs of client,08.05.2015,5100791439,"1,169.00",Aidservice Ltd
Manchester City Council,Adult Social Care,Personal needs of client,08.05.2015,5100791438,"1,040.00",Aidservice Ltd
Manchester City Council,Environment and Operations,Personal needs of client,08.05.2015,5100791228,"2,000.00",Hemingways Marketing Services Ltd
Manchester City Council,Adult Social Care,Postage,08.05.2015,5100790385,518.37,Neopost Finance Ltd (Rental)
Manchester City Council,Environment and Operations,Private Finance and Public Private partnership initiatives,08.05.2015,5100791097,"616,945.03",Amey Highways Lighting (Manchester)
Manchester City Council,Adult Social Care,Professional fees,08.05.2015,5100791082,"4,200.00",Action First iPeople Ltd
Manchester City Council,Adult Social Care,Professional fees,08.05.2015,5100791026,"5,135.00",Manchester Metropolitan University
Manchester City Council,Corporate Services,Professional fees,08.05.2015,5100790227,"2,859.36",Aecom Infrastructure & Environment
Manchester City Council,Corporate Services,Professional fees,08.05.2015,5100790309,"1,300.00",Hoare Lea Fire Engineering
Manchester City Council,Environment and Operations,Refuse Collection,08.05.2015,5100791092,"11,507.76",Enterprise Manchester DOMESTIC
Manchester City Council,Environment and Operations,Refuse Collection,08.05.2015,5100791092,925.76,Enterprise Manchester DOMESTIC
Manchester City Council,Environment and Operations,Refuse Collection,08.05.2015,5100791073,"-12,433.52",Enterprise Manchester DOMESTIC
Manchester City Council,Manchester Leisure,Rents,08.05.2015,5100791211,"35,000.00",The Manchester College
Manchester City Council,Adult Social Care,Storage Costs,08.05.2015,5100791213,"1,559.37",Iron Mountain
Manchester City Council,Adult Social Care,Storage Costs,08.05.2015,5100791235,766.50,Iron Mountain
Manchester City Council,Adult Social Care,Supported Accommodation,08.05.2015,5100791075,850.00,Access to Care Ltd
Manchester City Council,Adult Social Care,Supporting People Payments,08.05.2015,5100790854,"1,392.00",Willow Park Housing Trust
Manchester City Council,Adult Social Care,Supporting People Payments,08.05.2015,5100791028,"1,255.50",Anchor Trust
Manchester City Council,Adult Social Care,Supporting People Payments,08.05.2015,5100791028,930.03,Anchor Trust
Manchester City Council,Adult Social Care,Supporting People Payments,08.05.2015,5100790884,"4,158.49",ACORN Recovery Projects
Manchester City Council,Adult Social Care,Supporting People Payments,08.05.2015,5100790885,"-4,158.49",ACORN Recovery Projects
Manchester City Council,Adult Social Care,Supporting People Payments,08.05.2015,5100790891,"3,413.79",Stockport Learning Disability
Manchester City Council,Adult Social Care,Supporting People Payments,08.05.2015,5100791066,851.13,The Edward Mayes Trust
Manchester City Council,Adult Social Care,Supporting People Payments,08.05.2015,5100790856,791.14,Parkway Green Housing Trust
Manchester City Council,Adult Social Care,Supporting People Payments,08.05.2015,5100791059,691.36,City South Manchester Housing Trust
Manchester City Council,Adult Social Care,Third party payments relating to Voluntary Organisations,08.05.2015,5100790990,"37,971.25",Gaddum Centre
Manchester City Council,Adult Social Care,Third party payments relating to Voluntary Organisations,08.05.2015,5100790859,"2,188.00",Neesa Well Women Drop-In Project
Manchester City Council,Adult Social Care,Third party payments relating to Voluntary Organisations,08.05.2015,5100791275,"2,345.25",Manchester Bangladeshi Womens Organ
Manchester City Council,Adult Social Care,Third party payments relating to Voluntary Organisations,08.05.2015,5100791063,"-110,505.00",Central Manchester University Hosp
Manchester City Council,Adult Social Care,Third party payments relating to Voluntary Organisations,08.05.2015,5100791052,"3,009.00",Talbot/Himmat Support Centre
Manchester City Council,Adult Social Care,Third party payments relating to Voluntary Organisations,08.05.2015,5100791055,"3,009.00",Talbot/Himmat Support Centre
Manchester City Council,Adult Social Care,Training and Development,08.05.2015,5100790308,543.00,Trinity College London
Manchester City Council,Adult Social Care,Transport Coach Hire,08.05.2015,5100790456,"3,058.00",Saltax Ltd
Manchester City Council,Chief Executives,Travel,08.05.2015,5100790742,550.00,Transport for Greater Manchester
Manchester City Council,Hospitality + Trading Services,Vehicle Hire Costs,08.05.2015,5100790337,"9,537.60",Specialist Vehicle rental
Manchester City Council,Hospitality + Trading Services,Vehicle Hire Costs,08.05.2015,5100791196,"2,433.34",Dawson Rentals Sweepers
Manchester City Council,Hospitality + Trading Services,Vehicle Hire Costs,08.05.2015,5100791198,"1,781.55",Dawson Rentals Sweepers
Manchester City Council,Hospitality + Trading Services,Vehicle Repairs,08.05.2015,5100791229,752.00,Advanced Vehicle Technicians Ltd
Manchester City Council,Chief Executives,Works and associated costs for Land and Buildings,08.05.2015,5100791045,"191,315.10",Southside Regeneration Ltd
Manchester City Council,Environment and Operations,Compensation Payments,08.05.2015,1904625625,"1,566.00",Department For Work & Pensions
Manchester City Council,Adult Social Care,Compensation Payments,08.05.2015,1904626894,"9,500.00",Keoghs Nicholls Lindsell & Harris
Manchester City Council,Chief Executives,Advertising,11.05.2015,5100790966,"5,096.38",TES Global Ltd
Manchester City Council,Adult Social Care,Agency staff provision,11.05.2015,5100790556,"2,408.00",Capita  Resourcing Ltd
Manchester City Council,Adult Social Care,Agency staff provision,11.05.2015,5100790556,949.90,Capita  Resourcing Ltd
Manchester City Council,Chief Executives,Agency staff provision,11.05.2015,5100790556,"19,088.82",Capita  Resourcing Ltd
Manchester City Council,Chief Executives,Agency staff provision,11.05.2015,5100790551,"1,866.80",Search Consultancy Ltd
Manchester City Council,Chief Executives,Agency staff provision,11.05.2015,5100791527,860.00,Hays Personnel
Manchester City Council,Adult Social Care,Agency staff provision,11.05.2015,5100790553,"56,303.00",Penna PLC
Manchester City Council,Hospitality + Trading Services,Building Maintenance,11.05.2015,5100791365,"1,179.36",Lafarge Tarmac Trading Ltd
Manchester City Council,Hospitality + Trading Services,Building Maintenance,11.05.2015,5100791385,593.32,Lafarge Tarmac Trading Ltd
Manchester City Council,Hospitality + Trading Services,Building Maintenance,11.05.2015,5100791386,508.56,Lafarge Tarmac Trading Ltd
Manchester City Council,Hospitality + Trading Services,Building Maintenance,11.05.2015,5100791387,508.56,Lafarge Tarmac Trading Ltd
Manchester City Council,Environment and Operations,Building Materials for direct delivery,11.05.2015,5100790352,"1,472.00",Egan Reid Stationery Co Ltd
Manchester City Council,Adult Social Care,Building Materials for direct delivery,11.05.2015,5100790449,"1,200.00",Skills and Work Solutions Ltd
Manchester City Council,Hospitality + Trading Services,Building Materials for direct delivery,11.05.2015,1904628913,808.00,Ecomix Concrete Ltd
Manchester City Council,Environment and Operations,Building Materials for direct delivery,11.05.2015,5100790868,"5,135.36",Scrutiny Cleaning Services
Manchester City Council,Childrens Services,Building Works,11.05.2015,5100790399,624.29,Capita IT Services (BSF) Limited
Manchester City Council,Childrens Services,Building Works,11.05.2015,5100790396,515.38,Capita IT Services (BSF) Limited
Manchester City Council,Chief Executives,Building Works,11.05.2015,5100790141,"20,796.00",Euprotec
Manchester City Council,Chief Executives,Building Works,11.05.2015,5100790848,"106,867.00",Smartlife Ltd
Manchester City Council,Chief Executives,Building Works,11.05.2015,5100791354,"32,655.00",Swab Tech Ltd
Manchester City Council,Manchester Leisure,CAMC/Not assigned,11.05.2015,5100790695,"1,456.38",Museums Association
Manchester City Council,Environment and Operations,Cleaning Equipment and Materials,11.05.2015,5100790266,"1,992.00",Broxap Ltd
Manchester City Council,Environment and Operations,Construction Works,11.05.2015,5100790143,"10,210.86",Bt Repayments And Claims Group
Manchester City Council,Environment and Operations,Construction Works,11.05.2015,5100790784,"27,491.75",GMCA
Manchester City Council,Manchester Leisure,Contract Cleaning External,11.05.2015,5100790853,"1,048.00",William G.Search Ltd
Manchester City Council,Environment and Operations,Contract Cleaning External,11.05.2015,5100791401,"1,081.25",Osborne Richardson
Manchester City Council,Environment and Operations,Contract Cleaning External,11.05.2015,5100791415,"1,038.00",Osborne Richardson
Manchester City Council,Environment and Operations,Contract Cleaning External,11.05.2015,5100791440,"1,024.75",Osborne Richardson
Manchester City Council,Environment and Operations,Contract Cleaning External,11.05.2015,5100791447,994.75,Osborne Richardson
Manchester City Council,Environment and Operations,Contract Cleaning External,11.05.2015,5100791445,953.25,Osborne Richardson
Manchester City Council,Environment and Operations,Contract Cleaning External,11.05.2015,5100791419,821.75,Osborne Richardson
Manchester City Council,Environment and Operations,Contract Cleaning External,11.05.2015,5100791441,778.50,Osborne Richardson
Manchester City Council,Environment and Operations,Contract Cleaning External,11.05.2015,5100791370,750.25,Osborne Richardson
Manchester City Council,Environment and Operations,Contract Cleaning External,11.05.2015,5100791382,648.75,Osborne Richardson
Manchester City Council,Environment and Operations,Contract Cleaning External,11.05.2015,5100791434,648.75,Osborne Richardson
Manchester City Council,Environment and Operations,Contract Cleaning External,11.05.2015,5100791431,605.50,Osborne Richardson
Manchester City Council,Corporate Services,Contract Cleaning External,11.05.2015,5100790216,807.52,M & M Cleaning Services Ltd
Manchester City Council,Hospitality + Trading Services,Courier Costs,11.05.2015,5100791519,747.16,Scalamander Business Services Ltd
Manchester City Council,Adult Social Care,Equipment,11.05.2015,5100788948,"1,037.50",Tunstall Healthcare (UK) Ltd
Manchester City Council,Regeneration Finance,Equipment,11.05.2015,5100791355,"18,990.00",Footprint Solutions Ltd
Manchester City Council,Adult Social Care,Equipment,11.05.2015,5100791258,690.40,Drive Medical Limited
Manchester City Council,Hospitality + Trading Services,Equipment,11.05.2015,5100791054,"7,455.00",W.V.Howe Ltd
Manchester City Council,Manchester Leisure,Equipment,11.05.2015,5100790097,800.00,Elucidation (2000) Ltd t/a KSLD
Manchester City Council,Corporate Services,Fees,11.05.2015,5100790432,615.00,Pannone Corporate LLP
Manchester City Council,Adult Social Care,Furniture,11.05.2015,5100791515,782.59,The Furnishing Service Ltd
Manchester City Council,Adult Social Care,Furniture,11.05.2015,5100791511,566.29,The Furnishing Service Ltd
Manchester City Council,Manchester Leisure,Grant and subscriptions awarded,11.05.2015,5100790303,"2,250.00",The Bridgewater Hall
Manchester City Council,Manchester Leisure,Grant and subscriptions awarded,11.05.2015,5100791013,"2,250.00",The Bridgewater Hall
Manchester City Council,Manchester Leisure,Grant and subscriptions awarded,11.05.2015,5100791012,"-2,250.00",The Bridgewater Hall
Manchester City Council,Environment and Operations,Grant and subscriptions awarded,11.05.2015,5100791470,602.00,College of Mediators
Manchester City Council,Corporate Services,Grounds Maintenance,11.05.2015,5100791262,585.00,Countrywide Grounds Maintenance Ltd
Manchester City Council,Chief Executives,Hire of Equipment,11.05.2015,5100791188,"1,234.68",Universal Live
Manchester City Council,Chief Executives,Hire of Equipment,11.05.2015,5100791189,518.00,Universal Live
Manchester City Council,Hospitality + Trading Services,Hire of Machinery,11.05.2015,5100790058,"30,276.40",Gibsons Garden Machinery Limited
Manchester City Council,Hospitality + Trading Services,Hire of Machinery,11.05.2015,5100790054,"4,966.48",Gibsons Garden Machinery Limited
Manchester City Council,Hospitality + Trading Services,Hire of Machinery,11.05.2015,5100790065,"4,880.58",Gibsons Garden Machinery Limited
Manchester City Council,Hospitality + Trading Services,Hire of Machinery,11.05.2015,5100790062,"2,997.37",Gibsons Garden Machinery Limited
Manchester City Council,Hospitality + Trading Services,Hire of Machinery,11.05.2015,5100790059,"2,145.60",Gibsons Garden Machinery Limited
Manchester City Council,Hospitality + Trading Services,Hire of Machinery,11.05.2015,5100790078,976.80,Gibsons Garden Machinery Limited
Manchester City Council,Hospitality + Trading Services,Hire of Machinery,11.05.2015,5100790079,976.80,Gibsons Garden Machinery Limited
Manchester City Council,Hospitality + Trading Services,Hire of Machinery,11.05.2015,5100790060,882.40,Gibsons Garden Machinery Limited
Manchester City Council,Hospitality + Trading Services,Hire of Machinery,11.05.2015,5100791120,726.00,Gibsons Garden Machinery Limited
Manchester City Council,Hospitality + Trading Services,Hire of Machinery,11.05.2015,5100790069,614.40,Gibsons Garden Machinery Limited
Manchester City Council,Adult Social Care,I T Provision,11.05.2015,5100790623,646.80,Illy Computer Systems Ltd
Manchester City Council,Chief Executives,ICT Sup & Maintnance,11.05.2015,5100790310,"17,927.00",Esteem
Manchester City Council,Insurance Fund,Insurance,11.05.2015,1904625623,"7,000.00",Simpsons Solicitors
Manchester City Council,Insurance Fund,Insurance,11.05.2015,1904616075,"20,500.00",Thompsons Solicitors
Manchester City Council,Hospitality + Trading Services,Internal Repairs and Maintenance for buildings,11.05.2015,5100791346,945.08,Manchester Working Ltd
Manchester City Council,Regeneration Finance,Licences Purchase,11.05.2015,5100790712,"7,972.40",IHS (Global) Ltd
Manchester City Council,Adult Social Care,Payments for services,11.05.2015,5100791094,825.20,Alere Toxicology Plc
Manchester City Council,Adult Social Care,Payments for services,11.05.2015,5100790614,"5,508.83",The Work Company
Manchester City Council,Manchester Leisure,Payments for services,11.05.2015,5100791006,"5,000.00",YourTel Communications Limited
Manchester City Council,Manchester Leisure,Payments for services,11.05.2015,5100791007,"5,000.00",YourTel Communications Limited
Manchester City Council,Manchester Leisure,Payments for services,11.05.2015,5100791008,"4,500.00",The Fitness Training Academy Ltd
Manchester City Council,Manchester Leisure,Payments for services,11.05.2015,5100791004,"3,500.00",The Fitness Training Academy Ltd
Manchester City Council,Manchester Leisure,Payments for services,11.05.2015,5100791002,"3,000.00",The Fitness Training Academy Ltd
Manchester City Council,Hospitality + Trading Services,Payments to Sub-Contractors,11.05.2015,5100790850,630.40,Stretford Industrial Services Ltd
Manchester City Council,Hospitality + Trading Services,Payments to Sub-Contractors,11.05.2015,5100790165,"11,192.50",Kenny Bros (Civil Eng) Ltd
Manchester City Council,Hospitality + Trading Services,Payments to Sub-Contractors,11.05.2015,5100790176,"4,887.15",Kenny Bros (Civil Eng) Ltd
Manchester City Council,Hospitality + Trading Services,Payments to Sub-Contractors,11.05.2015,5100790144,"3,252.17",Kenny Bros (Civil Eng) Ltd
Manchester City Council,Hospitality + Trading Services,Payments to Sub-Contractors,11.05.2015,5100790162,"1,350.00",Kenny Bros (Civil Eng) Ltd
Manchester City Council,Hospitality + Trading Services,Payments to Sub-Contractors,11.05.2015,5100790146,539.42,Kenny Bros (Civil Eng) Ltd
Manchester City Council,Hospitality + Trading Services,Payments to Sub-Contractors,11.05.2015,5100790192,"60,199.93",Rosgal Ltd
Manchester City Council,Hospitality + Trading Services,Payments to Sub-Contractors,11.05.2015,5100790193,"35,903.22",Rosgal Ltd
Manchester City Council,Hospitality + Trading Services,Payments to Sub-Contractors,11.05.2015,5100790301,"10,840.69",Rosgal Ltd
Manchester City Council,Hospitality + Trading Services,Payments to Sub-Contractors,11.05.2015,5100790195,"10,023.44",Rosgal Ltd
Manchester City Council,Hospitality + Trading Services,Payments to Sub-Contractors,11.05.2015,5100790085,"3,240.00",Rosgal Ltd
Manchester City Council,Hospitality + Trading Services,Payments to Sub-Contractors,11.05.2015,5100790203,"22,050.44",Northern Marking Limited
Manchester City Council,Manchester Leisure,Payments to Sub-Contractors,11.05.2015,1904619503,"1,650.00",Redacted Personal Information
Manchester City Council,Environment and Operations,Payments to Sub-Contractors,11.05.2015,5100790526,"2,980.00",A P Broome Landscapes Ltd
Manchester City Council,Regeneration Finance,Printing,11.05.2015,5100791264,"7,127.45",VIP-System Ltd
Manchester City Council,Adult Social Care,Private Finance and Public Private partnership initiatives,11.05.2015,5100785491,"72,608.14",NU3PS
Manchester City Council,Manchester Leisure,Professional fees,11.05.2015,5100790766,"4,153.30",Sts Touring Productions Ltd
Manchester City Council,Manchester Leisure,Professional fees,11.05.2015,5100790841,"2,500.00",Gekay Carpets
Manchester City Council,Corporate Services,Professional fees,11.05.2015,5100790476,"3,700.00",Aecom Infrastructure & Environment
Manchester City Council,GMIST (Greater Mcr Integrated),Professional fees,11.05.2015,5100791390,"1,152.00",POS Enterprises Ltd
Manchester City Council,Hospitality + Trading Services,Refuse Collection,11.05.2015,5100791361,"19,741.60",Fairfield Environmental Serv Ltd
Manchester City Council,Adult Social Care,Rents,11.05.2015,5100790778,"17,011.01",United Property Management Ltd
Manchester City Council,Adult Social Care,Rents,11.05.2015,5100790945,"5,357.11",Mears Limited
Manchester City Council,Hospitality + Trading Services,Security,11.05.2015,5100790540,"2,153.52",Showsec International Ltd
Manchester City Council,Adult Social Care,Stationery,11.05.2015,5100790843,"2,185.00",Northgate Information Solutions Ltd
Manchester City Council,Manchester Leisure,Stationery,11.05.2015,5100790265,"2,075.00",Groundwork Landscapes Ltd
Manchester City Council,Corporate Services,Storage Costs,11.05.2015,5100790870,"3,796.97",Box-It (NW)
Manchester City Council,GMIST (Greater Mcr Integrated),Storage Costs,11.05.2015,5100790419,"2,557.54",DeepStore
Manchester City Council,GMIST (Greater Mcr Integrated),Storage Costs,11.05.2015,5100790417,567.62,DeepStore
Manchester City Council,Adult Social Care,Supporting People Payments,11.05.2015,5100791449,"35,500.00",The Salvation Army
Manchester City Council,Adult Social Care,Supporting People Payments,11.05.2015,5100787919,"2,309.22",Copperdale Trust
Manchester City Council,Housing Revenue Account,Surplus property Acquisitions,11.05.2015,1904625297,"5,574.23",Redacted Personal Information
Manchester City Council,Adult Social Care,Third party payments relating to Voluntary Organisations,11.05.2015,5100791212,"8,410.50",People First Housing Association
Manchester City Council,Adult Social Care,Third party payments relating to Voluntary Organisations,11.05.2015,5100791413,"3,126.84",Scope
Manchester City Council,Adult Social Care,Third party payments relating to Voluntary Organisations,11.05.2015,5100791209,"1,258.00",African & Caribbean Mental Health
Manchester City Council,GMIST (Greater Mcr Integrated),Third party payments to other Local Authorities,11.05.2015,5100790963,"644,000.00",Bolton Mbc
Manchester City Council,Hospitality + Trading Services,Tipping - Tonnage,11.05.2015,5100790866,"1,140.00",J.Hopkins (Contractors) Ltd.
Manchester City Council,Hospitality + Trading Services,Tipping - Tonnage,11.05.2015,5100790283,840.00,J.Hopkins (Contractors) Ltd.
Manchester City Council,Libraries and Theatres,Training and Development,11.05.2015,5100790282,"2,000.00",Bond Solon Training
Manchester City Council,Manchester Leisure,Transport and Driver Hire,11.05.2015,5100790305,"47,478.22",Momart Limited
Manchester City Council,Adult Social Care,Transport Coach Hire,11.05.2015,5100790200,"2,805.00",D.J. Minibus Travel
Manchester City Council,Adult Social Care,Transport Coach Hire,11.05.2015,5100790191,"13,706.00",Redacted Personal Information
Manchester City Council,Adult Social Care,Transport Coach Hire,11.05.2015,5100791398,996.60,Metro Taxis
Manchester City Council,Adult Social Care,Transport Coach Hire,11.05.2015,5100790684,"3,900.00",AAB Travel
Manchester City Council,Adult Social Care,Transport Coach Hire,11.05.2015,5100790528,990.00,Exec-Coach Services
Manchester City Council,Adult Social Care,Transport Coach Hire,11.05.2015,5100790991,"2,002.00",Redacted Personal Information
Manchester City Council,Adult Social Care,Transport Coach Hire,11.05.2015,5100790567,"3,853.00",Galaxy Cars (Manchester) Limited
Manchester City Council,Adult Social Care,Transport Coach Hire,11.05.2015,5100790231,"1,155.00",Ricks Travel
Manchester City Council,Adult Social Care,Transport Coach Hire,11.05.2015,5100790306,"2,229.50",Redacted Personal Information
Manchester City Council,Adult Social Care,Transport Coach Hire,11.05.2015,5100790201,990.00,JKR Travel
Manchester City Council,Adult Social Care,Transport Coach Hire,11.05.2015,5100790570,"1,052.00",APL Coachhire
Manchester City Council,Adult Social Care,Transport Coach Hire,11.05.2015,5100790809,"9,685.98",MCR Blackcab Ltd
Manchester City Council,Adult Social Care,Transport Coach Hire,11.05.2015,5100790807,"3,830.90",MCR Blackcab Ltd
Manchester City Council,Adult Social Care,Transport Coach Hire,11.05.2015,5100790811,"2,509.50",MCR Blackcab Ltd
Manchester City Council,Adult Social Care,Transport Coach Hire,11.05.2015,5100790819,"1,244.00",MCR Blackcab Ltd
Manchester City Council,Adult Social Care,Transport Coach Hire,11.05.2015,5100790475,"5,268.60",Parkway Cabs & Cars
Manchester City Council,Adult Social Care,Transport Coach Hire,11.05.2015,5100790262,960.00,DMC Travel
Manchester City Council,Adult Social Care,Transport Coach Hire,11.05.2015,5100790261,801.00,DMC Travel
Manchester City Council,Adult Social Care,Transport Coach Hire,11.05.2015,5100790752,"2,588.00",Redacted Personal Information
Manchester City Council,Adult Social Care,Transport Coach Hire,11.05.2015,5100791000,946.00,T/a K Travel
Manchester City Council,Corporate Services,Transport Taxis,11.05.2015,1904628914,"6,928.83",Mantax Radio Taxis Ltd
Manchester City Council,Hospitality + Trading Services,Vehicle Costs,11.05.2015,5100791499,"13,460.27",Stapletons Tyre Services
Manchester City Council,Hospitality + Trading Services,Vehicle Fuel Costs,11.05.2015,5100791130,"16,395.06",Carlton Fuels Ltd
Manchester City Council,Hospitality + Trading Services,Vehicle Fuel Costs,11.05.2015,5100791129,"16,394.12",Carlton Fuels Ltd
Manchester City Council,Hospitality + Trading Services,Vehicle Repairs,11.05.2015,5100790333,"1,919.46",Advanced Vehicle Technicians Ltd
Manchester City Council,Childrens Services,Works and associated costs for Land and Buildings,11.05.2015,5100790463,"4,512.00",Turner & Townsend Cost
Manchester City Council,Chief Executives,Works and associated costs for Land and Buildings,11.05.2015,5100790087,"4,630.00",Turner & Townsend Cost
Manchester City Council,Housing Revenue Account,Works and associated costs for Land and Buildings,11.05.2015,5100790697,"17,775.00",Buttress
Manchester City Council,Childrens Services,Works and associated costs for Land and Buildings,11.05.2015,5100790094,"2,236.48",Capita IT Services (BSF) Limited
Manchester City Council,Childrens Services,Works and associated costs for Land and Buildings,11.05.2015,5100790095,"1,829.28",Capita IT Services (BSF) Limited
Manchester City Council,Manchester Leisure,Works Health and Safety related,11.05.2015,5100790592,"3,900.00",Integrated Water Services
Manchester City Council,Adult Social Care,Legal Fees,11.05.2015,1904624419,687.50,Redacted Personal Information
Manchester City Council,Adult Social Care,Legal Fees,11.05.2015,1904627401,540.00,Redacted Personal Information
Manchester City Council,Environment and Operations,Compensation Payments,11.05.2015,1904617296,"7,250.00",Tranter Cleere & Co
Manchester City Council,Regeneration Finance,Compensation Payments,11.05.2015,5100791343,"42,907.50",Addleshaw Goddard Solicitors
Manchester City Council,Regeneration Finance,Compensation Payments,11.05.2015,5100791351,"10,461.26",Addleshaw Goddard Solicitors
Manchester City Council,Chief Executives,Advertising,12.05.2015,5100791521,"8,032.00",Exterion Media
Manchester City Council,Chief Executives,Advertising,12.05.2015,5100791525,"4,500.00",Exterion Media
Manchester City Council,Chief Executives,Advertising,12.05.2015,5100791520,"3,755.00",Exterion Media
Manchester City Council,Adult Social Care,Agency staff provision,12.05.2015,5100790547,"13,044.17",Gatenby Sanderson
Manchester City Council,Adult Social Care,Agency staff provision,12.05.2015,5100791541,"7,500.00",Gatenby Sanderson
Manchester City Council,Adult Social Care,Agency staff provision,12.05.2015,5100791540,"5,469.00",Gatenby Sanderson
Manchester City Council,Chief Executives,Agency staff provision,12.05.2015,5100790547,"17,568.00",Gatenby Sanderson
Manchester City Council,Chief Executives,Agency staff provision,12.05.2015,5100791653,"5,262.50",Proactive Personnel Ltd
Manchester City Council,Chief Executives,Agency staff provision,12.05.2015,5100791652,"2,723.00",Hudson Global Resources Ltd
Manchester City Council,Chief Executives,Agency staff provision,12.05.2015,5100791660,807.25,Supply Care Solutions
Manchester City Council,Hospitality + Trading Services,Building Materials for direct delivery,12.05.2015,1904629323,565.60,Ecomix Concrete Ltd
Manchester City Council,Childrens Services,Building Works,12.05.2015,5100791543,"209,711.10",Diocese of Salford
Manchester City Council,Childrens Services,Building Works,12.05.2015,5100791544,"2,910.85",Diocese of Salford
Manchester City Council,Hospitality + Trading Services,Catering Provisions,12.05.2015,1904629097,918.29,Brake Bros Foodservice Ltd
Manchester City Council,Hospitality + Trading Services,Catering Provisions,12.05.2015,1904629273,911.24,Brake Bros Foodservice Ltd
Manchester City Council,Hospitality + Trading Services,Catering Provisions,12.05.2015,1904629183,703.58,Brake Bros Foodservice Ltd
Manchester City Council,Hospitality + Trading Services,Catering Provisions,12.05.2015,1904629064,653.21,Brake Bros Foodservice Ltd
Manchester City Council,Hospitality + Trading Services,Catering Provisions,12.05.2015,1904629122,635.80,Brake Bros Foodservice Ltd
Manchester City Council,Hospitality + Trading Services,Catering Provisions,12.05.2015,1904629277,599.71,Brake Bros Foodservice Ltd
Manchester City Council,Hospitality + Trading Services,Catering Provisions,12.05.2015,1904629065,564.18,Brake Bros Foodservice Ltd
Manchester City Council,Housing Revenue Account,Council Dwelling Adaptations,12.05.2015,5100791596,"3,299.64",SIG Roofing Supplies
Manchester City Council,Housing Revenue Account,Council Dwelling Adaptations,12.05.2015,5100791601,"2,189.58",SIG Roofing Supplies
Manchester City Council,Adult Social Care,Grant and subscriptions awarded,12.05.2015,5100790812,"1,468.97",Youth on Solid Ground
Manchester City Council,Chief Executives,Grant and subscriptions awarded,12.05.2015,5100791049,895.00,Greater Manchester Chamber of
Manchester City Council,Hospitality + Trading Services,Hire of Machinery,12.05.2015,5100791611,741.00,Kensite Services Ltd
Manchester City Council,Hospitality + Trading Services,Hire of Machinery,12.05.2015,5100791607,550.00,Kensite Services Ltd
Manchester City Council,Manchester Leisure,I T Provision,12.05.2015,5100790311,"55,000.00",Customer research Technology Ltd
Manchester City Council,Manchester Leisure,I T Provision,12.05.2015,5100791537,"-55,000.00",Customer research Technology Ltd
Manchester City Council,Hospitality + Trading Services,Landline Telephone,12.05.2015,1904607271,536.86,Vodafone (Ex C&W)
Manchester City Council,Chief Executives,Landline Telephone,12.05.2015,1904627462,"5,539.69",Vodafone Business Solutions Ltd
Manchester City Council,Housing Revenue Account,Licences Purchase,12.05.2015,5100791127,525.00,Ncc Services Limited
Manchester City Council,Housing Revenue Account,Northwards Reps Fee,12.05.2015,5100790591,"1,784,120.67",Northwards Housing Limited
Manchester City Council,Adult Social Care,Personal needs of client,12.05.2015,5100791437,"9,684.00",Prism Medical UK Carefree Division
Manchester City Council,Adult Social Care,Personal needs of client,12.05.2015,5100791444,"8,330.00",Prism Medical UK Carefree Division
Manchester City Council,Adult Social Care,Personal needs of client,12.05.2015,5100791435,"3,024.00",Prism Medical UK Carefree Division
Manchester City Council,Adult Social Care,Personal needs of client,12.05.2015,5100791432,"1,512.00",Prism Medical UK Carefree Division
Manchester City Council,Adult Social Care,Personal needs of client,12.05.2015,5100791256,"2,029.99",Kirton Health Care Group Ltd
Manchester City Council,Chief Executives,Printing,12.05.2015,5100789309,"1,123.71",RNIB
Manchester City Council,Chief Executives,Printing,12.05.2015,5100791273,975.00,Chapel Press Ltd
Manchester City Council,Manchester Leisure,Professional fees,12.05.2015,5100791599,"2,457.00",Tameside Metropolitan Bouough
Manchester City Council,Corporate Services,Professional fees,12.05.2015,5100790740,"4,466.00",Rider Levett Bucknall UK Ltd
Manchester City Council,Corporate Services,Professional fees,12.05.2015,5100791629,"-4,466.00",Rider Levett Bucknall UK Ltd
Manchester City Council,Chief Executives,Professional fees,12.05.2015,1904627475,686.87,Just Psychology
Manchester City Council,Regeneration Finance,Professional fees,12.05.2015,1904616321,"1,590.00",Redacted Personal Information
Manchester City Council,Regeneration Finance,Rents,12.05.2015,1904628201,647.16,Manchester Airport Plc
Manchester City Council,Adult Social Care,Rents,12.05.2015,5100790650,"21,709.57",Accommodation Links Ltd
Manchester City Council,Adult Social Care,Supporting People Payments,12.05.2015,5100790605,"103,513.88",Creative Support Limited
Manchester City Council,Adult Social Care,Supporting People Payments,12.05.2015,5100790894,"13,749.25",Creative Support Limited
Manchester City Council,Adult Social Care,Supporting People Payments,12.05.2015,5100790894,"9,739.24",Creative Support Limited
Manchester City Council,Adult Social Care,Supporting People Payments,12.05.2015,5100790894,"3,341.94",Creative Support Limited
Manchester City Council,Adult Social Care,Supporting People Payments,12.05.2015,5100791357,"6,503.52",Ordinary Lifestyles
Manchester City Council,Adult Social Care,Supporting People Payments,12.05.2015,5100791357,"1,386.09",Ordinary Lifestyles
Manchester City Council,Manchester Leisure,Third party payments relating to Voluntary Organisations,12.05.2015,5100791695,"-1,500.00",Great Places Housing Association
Manchester City Council,Adult Social Care,Third party payments relating to Voluntary Organisations,12.05.2015,5100791043,"2,175.00",Burnage Good Neighbours
Manchester City Council,Adult Social Care,Third party payments relating to Voluntary Organisations,12.05.2015,5100791101,"1,234.14",The Stroke Association
Manchester City Council,Adult Social Care,Third party payments relating to Voluntary Organisations,12.05.2015,5100791102,"1,234.14",The Stroke Association
Manchester City Council,Adult Social Care,Third party payments relating to Voluntary Organisations,12.05.2015,5100790639,"2,523.90",St Lukes PCC St Lukes Art Project
Manchester City Council,Adult Social Care,Third party payments to Health Authority,12.05.2015,5100791531,"134,392.24",University Hospital of South Mcr
Manchester City Council,Adult Social Care,Third party payments to Health Authority,12.05.2015,5100791531,"2,868.43",University Hospital of South Mcr
Manchester City Council,Adult Social Care,Third party payments to Health Authority,12.05.2015,5100791526,"-137,260.67",University Hospital of South Mcr
Manchester City Council,Adult Social Care,Transport Coach Hire,12.05.2015,5100791542,"3,113.00",AAB Travel
Manchester City Council,Corporate Services,Travel,12.05.2015,1904619462,"25,482.20",Trainline.com Limited
Manchester City Council,Hospitality + Trading Services,Vehicle Parts/Spares,12.05.2015,5100790579,550.24,Johnston Sweepers
Manchester City Council,Childrens Services,Works and associated costs for Land and Buildings,12.05.2015,5100790722,"1,980.75",Keelagher Okey Associates Ltd t/a
Manchester City Council,Chief Executives,Compensation Payments,12.05.2015,1904629325,545.00,HMCTS (Manchester County Court)
Manchester City Council,Chief Executives,Advertising,13.05.2015,5100791680,"2,789.16",Trinity Mirror NW2 Ltd
Manchester City Council,Chief Executives,Advertising,13.05.2015,1904619439,598.00,The Pocket Student Guide Ltd
Manchester City Council,Adult Social Care,Agency staff provision,13.05.2015,5100791975,"1,495.62",HCL Social Care
Manchester City Council,Chief Executives,Agency staff provision,13.05.2015,5100791975,"1,875.72",HCL Social Care
Manchester City Council,Adult Social Care,Agency staff provision,13.05.2015,5100791980,737.80,Reed Employment Plc
Manchester City Council,Chief Executives,Agency staff provision,13.05.2015,5100791980,"6,782.75",Reed Employment Plc
Manchester City Council,Chief Executives,Agency staff provision,13.05.2015,5100791980,"1,617.65",Reed Employment Plc
Manchester City Council,Chief Executives,Agency staff provision,13.05.2015,5100791939,"19,794.31",Access Computer Consulting plc
Manchester City Council,Chief Executives,Agency staff provision,13.05.2015,5100791931,"-19,794.31",Access Computer Consulting plc
Manchester City Council,Regeneration Finance,Agency staff provision,13.05.2015,1904625702,600.00,EMAP Publishing Ltd
Manchester City Council,Hospitality + Trading Services,Building Materials for direct delivery,13.05.2015,1904634559,565.60,Ecomix Concrete Ltd
Manchester City Council,Environment and Operations,Building Materials for direct delivery,13.05.2015,5100791818,"1,540.00",A P Broome Landscapes Ltd
Manchester City Council,Environment and Operations,Charges for Services,13.05.2015,1904624203,884.60,Redacted Personal Information
Manchester City Council,Manchester Leisure,Consultants Fees,13.05.2015,5100791954,"17,000.00",FMG Consulting Limited
Manchester City Council,Environment and Operations,Contract Cleaning External,13.05.2015,1904628199,967.80,Manchester Airport Plc
Manchester City Council,Corporate Services,CRB Fees,13.05.2015,5100791942,"31,550.00",Disclosure & Barring Service
Manchester City Council,Adult Social Care,Equipment,13.05.2015,5100792083,"1,267.20",Frontier Therapeutics
Manchester City Council,Hospitality + Trading Services,Equipment,13.05.2015,5100791689,"10,600.00",CDS-Wilman
Manchester City Council,Adult Social Care,Equipment,13.05.2015,5100791766,"6,500.00",Independent Life Solutions
Manchester City Council,Adult Social Care,Equipment,13.05.2015,5100791770,"6,000.00",Independent Life Solutions
Manchester City Council,Adult Social Care,Equipment,13.05.2015,5100791791,"4,613.60",Independent Life Solutions
Manchester City Council,Adult Social Care,Equipment,13.05.2015,5100791761,"1,375.00",Independent Life Solutions
Manchester City Council,Adult Social Care,Equipment,13.05.2015,5100791790,"1,196.00",Independent Life Solutions
Manchester City Council,Hospitality + Trading Services,External repairs and maintenance for buildings,13.05.2015,5100791721,"9,521.88",Manchester Working Ltd
Manchester City Council,Hospitality + Trading Services,External repairs and maintenance for buildings,13.05.2015,5100791735,"4,862.46",Manchester Working Ltd
Manchester City Council,Hospitality + Trading Services,External repairs and maintenance for buildings,13.05.2015,5100791729,"1,042.36",Manchester Working Ltd
Manchester City Council,Corporate Services,External repairs and maintenance for buildings,13.05.2015,5100791363,"1,940.00",Manchester Working Ltd
Manchester City Council,Corporate Services,External repairs and maintenance for buildings,13.05.2015,5100791356,"1,100.00",Manchester Working Ltd
Manchester City Council,Environment and Operations,External repairs and maintenance for buildings,13.05.2015,5100791821,"1,900.00",A P Broome Landscapes Ltd
Manchester City Council,Adult Social Care,Foster Payments,13.05.2015,1904634523,933.05,Redacted Personal Information
Manchester City Council,Hospitality + Trading Services,Funeral and coroner related services,13.05.2015,5100791718,"2,167.00",Manchester Working Ltd
Manchester City Council,Hospitality + Trading Services,Funeral and coroner related services,13.05.2015,5100791719,703.08,Manchester Working Ltd
Manchester City Council,Corporate Services,Furniture,13.05.2015,5100791686,"1,016.89",Back Care Solutions Ltd
Manchester City Council,Adult Social Care,Grant and subscriptions awarded,13.05.2015,5100791892,832.75,Manchester People First
Manchester City Council,Adult Social Care,Grant and subscriptions awarded,13.05.2015,5100791894,832.75,Manchester People First
Manchester City Council,Regeneration Finance,Grant and subscriptions awarded,13.05.2015,1904629344,"6,777.60",Lunch Club
Manchester City Council,Housing Revenue Account,Heat Management,13.05.2015,5100791690,"22,444.00",Northwards Housing Limited
Manchester City Council,Hospitality + Trading Services,Hire of Machinery,13.05.2015,5100791110,660.00,Gibsons Garden Machinery Limited
Manchester City Council,Hospitality + Trading Services,Hire of Machinery,13.05.2015,5100791675,660.00,Gibsons Garden Machinery Limited
Manchester City Council,Hospitality + Trading Services,Hire of Machinery,13.05.2015,5100791672,-660.00,Gibsons Garden Machinery Limited
Manchester City Council,Environment and Operations,Hire of Machinery,13.05.2015,5100791822,"1,462.00",A P Broome Landscapes Ltd
Manchester City Council,Environment and Operations,Hire of Machinery,13.05.2015,5100791732,952.00,A P Broome Landscapes Ltd
Manchester City Council,Environment and Operations,Hire of Machinery,13.05.2015,5100791826,952.00,A P Broome Landscapes Ltd
Manchester City Council,Environment and Operations,Hire of Machinery,13.05.2015,5100791755,-952.00,A P Broome Landscapes Ltd
Manchester City Council,Adult Social Care,Hire of Premises,13.05.2015,5100791868,999.99,First Asian Support Trust
Manchester City Council,Adult Social Care,Hire of Premises,13.05.2015,5100791865,666.66,First Asian Support Trust
Manchester City Council,Manchester Leisure,I T Provision,13.05.2015,5100791042,"1,144.00",Bleep 2000 (Computers) Ltd
Manchester City Council,Chief Executives,Infrastructure Fees,13.05.2015,5100791980,"2,587.50",Reed Employment Plc
Manchester City Council,Insurance Fund,Insurance,13.05.2015,5100791762,"2,120.00",Aon Ltd
Manchester City Council,Insurance Fund,Insurance,13.05.2015,1904628992,627.00,Department For Work & Pensions
Manchester City Council,Adult Social Care,Internal Repairs and Maintenance for buildings,13.05.2015,5100791966,"5,567.96",Manchester Working Ltd
Manchester City Council,Adult Social Care,Internal Repairs and Maintenance for buildings,13.05.2015,5100791731,"3,700.09",Manchester Working Ltd
Manchester City Council,Adult Social Care,Internal Repairs and Maintenance for buildings,13.05.2015,5100791733,"1,256.90",Manchester Working Ltd
Manchester City Council,Adult Social Care,Internal Repairs and Maintenance for buildings,13.05.2015,5100791745,"1,080.75",Manchester Working Ltd
Manchester City Council,General Fund,Levies,13.05.2015,1904582281,"3,697,100.00",GMCA
Manchester City Council,Adult Social Care,Payments for services,13.05.2015,5100791872,"18,000.00",Pact
Manchester City Council,Adult Social Care,Payments for services,13.05.2015,5100791888,"28,300.00",United Response
Manchester City Council,Adult Social Care,Payments for services,13.05.2015,5100791890,"24,277.00",United Response
Manchester City Council,Adult Social Care,Payments for services,13.05.2015,5100791924,"8,849.65",Age Concern Manchester
Manchester City Council,Adult Social Care,Payments for services,13.05.2015,5100791924,"4,749.26",Age Concern Manchester
Manchester City Council,Adult Social Care,Payments for services,13.05.2015,5100791887,"10,979.25",H.G. Care Services Ltd
Manchester City Council,Adult Social Care,Payments for services,13.05.2015,5100791867,"13,953.00",Lakeside School
Manchester City Council,Adult Social Care,Payments for services,13.05.2015,5100791866,"-13,953.00",Lakeside School
Manchester City Council,Adult Social Care,Payments for services,13.05.2015,5100791749,"9,348.63",Ramillies Hall School Ltd
Manchester City Council,Adult Social Care,Payments for services,13.05.2015,5100791898,"30,135.75",Creative Support Ltd
Manchester City Council,Adult Social Care,Payments for services,13.05.2015,5100791900,"30,135.75",Creative Support Ltd
Manchester City Council,Adult Social Care,Payments for services,13.05.2015,5100791875,750.00,Action For Children
Manchester City Council,Adult Social Care,Payments for services,13.05.2015,5100791740,"3,069.30",Penarth Group School
Manchester City Council,Adult Social Care,Payments for services,13.05.2015,5100791736,"3,128.10",Beechkeys Ltd
Manchester City Council,Hospitality + Trading Services,Payments to Sub-Contractors,13.05.2015,5100791885,"11,063.42",Northern Marking Limited
Manchester City Council,Hospitality + Trading Services,Payments to Sub-Contractors,13.05.2015,5100791889,"2,830.78",Northern Marking Limited
Manchester City Council,Corporate Services,Printing,13.05.2015,5100791833,"1,145.00",Mail Solutions
Manchester City Council,Chief Executives,Printing,13.05.2015,5100791815,762.50,Mail Solutions
Manchester City Council,Manchester Leisure,Professional fees,13.05.2015,5100791662,"5,000.00",Sale Harriers Manchester
Manchester City Council,Adult Social Care,Professional fees,13.05.2015,5100791969,"1,050.00",Action First iPeople Ltd
Manchester City Council,Adult Social Care,Professional fees,13.05.2015,5100791967,700.00,Action First iPeople Ltd
Manchester City Council,Adult Social Care,Professional fees,13.05.2015,5100791970,700.00,Action First iPeople Ltd
Manchester City Council,Adult Social Care,Professional fees,13.05.2015,5100791841,"5,890.50",H.G. Care Services Ltd
Manchester City Council,Manchester Leisure,Professional fees,13.05.2015,5100791848,"120,000.00",Nova International Ltd
Manchester City Council,Manchester Leisure,Professional fees,13.05.2015,5100791847,"105,000.00",Nova International Ltd
Manchester City Council,Manchester Leisure,Professional fees,13.05.2015,5100791845,"25,000.00",Nova International Ltd
Manchester City Council,Adult Social Care,Professional fees,13.05.2015,5100791778,"7,102.57",4CT Limited
Manchester City Council,Housing Revenue Account,Professional fees,13.05.2015,5100791707,"3,860.00",Roger Hannah & Co
Manchester City Council,Adult Social Care,Rents,13.05.2015,5100791884,"2,654.12",Mosscare Housing Ltd
Manchester City Council,Environment and Operations,Rents,13.05.2015,1904628204,669.00,Manchester Airport Plc
Manchester City Council,Adult Social Care,Rents,13.05.2015,5100791327,"4,656.47",Accommodation Links Ltd
Manchester City Council,Adult Social Care,Supporting People Payments,13.05.2015,5100791661,"11,666.74",Depaul Trust (Rent Receivables)
Manchester City Council,Adult Social Care,Supporting People Payments,13.05.2015,5100791661,"5,000.00",Depaul Trust (Rent Receivables)
Manchester City Council,Adult Social Care,Supporting People Payments,13.05.2015,5100791842,"11,407.89",DISC Ltd
Manchester City Council,Adult Social Care,Third party payments relating to Voluntary Organisations,13.05.2015,5100791091,"6,737.00",Great Places Housing Association
Manchester City Council,Adult Social Care,Third party payments relating to Voluntary Organisations,13.05.2015,5100791787,"-6,737.00",Great Places Housing Association
Manchester City Council,Adult Social Care,Third party payments relating to Voluntary Organisations,13.05.2015,5100791746,"5,052.75",Great Places Housing Association
Manchester City Council,Adult Social Care,Third party payments relating to Voluntary Organisations,13.05.2015,5100791664,"6,684.00",Proper Job Theatre company
Manchester City Council,Adult Social Care,Third party payments relating to Voluntary Organisations,13.05.2015,5100791666,"2,100.00",Proper Job Theatre company
Manchester City Council,Adult Social Care,Third party payments relating to Voluntary Organisations,13.05.2015,5100791764,"2,254.00",Brighter Beginnings (Cheetham)
Manchester City Council,Manchester Leisure,Transport and Driver Hire,13.05.2015,1904629296,535.00,Jayhawk Limited
Manchester City Council,Adult Social Care,Transport Coach Hire,13.05.2015,5100791932,"4,125.00",Redacted Personal Information
Manchester City Council,Adult Social Care,Transport Coach Hire,13.05.2015,5100791337,"1,280.00",Stagecoach Manchester
Manchester City Council,Chief Executives,Vehicle Plant Furniture and Equipment,13.05.2015,5100791855,"3,606.45",The Loop t/a Gamma Telecom Ltd
Manchester City Council,Chief Executives,Vehicle Plant Furniture and Equipment,13.05.2015,5100791850,"1,593.55",The Loop t/a Gamma Telecom Ltd
Manchester City Council,Corporate Services,Works and associated costs for Land and Buildings,13.05.2015,5100791976,"55,284.00",Manchester Working Ltd
Manchester City Council,Corporate Services,Works and associated costs for Land and Buildings,13.05.2015,5100791958,"16,632.00",Manchester Working Ltd
Manchester City Council,Corporate Services,Works and associated costs for Land and Buildings,13.05.2015,5100791977,"1,092.00",Manchester Working Ltd
Manchester City Council,Adult Social Care,Legal Fees,13.05.2015,5100790426,850.00,Redacted Personal Information
Manchester City Council,Adult Social Care,Legal Fees,13.05.2015,5100791789,850.00,Redacted Personal Information
Manchester City Council,Adult Social Care,Legal Fees,13.05.2015,5100791788,-850.00,Redacted Personal Information
Manchester City Council,Environment and Operations,Compensation Payments,13.05.2015,1904627477,615.00,Department For Work & Pensions
Manchester City Council,Hospitality + Trading Services,Compensation Payments,13.05.2015,1904625629,780.00,Hampson Hughes Solicitors
Manchester City Council,Chief Executives,Compensation Payments,13.05.2015,1904629357,"1,794.50",Redacted Personal Information
Manchester City Council,Chief Executives,Agency staff provision,14.05.2015,5100792119,"7,705.60",Caritas Recruitment
Manchester City Council,Hospitality + Trading Services,Agency staff provision,14.05.2015,5100791987,619.52,Resolve Personnel Ltd
Manchester City Council,Environment and Operations,Agency staff provision,14.05.2015,5100791987,"2,323.86",Resolve Personnel Ltd
Manchester City Council,Environment and Operations,Agency staff provision,14.05.2015,5100791987,"2,186.28",Resolve Personnel Ltd
Manchester City Council,Chief Executives,Agency staff provision,14.05.2015,5100791987,"6,767.34",Resolve Personnel Ltd
Manchester City Council,Adult Social Care,Bed & Breakfast Acc,14.05.2015,5100792037,"5,470.00",Redacted Personal Information
Manchester City Council,Adult Social Care,Bed & Breakfast Acc,14.05.2015,5100791998,"9,370.16",G & A Taylor Hotels Ltd
Manchester City Council,Hospitality + Trading Services,Building Materials for direct delivery,14.05.2015,5100790867,552.00,Colas Limited
Manchester City Council,Hospitality + Trading Services,Building Materials for direct delivery,14.05.2015,5100792097,"1,090.00",Granthams Graphic Technology
Manchester City Council,Hospitality + Trading Services,Building Materials for direct delivery,14.05.2015,5100792097,"1,090.00",Granthams Graphic Technology
Manchester City Council,Hospitality + Trading Services,Building Materials for direct delivery,14.05.2015,5100791961,"1,090.00",Graphtec GB Ltd
Manchester City Council,Hospitality + Trading Services,Building Materials for direct delivery,14.05.2015,5100791961,"1,090.00",Graphtec GB Ltd
Manchester City Council,Hospitality + Trading Services,Building Materials for direct delivery,14.05.2015,5100792095,"-1,090.00",Graphtec GB Ltd
Manchester City Council,Hospitality + Trading Services,Building Materials for direct delivery,14.05.2015,5100792095,"-1,090.00",Graphtec GB Ltd
Manchester City Council,Hospitality + Trading Services,Building Materials for direct delivery,14.05.2015,1904636009,565.60,Ecomix Concrete Ltd
Manchester City Council,Chief Executives,CAMC/Not assigned,14.05.2015,5100792330,"-3,500.00",2/230th Johnston Hewlett Scouts
Manchester City Council,Adult Social Care,Childminding Fee Pay,14.05.2015,5100791997,"1,039.50",Wythenshawe Community Initiative
Manchester City Council,Environment and Operations,Construction Works,14.05.2015,5100791914,525.28,F J Goodwin & Sons (Manchester) Ltd
Manchester City Council,Hospitality + Trading Services,Contract Cleaning External,14.05.2015,5100791615,767.04,Hall Cleaning Services Ltd
Manchester City Council,Adult Social Care,Contract Cleaning Internal,14.05.2015,5100792178,"1,186.05",The Manchester College
Manchester City Council,Regeneration Finance,CRB Fees,14.05.2015,5100792011,"5,412.00",Disclosure & Barring Service
Manchester City Council,Corporate Services,CRB Fees,14.05.2015,5100791774,"1,228.50",United Medicare Ltd
Manchester City Council,Hospitality + Trading Services,Electricity,14.05.2015,1904634804,866.47,E.on UK Plc
Manchester City Council,Manchester Leisure,Electricity,14.05.2015,1904635389,"2,606.71",Scottish & Southern Energy Plc
Manchester City Council,Manchester Leisure,Electricity,14.05.2015,1904635388,"2,309.58",Scottish & Southern Energy Plc
Manchester City Council,Manchester Leisure,Electricity,14.05.2015,1904635382,"1,831.83",Scottish & Southern Energy Plc
Manchester City Council,Manchester Leisure,Electricity,14.05.2015,1904635370,"1,760.88",Scottish & Southern Energy Plc
Manchester City Council,Manchester Leisure,Electricity,14.05.2015,1904635392,"1,748.47",Scottish & Southern Energy Plc
Manchester City Council,Manchester Leisure,Electricity,14.05.2015,1904635263,"1,408.33",Scottish & Southern Energy Plc
Manchester City Council,Manchester Leisure,Electricity,14.05.2015,1904635066,632.71,Scottish & Southern Energy Plc
Manchester City Council,Manchester Leisure,Electricity,14.05.2015,1904635385,580.22,Scottish & Southern Energy Plc
Manchester City Council,Hospitality + Trading Services,Electricity,14.05.2015,1904635310,"5,370.16",Scottish & Southern Energy Plc
Manchester City Council,Hospitality + Trading Services,Electricity,14.05.2015,1904635286,"1,461.14",Scottish & Southern Energy Plc
Manchester City Council,Hospitality + Trading Services,Electricity,14.05.2015,1904635264,"1,100.92",Scottish & Southern Energy Plc
Manchester City Council,Hospitality + Trading Services,Electricity,14.05.2015,1700056677,"-4,081.33",Scottish & Southern Energy Plc
Manchester City Council,Environment and Operations,Electricity,14.05.2015,1904635064,955.31,Scottish & Southern Energy Plc
Manchester City Council,Environment and Operations,Electricity,14.05.2015,1904635326,749.36,Scottish & Southern Energy Plc
Manchester City Council,Environment and Operations,Electricity,14.05.2015,1904635325,613.55,Scottish & Southern Energy Plc
Manchester City Council,Adult Social Care,Electricity,14.05.2015,1904635302,"3,971.17",Scottish & Southern Energy Plc
Manchester City Council,Adult Social Care,Electricity,14.05.2015,1904635278,"2,122.47",Scottish & Southern Energy Plc
Manchester City Council,Adult Social Care,Electricity,14.05.2015,1904635336,"1,883.20",Scottish & Southern Energy Plc
Manchester City Council,Adult Social Care,Electricity,14.05.2015,1904635090,"1,336.30",Scottish & Southern Energy Plc
Manchester City Council,Adult Social Care,Electricity,14.05.2015,1904635085,"1,327.17",Scottish & Southern Energy Plc
Manchester City Council,Adult Social Care,Electricity,14.05.2015,1904635378,"1,311.26",Scottish & Southern Energy Plc
Manchester City Council,Adult Social Care,Electricity,14.05.2015,1904635058,974.27,Scottish & Southern Energy Plc
Manchester City Council,Adult Social Care,Electricity,14.05.2015,1904635279,958.08,Scottish & Southern Energy Plc
Manchester City Council,Adult Social Care,Electricity,14.05.2015,1904635080,947.27,Scottish & Southern Energy Plc
Manchester City Council,Adult Social Care,Electricity,14.05.2015,1904635054,920.18,Scottish & Southern Energy Plc
Manchester City Council,Adult Social Care,Electricity,14.05.2015,1904635380,839.09,Scottish & Southern Energy Plc
Manchester City Council,Adult Social Care,Electricity,14.05.2015,1904635261,792.28,Scottish & Southern Energy Plc
Manchester City Council,Adult Social Care,Electricity,14.05.2015,1904635373,779.38,Scottish & Southern Energy Plc
Manchester City Council,Adult Social Care,Electricity,14.05.2015,1904635381,662.93,Scottish & Southern Energy Plc
Manchester City Council,Adult Social Care,Electricity,14.05.2015,1904635295,629.49,Scottish & Southern Energy Plc
Manchester City Council,Adult Social Care,Electricity,14.05.2015,1904635078,569.34,Scottish & Southern Energy Plc
Manchester City Council,Adult Social Care,Electricity,14.05.2015,1904635312,559.76,Scottish & Southern Energy Plc
Manchester City Council,Corporate Services,Electricity,14.05.2015,1904635255,"3,041.38",Scottish & Southern Energy Plc
Manchester City Council,Corporate Services,Electricity,14.05.2015,1904635379,"2,460.03",Scottish & Southern Energy Plc
Manchester City Council,Corporate Services,Electricity,14.05.2015,1904635065,"2,414.21",Scottish & Southern Energy Plc
Manchester City Council,Corporate Services,Electricity,14.05.2015,1904635276,"2,237.93",Scottish & Southern Energy Plc
Manchester City Council,Corporate Services,Electricity,14.05.2015,1904635384,"2,207.13",Scottish & Southern Energy Plc
Manchester City Council,Corporate Services,Electricity,14.05.2015,1904635049,"2,147.44",Scottish & Southern Energy Plc
Manchester City Council,Corporate Services,Electricity,14.05.2015,1904635291,"2,075.09",Scottish & Southern Energy Plc
Manchester City Council,Corporate Services,Electricity,14.05.2015,1904635056,"1,675.11",Scottish & Southern Energy Plc
Manchester City Council,Corporate Services,Electricity,14.05.2015,1904635268,"1,621.57",Scottish & Southern Energy Plc
Manchester City Council,Corporate Services,Electricity,14.05.2015,1904635357,"1,554.29",Scottish & Southern Energy Plc
Manchester City Council,Corporate Services,Electricity,14.05.2015,1904635355,"1,522.63",Scottish & Southern Energy Plc
Manchester City Council,Corporate Services,Electricity,14.05.2015,1904635262,"1,427.01",Scottish & Southern Energy Plc
Manchester City Council,Corporate Services,Electricity,14.05.2015,1904635277,"1,398.22",Scottish & Southern Energy Plc
Manchester City Council,Corporate Services,Electricity,14.05.2015,1904635386,"1,376.24",Scottish & Southern Energy Plc
Manchester City Council,Corporate Services,Electricity,14.05.2015,1904635269,"1,373.58",Scottish & Southern Energy Plc
Manchester City Council,Corporate Services,Electricity,14.05.2015,1904635063,"1,312.50",Scottish & Southern Energy Plc
Manchester City Council,Corporate Services,Electricity,14.05.2015,1904635076,"1,311.39",Scottish & Southern Energy Plc
Manchester City Council,Corporate Services,Electricity,14.05.2015,1904635362,"1,278.82",Scottish & Southern Energy Plc
Manchester City Council,Corporate Services,Electricity,14.05.2015,1904635346,"1,211.92",Scottish & Southern Energy Plc
Manchester City Council,Corporate Services,Electricity,14.05.2015,1904635390,"1,204.96",Scottish & Southern Energy Plc
Manchester City Council,Corporate Services,Electricity,14.05.2015,1904635069,"1,198.70",Scottish & Southern Energy Plc
Manchester City Council,Corporate Services,Electricity,14.05.2015,1904635296,"1,196.80",Scottish & Southern Energy Plc
Manchester City Council,Corporate Services,Electricity,14.05.2015,1904635359,"1,044.59",Scottish & Southern Energy Plc
Manchester City Council,Corporate Services,Electricity,14.05.2015,1904635053,"1,030.31",Scottish & Southern Energy Plc
Manchester City Council,Corporate Services,Electricity,14.05.2015,1904635281,980.10,Scottish & Southern Energy Plc
Manchester City Council,Corporate Services,Electricity,14.05.2015,1904635087,920.47,Scottish & Southern Energy Plc
Manchester City Council,Corporate Services,Electricity,14.05.2015,1904635260,916.88,Scottish & Southern Energy Plc
Manchester City Council,Corporate Services,Electricity,14.05.2015,1904635077,908.54,Scottish & Southern Energy Plc
Manchester City Council,Corporate Services,Electricity,14.05.2015,1904635330,875.81,Scottish & Southern Energy Plc
Manchester City Council,Corporate Services,Electricity,14.05.2015,1904635084,869.57,Scottish & Southern Energy Plc
Manchester City Council,Corporate Services,Electricity,14.05.2015,1904635293,868.79,Scottish & Southern Energy Plc
Manchester City Council,Corporate Services,Electricity,14.05.2015,1904635052,845.45,Scottish & Southern Energy Plc
Manchester City Council,Corporate Services,Electricity,14.05.2015,1904635266,719.22,Scottish & Southern Energy Plc
Manchester City Council,Corporate Services,Electricity,14.05.2015,1904635070,706.98,Scottish & Southern Energy Plc
Manchester City Council,Corporate Services,Electricity,14.05.2015,1904635051,702.53,Scottish & Southern Energy Plc
Manchester City Council,Corporate Services,Electricity,14.05.2015,1904635376,701.88,Scottish & Southern Energy Plc
Manchester City Council,Corporate Services,Electricity,14.05.2015,1904635339,701.81,Scottish & Southern Energy Plc
Manchester City Council,Corporate Services,Electricity,14.05.2015,1904635079,666.44,Scottish & Southern Energy Plc
Manchester City Council,Corporate Services,Electricity,14.05.2015,1904635089,639.88,Scottish & Southern Energy Plc
Manchester City Council,Corporate Services,Electricity,14.05.2015,1904635098,630.61,Scottish & Southern Energy Plc
Manchester City Council,Corporate Services,Electricity,14.05.2015,1904635046,630.52,Scottish & Southern Energy Plc
Manchester City Council,Corporate Services,Electricity,14.05.2015,1904635055,617.38,Scottish & Southern Energy Plc
Manchester City Council,Corporate Services,Electricity,14.05.2015,1904635075,614.78,Scottish & Southern Energy Plc
Manchester City Council,Corporate Services,Electricity,14.05.2015,1904635306,611.16,Scottish & Southern Energy Plc
Manchester City Council,Corporate Services,Electricity,14.05.2015,1904635284,596.84,Scottish & Southern Energy Plc
Manchester City Council,Corporate Services,Electricity,14.05.2015,1904635057,589.14,Scottish & Southern Energy Plc
Manchester City Council,Corporate Services,Electricity,14.05.2015,1904635093,579.79,Scottish & Southern Energy Plc
Manchester City Council,Corporate Services,Electricity,14.05.2015,1904635072,571.37,Scottish & Southern Energy Plc
Manchester City Council,Corporate Services,Electricity,14.05.2015,1904635267,566.69,Scottish & Southern Energy Plc
Manchester City Council,Corporate Services,Electricity,14.05.2015,1904635282,557.68,Scottish & Southern Energy Plc
Manchester City Council,Corporate Services,Electricity,14.05.2015,1904635067,537.70,Scottish & Southern Energy Plc
Manchester City Council,Corporate Services,Electricity,14.05.2015,1904635318,533.86,Scottish & Southern Energy Plc
Manchester City Council,Corporate Services,Electricity,14.05.2015,1904635394,506.03,Scottish & Southern Energy Plc
Manchester City Council,Corporate Services,Electricity,14.05.2015,1700056645,-925.38,Scottish & Southern Energy Plc
Manchester City Council,Corporate Services,Electricity,14.05.2015,1700056643,"-1,028.96",Scottish & Southern Energy Plc
Manchester City Council,Corporate Services,Electricity,14.05.2015,1700056644,"-1,237.30",Scottish & Southern Energy Plc
Manchester City Council,Corporate Services,Electricity,14.05.2015,1700056678,"-3,486.12",Scottish & Southern Energy Plc
Manchester City Council,Adult Social Care,Equipment,14.05.2015,5100792062,"4,380.00",Newlyn Healthcare Limited
Manchester City Council,Chief Executives,Examination Fees,14.05.2015,5100792200,"2,765.00",University Hospital of South Mcr
Manchester City Council,Corporate Services,Fees,14.05.2015,5100791882,"3,532.00",Pannone Corporate LLP
Manchester City Council,Chief Executives,Funeral and coroner related services,14.05.2015,5100792202,"4,092.24",Kane Funeral Services
Manchester City Council,Chief Executives,Funeral and coroner related services,14.05.2015,5100792149,822.00,The Pennine Acute Hospital Nhs Trus
Manchester City Council,Manchester Leisure,Gas,14.05.2015,1904634847,"2,101.81",Corona Energy Ltd
Manchester City Council,Manchester Leisure,Gas,14.05.2015,1904634983,"1,736.97",Corona Energy Ltd
Manchester City Council,Manchester Leisure,Gas,14.05.2015,1904634828,"1,722.81",Corona Energy Ltd
Manchester City Council,Manchester Leisure,Gas,14.05.2015,1904634855,"1,289.75",Corona Energy Ltd
Manchester City Council,Manchester Leisure,Gas,14.05.2015,1904634862,"1,125.06",Corona Energy Ltd
Manchester City Council,Manchester Leisure,Gas,14.05.2015,1700056601,"-1,722.81",Corona Energy Ltd
Manchester City Council,Hospitality + Trading Services,Gas,14.05.2015,1904634809,"29,282.40",Corona Energy Ltd
Manchester City Council,Hospitality + Trading Services,Gas,14.05.2015,1904634810,"19,501.94",Corona Energy Ltd
Manchester City Council,Hospitality + Trading Services,Gas,14.05.2015,1904634821,"3,300.47",Corona Energy Ltd
Manchester City Council,Hospitality + Trading Services,Gas,14.05.2015,1904634870,656.46,Corona Energy Ltd
Manchester City Council,Adult Social Care,Gas,14.05.2015,1904634992,"2,128.77",Corona Energy Ltd
Manchester City Council,Adult Social Care,Gas,14.05.2015,1904634807,"2,058.76",Corona Energy Ltd
Manchester City Council,Adult Social Care,Gas,14.05.2015,1904634846,"1,502.70",Corona Energy Ltd
Manchester City Council,Adult Social Care,Gas,14.05.2015,1904634825,"1,410.13",Corona Energy Ltd
Manchester City Council,Adult Social Care,Gas,14.05.2015,1904634823,"1,367.36",Corona Energy Ltd
Manchester City Council,Adult Social Care,Gas,14.05.2015,1904634941,"1,050.11",Corona Energy Ltd
Manchester City Council,Adult Social Care,Gas,14.05.2015,1904634898,"1,037.16",Corona Energy Ltd
Manchester City Council,Adult Social Care,Gas,14.05.2015,1904634864,902.87,Corona Energy Ltd
Manchester City Council,Adult Social Care,Gas,14.05.2015,1904634893,669.38,Corona Energy Ltd
Manchester City Council,Adult Social Care,Gas,14.05.2015,1904634883,668.37,Corona Energy Ltd
Manchester City Council,Adult Social Care,Gas,14.05.2015,1904634930,586.08,Corona Energy Ltd
Manchester City Council,Adult Social Care,Gas,14.05.2015,1904634878,572.42,Corona Energy Ltd
Manchester City Council,Adult Social Care,Gas,14.05.2015,1904634944,550.11,Corona Energy Ltd
Manchester City Council,Adult Social Care,Gas,14.05.2015,1904634943,539.15,Corona Energy Ltd
Manchester City Council,Adult Social Care,Gas,14.05.2015,1904634958,509.48,Corona Energy Ltd
Manchester City Council,Adult Social Care,Gas,14.05.2015,1904634962,504.85,Corona Energy Ltd
Manchester City Council,Adult Social Care,Gas,14.05.2015,1700056628,-502.64,Corona Energy Ltd
Manchester City Council,Adult Social Care,Gas,14.05.2015,1700056612,-551.27,Corona Energy Ltd
Manchester City Council,Adult Social Care,Gas,14.05.2015,1700056620,-554.94,Corona Energy Ltd
Manchester City Council,Adult Social Care,Gas,14.05.2015,1700056618,-624.28,Corona Energy Ltd
Manchester City Council,Adult Social Care,Gas,14.05.2015,1700056614,-634.05,Corona Energy Ltd
Manchester City Council,Adult Social Care,Gas,14.05.2015,1700056615,-675.85,Corona Energy Ltd
Manchester City Council,Adult Social Care,Gas,14.05.2015,1700056619,-685.42,Corona Energy Ltd
Manchester City Council,Adult Social Care,Gas,14.05.2015,1700056616,-701.67,Corona Energy Ltd
Manchester City Council,Adult Social Care,Gas,14.05.2015,1700056642,-705.58,Corona Energy Ltd
Manchester City Council,Adult Social Care,Gas,14.05.2015,1700056608,-740.82,Corona Energy Ltd
Manchester City Council,Adult Social Care,Gas,14.05.2015,1700056610,-751.10,Corona Energy Ltd
Manchester City Council,Adult Social Care,Gas,14.05.2015,1700056617,-754.13,Corona Energy Ltd
Manchester City Council,Adult Social Care,Gas,14.05.2015,1700056609,-826.68,Corona Energy Ltd
Manchester City Council,Adult Social Care,Gas,14.05.2015,1700056634,-979.62,Corona Energy Ltd
Manchester City Council,Corporate Services,Gas,14.05.2015,1904634811,"15,327.41",Corona Energy Ltd
Manchester City Council,Corporate Services,Gas,14.05.2015,1904634897,"6,785.71",Corona Energy Ltd
Manchester City Council,Corporate Services,Gas,14.05.2015,1904634818,"6,262.59",Corona Energy Ltd
Manchester City Council,Corporate Services,Gas,14.05.2015,1904634820,"5,894.76",Corona Energy Ltd
Manchester City Council,Corporate Services,Gas,14.05.2015,1904634813,"5,692.79",Corona Energy Ltd
Manchester City Council,Corporate Services,Gas,14.05.2015,1904634812,"5,392.05",Corona Energy Ltd
Manchester City Council,Corporate Services,Gas,14.05.2015,1904634986,"3,528.87",Corona Energy Ltd
Manchester City Council,Corporate Services,Gas,14.05.2015,1904634826,"2,599.53",Corona Energy Ltd
Manchester City Council,Corporate Services,Gas,14.05.2015,1904634851,"2,171.95",Corona Energy Ltd
Manchester City Council,Corporate Services,Gas,14.05.2015,1904634822,"2,136.03",Corona Energy Ltd
Manchester City Council,Corporate Services,Gas,14.05.2015,1904634857,"1,701.87",Corona Energy Ltd
Manchester City Council,Corporate Services,Gas,14.05.2015,1904634835,"1,586.29",Corona Energy Ltd
Manchester City Council,Corporate Services,Gas,14.05.2015,1904634848,"1,199.79",Corona Energy Ltd
Manchester City Council,Corporate Services,Gas,14.05.2015,1904634849,"1,161.97",Corona Energy Ltd
Manchester City Council,Corporate Services,Gas,14.05.2015,1904634838,"1,122.97",Corona Energy Ltd
Manchester City Council,Corporate Services,Gas,14.05.2015,1904634866,"1,108.64",Corona Energy Ltd
Manchester City Council,Corporate Services,Gas,14.05.2015,1904634874,"1,080.28",Corona Energy Ltd
Manchester City Council,Corporate Services,Gas,14.05.2015,1904634806,"1,077.56",Corona Energy Ltd
Manchester City Council,Corporate Services,Gas,14.05.2015,1904634861,"1,046.54",Corona Energy Ltd
Manchester City Council,Corporate Services,Gas,14.05.2015,1904634850,964.11,Corona Energy Ltd
Manchester City Council,Corporate Services,Gas,14.05.2015,1904634841,934.37,Corona Energy Ltd
Manchester City Council,Corporate Services,Gas,14.05.2015,1904634868,903.35,Corona Energy Ltd
Manchester City Council,Corporate Services,Gas,14.05.2015,1904634869,873.57,Corona Energy Ltd
Manchester City Council,Corporate Services,Gas,14.05.2015,1904634856,826.10,Corona Energy Ltd
Manchester City Council,Corporate Services,Gas,14.05.2015,1904634853,801.07,Corona Energy Ltd
Manchester City Council,Corporate Services,Gas,14.05.2015,1904634872,793.38,Corona Energy Ltd
Manchester City Council,Corporate Services,Gas,14.05.2015,1904634876,773.20,Corona Energy Ltd
Manchester City Council,Corporate Services,Gas,14.05.2015,1904634865,754.20,Corona Energy Ltd
Manchester City Council,Corporate Services,Gas,14.05.2015,1904634859,737.65,Corona Energy Ltd
Manchester City Council,Corporate Services,Gas,14.05.2015,1904634880,670.57,Corona Energy Ltd
Manchester City Council,Corporate Services,Gas,14.05.2015,1904634879,643.52,Corona Energy Ltd
Manchester City Council,Corporate Services,Gas,14.05.2015,1904634881,575.66,Corona Energy Ltd
Manchester City Council,Corporate Services,Gas,14.05.2015,1904634927,569.58,Corona Energy Ltd
Manchester City Council,Corporate Services,Gas,14.05.2015,1904634860,547.42,Corona Energy Ltd
Manchester City Council,Corporate Services,Gas,14.05.2015,1904634882,523.30,Corona Energy Ltd
Manchester City Council,Corporate Services,Gas,14.05.2015,1904634863,501.72,Corona Energy Ltd
Manchester City Council,Corporate Services,Gas,14.05.2015,1700056594,"-5,655.94",Corona Energy Ltd
Manchester City Council,Housing Revenue Account,Gas,14.05.2015,1904634999,"31,034.02",Corona Energy Ltd
Manchester City Council,Housing Revenue Account,Gas,14.05.2015,1904635000,"24,110.52",Corona Energy Ltd
Manchester City Council,Housing Revenue Account,Gas,14.05.2015,1904634817,"11,215.56",Corona Energy Ltd
Manchester City Council,Housing Revenue Account,Gas,14.05.2015,1904634816,"8,891.39",Corona Energy Ltd
Manchester City Council,Housing Revenue Account,Gas,14.05.2015,1904634998,"3,297.80",Corona Energy Ltd
Manchester City Council,Housing Revenue Account,Gas,14.05.2015,1904634833,"1,832.33",Corona Energy Ltd
Manchester City Council,Housing Revenue Account,Gas,14.05.2015,1904634829,"1,792.62",Corona Energy Ltd
Manchester City Council,Housing Revenue Account,Gas,14.05.2015,1904634831,"1,739.12",Corona Energy Ltd
Manchester City Council,Housing Revenue Account,Gas,14.05.2015,1904634827,"1,521.62",Corona Energy Ltd
Manchester City Council,Housing Revenue Account,Gas,14.05.2015,1904634830,"1,492.97",Corona Energy Ltd
Manchester City Council,Housing Revenue Account,Gas,14.05.2015,1904634901,"1,478.29",Corona Energy Ltd
Manchester City Council,Housing Revenue Account,Gas,14.05.2015,1904634836,"1,396.50",Corona Energy Ltd
Manchester City Council,Housing Revenue Account,Gas,14.05.2015,1904634832,"1,386.32",Corona Energy Ltd
Manchester City Council,Housing Revenue Account,Gas,14.05.2015,1904634844,"1,367.85",Corona Energy Ltd
Manchester City Council,Housing Revenue Account,Gas,14.05.2015,1904634837,"1,357.20",Corona Energy Ltd
Manchester City Council,Housing Revenue Account,Gas,14.05.2015,1904634843,"1,298.49",Corona Energy Ltd
Manchester City Council,Housing Revenue Account,Gas,14.05.2015,1904634839,"1,279.63",Corona Energy Ltd
Manchester City Council,Housing Revenue Account,Gas,14.05.2015,1904634845,"1,273.64",Corona Energy Ltd
Manchester City Council,Housing Revenue Account,Gas,14.05.2015,1904634840,"1,244.58",Corona Energy Ltd
Manchester City Council,Housing Revenue Account,Gas,14.05.2015,1904634842,"1,177.87",Corona Energy Ltd
Manchester City Council,Housing Revenue Account,Gas,14.05.2015,1904634854,943.27,Corona Energy Ltd
Manchester City Council,Housing Revenue Account,Gas,14.05.2015,1904634906,942.04,Corona Energy Ltd
Manchester City Council,Housing Revenue Account,Gas,14.05.2015,1904634858,892.74,Corona Energy Ltd
Manchester City Council,Housing Revenue Account,Gas,14.05.2015,1700056600,"-1,117.59",Corona Energy Ltd
Manchester City Council,Housing Revenue Account,Gas,14.05.2015,1700056599,"-1,191.52",Corona Energy Ltd
Manchester City Council,Housing Revenue Account,Gas,14.05.2015,1700056598,"-1,434.33",Corona Energy Ltd
Manchester City Council,Housing Revenue Account,Gas,14.05.2015,1700056595,"-1,574.31",Corona Energy Ltd
Manchester City Council,Housing Revenue Account,Gas,14.05.2015,1700056597,"-1,577.76",Corona Energy Ltd
Manchester City Council,Housing Revenue Account,Gas,14.05.2015,1700056596,"-1,691.39",Corona Energy Ltd
Manchester City Council,Regeneration Finance,Gas,14.05.2015,1904634923,"1,581.20",Corona Energy Ltd
Manchester City Council,GMIST (Greater Mcr Integrated),Gas,14.05.2015,1904634985,"1,100.08",Corona Energy Ltd
Manchester City Council,Adult Social Care,Grant and subscriptions awarded,14.05.2015,5100791830,"1,401.35",Barlow Moor Community Association
Manchester City Council,Adult Social Care,Grant and subscriptions awarded,14.05.2015,5100791836,"1,401.15",Barlow Moor Community Association
Manchester City Council,Adult Social Care,Grant and subscriptions awarded,14.05.2015,5100792127,"4,167.50",Stockport Mbc
Manchester City Council,Adult Social Care,Hire of Premises,14.05.2015,5100792000,666.67,Levenshulme Inspire
Manchester City Council,Adult Social Care,Hire of Premises,14.05.2015,5100791999,525.00,Levenshulme Inspire
Manchester City Council,Chief Executives,Internal Repairs and Maintenance for buildings,14.05.2015,5100790638,"13,600.00",Data Centre Environments Ltd
Manchester City Council,Manchester Leisure,Licences Purchase,14.05.2015,5100792133,"3,346.50",TV Licensing (Company Group
Manchester City Council,Chief Executives,Machinery and equipment repairs,14.05.2015,5100791566,"17,289.69",Neopost Finance Ltd (Rental)
Manchester City Council,Adult Social Care,Payments for services,14.05.2015,5100792012,763.22,The Together Trust
Manchester City Council,Adult Social Care,Payments for services,14.05.2015,5100791984,886.80,Alere Toxicology Plc
Manchester City Council,Adult Social Care,Payments for services,14.05.2015,5100792179,"6,311.92",Lakeside School
Manchester City Council,Adult Social Care,Payments for services,14.05.2015,5100792218,"1,314.00",Action For Children
Manchester City Council,Adult Social Care,Payments for services,14.05.2015,5100792172,"2,400.00",Keys Childcare Ltd
Manchester City Council,Adult Social Care,Payments for services,14.05.2015,5100792174,"2,400.00",Keys Childcare Ltd
Manchester City Council,Adult Social Care,Payments for services,14.05.2015,5100792165,"4,433.00",Cumberland & Westmorland
Manchester City Council,Adult Social Care,Payments for services,14.05.2015,5100792169,"3,999.50",Cumberland & Westmorland
Manchester City Council,Adult Social Care,Payments for services,14.05.2015,5100792159,"3,992.25",Cumberland & Westmorland
Manchester City Council,Adult Social Care,Payments for services,14.05.2015,5100792167,"3,727.25",Cumberland & Westmorland
Manchester City Council,Adult Social Care,Payments for services,14.05.2015,5100792166,"3,375.25",Cumberland & Westmorland
Manchester City Council,Adult Social Care,Payments for services,14.05.2015,1904634528,500.00,Zest Team North Mcr FAD008422
Manchester City Council,Adult Social Care,Payments for services,14.05.2015,5100786216,"27,500.00",ABL Health Ltd
Manchester City Council,Adult Social Care,Payments for services,14.05.2015,5100791988,"27,500.00",ABL Health Ltd
Manchester City Council,Adult Social Care,Payments for services,14.05.2015,5100792215,"10,795.90",Faith in Families
Manchester City Council,Environment and Operations,Payments to Sub-Contractors,14.05.2015,5100791907,"1,260.90",Barcham Trees Plc
Manchester City Council,Chief Executives,Payments to Sub-Contractors,14.05.2015,5100792009,"36,675.00",MediaCo Ltd
Manchester City Council,Corporate Services,Payments to Sub-Contractors,14.05.2015,5100790704,"15,015.00",Turner & Townsend Project
Manchester City Council,Chief Executives,Payments to Sub-Contractors,14.05.2015,5100792060,754.00,Meltwater (UK) Ltd
Manchester City Council,Environment and Operations,Payments to Sub-Contractors,14.05.2015,5100792058,"2,980.00",A P Broome Landscapes Ltd
Manchester City Council,Environment and Operations,Payments to Sub-Contractors,14.05.2015,5100792056,"-2,980.00",A P Broome Landscapes Ltd
Manchester City Council,Corporate Services,Postage,14.05.2015,5100791453,"7,842.98",Royal Mail Group Plc
Manchester City Council,Corporate Services,Postage,14.05.2015,5100791451,"2,144.36",Royal Mail Group Plc
Manchester City Council,Chief Executives,Postage,14.05.2015,5100792063,"26,438.99",Royal Mail Group Plc
Manchester City Council,Chief Executives,Postage,14.05.2015,1904627473,"1,238.93",Royal Mail Group Plc
Manchester City Council,Chief Executives,Printing,14.05.2015,5100790663,"1,178.00",Hudson & Pearson
Manchester City Council,Chief Executives,Printing,14.05.2015,5100790664,642.00,Hudson & Pearson
Manchester City Council,Adult Social Care,Private Finance and Public Private partnership initiatives,14.05.2015,5100792210,"45,949.64",NU3PS
Manchester City Council,Adult Social Care,Private Finance and Public Private partnership initiatives,14.05.2015,5100792210,"21,989.31",NU3PS
Manchester City Council,Adult Social Care,Private Finance and Public Private partnership initiatives,14.05.2015,5100792210,"4,669.19",NU3PS
Manchester City Council,Adult Social Care,Professional fees,14.05.2015,1904634534,706.00,Alere Toxicology Plc
Manchester City Council,Environment and Operations,Professional fees,14.05.2015,5100792024,"3,197.55",Redacted Personal Information
Manchester City Council,Chief Executives,Professional fees,14.05.2015,5100791698,"12,250.00",Trinity Mirror NW2 Ltd
Manchester City Council,Manchester Leisure,Professional fees,14.05.2015,5100792150,"21,604.03",SMG (Europe) Ltd
Manchester City Council,Adult Social Care,Rents,14.05.2015,5100792161,568.77,B & A Properties
Manchester City Council,Corporate Services,Rents,14.05.2015,5100792019,"32,366.25",CEK Chariable Trust
Manchester City Council,Corporate Services,Storage Costs,14.05.2015,5100791350,"1,204.89",Data Space Limited
Manchester City Council,Adult Social Care,Supporting People Payments,14.05.2015,5100791870,"3,611.11",Contact Hostel
Manchester City Council,Adult Social Care,Supporting People Payments,14.05.2015,5100791919,"3,413.79",Stockport Learning Disability
Manchester City Council,Adult Social Care,Third party payments relating to Voluntary Organisations,14.05.2015,5100790637,"3,712.50",Chorlton Good Neighbours
Manchester City Council,Adult Social Care,Third party payments relating to Voluntary Organisations,14.05.2015,5100791910,"1,062.08",MCCR
Manchester City Council,Adult Social Care,Third party payments relating to Voluntary Organisations,14.05.2015,5100791908,947.00,MCCR
Manchester City Council,Adult Social Care,Third party payments relating to Voluntary Organisations,14.05.2015,5100792092,"58,497.35",Barnardo's North West
Manchester City Council,Adult Social Care,Third party payments relating to Voluntary Organisations,14.05.2015,5100792090,"49,831.07",Barnardo's North West
Manchester City Council,Adult Social Care,Third party payments relating to Voluntary Organisations,14.05.2015,5100792091,"37,560.54",Barnardo's North West
Manchester City Council,Adult Social Care,Third party payments relating to Voluntary Organisations,14.05.2015,5100790686,525.00,Henshaws Society For Blind People
Manchester City Council,Adult Social Care,Third party payments relating to Voluntary Organisations,14.05.2015,5100790525,"1,950.00",Didsbury Good Neighbours Ltd
Manchester City Council,Adult Social Care,Third party payments relating to Voluntary Organisations,14.05.2015,5100790647,"2,625.00",Wai Yin Society
Manchester City Council,Adult Social Care,Third party payments relating to Voluntary Organisations,14.05.2015,5100790646,"2,250.00",Wai Yin Society
Manchester City Council,Adult Social Care,Third party payments relating to Voluntary Organisations,14.05.2015,5100790783,"1,500.00",George House Trust
Manchester City Council,Adult Social Care,Third party payments relating to Voluntary Organisations,14.05.2015,5100790785,"1,500.00",George House Trust
Manchester City Council,Adult Social Care,Third party payments relating to Voluntary Organisations,14.05.2015,5100791747,"5,052.75",Great Places Housing Association
Manchester City Council,Adult Social Care,Third party payments relating to Voluntary Organisations,14.05.2015,5100792125,"3,368.50",Great Places Housing Association
Manchester City Council,Adult Social Care,Third party payments relating to Voluntary Organisations,14.05.2015,5100791941,"5,181.00",Manchester Carers Centre
Manchester City Council,Adult Social Care,Third party payments relating to Voluntary Organisations,14.05.2015,5100791936,"4,430.75",Manchester Carers Centre
Manchester City Council,Adult Social Care,Third party payments relating to Voluntary Organisations,14.05.2015,5100791937,"4,430.75",Manchester Carers Centre
Manchester City Council,Adult Social Care,Third party payments relating to Voluntary Organisations,14.05.2015,5100791928,"1,654.00",Manchester Carers Centre
Manchester City Council,Adult Social Care,Third party payments relating to Voluntary Organisations,14.05.2015,5100791784,900.00,Tree Of Life Centre Wythenshawe
Manchester City Council,Adult Social Care,Third party payments relating to Voluntary Organisations,14.05.2015,5100791785,750.00,Simply Cycling - Wyth Wheelers
Manchester City Council,Adult Social Care,Third party payments relating to Voluntary Organisations,14.05.2015,5100791883,"1,500.00",Somali Adult Social Care Agency
Manchester City Council,Adult Social Care,Third party payments relating to Voluntary Organisations,14.05.2015,5100790550,"1,583.00",Levenshulme Good Neighbours
Manchester City Council,Libraries and Theatres,Training and Development,14.05.2015,5100792185,523.75,North West Employers Ltd
Manchester City Council,Adult Social Care,Training and Development,14.05.2015,5100792186,550.00,North West Employers Ltd
Manchester City Council,Adult Social Care,Transport Coach Hire,14.05.2015,5100791933,"5,904.00",Trafford M B C
Manchester City Council,Adult Social Care,Transport Coach Hire,14.05.2015,5100791974,"-2,160.00",Trafford M B C
Manchester City Council,Adult Social Care,Transport Coach Hire,14.05.2015,5100790566,"6,595.00",T/A TC Travel Svs Ltd
Manchester City Council,Adult Social Care,Transport Coach Hire,14.05.2015,5100792130,"-6,595.00",T/A TC Travel Svs Ltd
Manchester City Council,Hospitality + Trading Services,Vehicle Costs,14.05.2015,5100792118,"1,140.26",Specialist Vehicle rental
Manchester City Council,Hospitality + Trading Services,Vehicle Hire Costs,14.05.2015,5100791972,"3,000.00",John Martin Devine Ltd
Manchester City Council,Chief Executives,Works and associated costs for Land and Buildings,14.05.2015,5100792010,"6,120.00",Mace Ltd
Manchester City Council,Chief Executives,Works and associated costs for Land and Buildings,14.05.2015,5100792160,"16,849.00",Turner & Townsend Cost
Manchester City Council,Chief Executives,Compensation Payments,14.05.2015,1904634529,"1,500.00",Redacted Personal Information
Manchester City Council,Chief Executives,Compensation Payments,14.05.2015,1904636015,595.00,HMCTS (Manchester County Court)
Manchester City Council,Regeneration Finance,Compensation Payments,14.05.2015,1904634519,600.00,Redacted Personal Information
Manchester City Council,Chief Executives,Advertising,15.05.2015,5100792543,"6,931.19",Trinity Mirror NW2 Ltd
Manchester City Council,Chief Executives,Advertising,15.05.2015,5100792543,"6,680.55",Trinity Mirror NW2 Ltd
Manchester City Council,Chief Executives,Agency staff provision,15.05.2015,5100790682,"6,088.00",Deekay Technical Recruitment Ltd
Manchester City Council,Chief Executives,Agency staff provision,15.05.2015,5100792241,"1,035.97",LAW Absolute
Manchester City Council,Chief Executives,Agency staff provision,15.05.2015,5100792249,"26,768.75",SRA Cover Staff Ltd
Manchester City Council,Insurance Fund,Bal of Rsk InsPrem,15.05.2015,1904634513,"4,773.41",Chorlton C.E.Primary School
Manchester City Council,Hospitality + Trading Services,Building Materials for direct delivery,15.05.2015,5100792328,"7,634.20",P.F. Cusack (Tools Supplies) Ltd
Manchester City Council,Hospitality + Trading Services,Building Materials for direct delivery,15.05.2015,5100792328,"3,271.80",P.F. Cusack (Tools Supplies) Ltd
Manchester City Council,Hospitality + Trading Services,Building Materials for direct delivery,15.05.2015,5100792225,817.35,Lafarge Tarmac Trading Ltd
Manchester City Council,Hospitality + Trading Services,Catering Provisions,15.05.2015,1904636504,600.40,Pasta King (Uk) Ltd
Manchester City Council,Hospitality + Trading Services,Catering Provisions,15.05.2015,1904636508,507.35,Pasta King (Uk) Ltd
Manchester City Council,Hospitality + Trading Services,Catering Provisions,15.05.2015,1904636601,"1,500.92",Brake Bros Foodservice Ltd
Manchester City Council,Hospitality + Trading Services,Catering Provisions,15.05.2015,1904636302,721.40,Brake Bros Foodservice Ltd
Manchester City Council,Hospitality + Trading Services,Catering Provisions,15.05.2015,1904636362,639.37,Brake Bros Foodservice Ltd
Manchester City Council,Hospitality + Trading Services,Catering Provisions,15.05.2015,1904636418,577.46,Brake Bros Foodservice Ltd
Manchester City Council,Hospitality + Trading Services,Catering Provisions,15.05.2015,1904636579,551.28,Brake Bros Foodservice Ltd
Manchester City Council,Hospitality + Trading Services,Catering Provisions,15.05.2015,1904636398,546.24,Brake Bros Foodservice Ltd
Manchester City Council,Hospitality + Trading Services,Catering Provisions,15.05.2015,1904636571,534.96,Brake Bros Foodservice Ltd
Manchester City Council,Hospitality + Trading Services,Catering Provisions,15.05.2015,1904636306,526.72,Brake Bros Foodservice Ltd
Manchester City Council,Hospitality + Trading Services,Catering Provisions,15.05.2015,1904636545,508.20,Brake Bros Foodservice Ltd
Manchester City Council,Hospitality + Trading Services,ClothsUniformLaundry,15.05.2015,5100791557,"3,195.00",Arco Group Ltd
Manchester City Council,Environment and Operations,Compensation Payments,15.05.2015,1904625525,"1,000.00",Smith Jones Solicitors
Manchester City Council,Adult Social Care,Contract Cleaning External,15.05.2015,5100792044,"1,000.00",Fishers Cleaning Services Ltd
Manchester City Council,Housing Revenue Account,Council Dwelling Adaptations,15.05.2015,5100792272,"8,155.31",Manchester Working Ltd
Manchester City Council,Environment and Operations,Equipment,15.05.2015,5100791800,783.02,Arco Group Ltd
Manchester City Council,Adult Social Care,Equipment,15.05.2015,5100791452,"1,037.90",Drive Medical Limited
Manchester City Council,Corporate Services,External repairs and maintenance for buildings,15.05.2015,5100791978,"1,401.00",Manchester Working Ltd
Manchester City Council,Housing Revenue Account,External repairs and maintenance for buildings,15.05.2015,5100792400,"11,541.88",Manchester Working Ltd
Manchester City Council,Manchester Leisure,External repairs and maintenance for buildings,15.05.2015,5100791183,595.00,Keebuilders Uk Ltd
Manchester City Council,Manchester Leisure,External repairs and maintenance for buildings,15.05.2015,5100791204,525.00,Keebuilders Uk Ltd
Manchester City Council,Environment and Operations,External repairs and maintenance for buildings,15.05.2015,5100792230,"2,553.97",Continental Landscapes Limited
Manchester City Council,Chief Executives,Funeral and coroner related services,15.05.2015,1904636717,"1,800.00",Redacted Personal Information
Manchester City Council,Chief Executives,Funeral and coroner related services,15.05.2015,5100792353,"6,810.00",University Hospital of South Mcr
Manchester City Council,Hospitality + Trading Services,Goods purchased for resale in Council outlets,15.05.2015,5100792374,788.25,Treasured Memories Ltd
Manchester City Council,Adult Social Care,Grant and subscriptions awarded,15.05.2015,5100791926,"1,414.50",Barlow Moor Community Association
Manchester City Council,Adult Social Care,Grant and subscriptions awarded,15.05.2015,5100792039,"1,414.50",Barlow Moor Community Association
Manchester City Council,Adult Social Care,Grant and subscriptions awarded,15.05.2015,5100791901,"1,133.75",Royal Oak & Baguley Residents Assoc
Manchester City Council,Adult Social Care,Grant and subscriptions awarded,15.05.2015,5100790656,"10,916.24",Manchester Young Lives
Manchester City Council,Adult Social Care,Grant and subscriptions awarded,15.05.2015,5100792181,"2,400.00",House Of Grumpy Ltd
Manchester City Council,Adult Social Care,Grant and subscriptions awarded,15.05.2015,5100792233,"2,424.49",Wai Yin Society
Manchester City Council,Environment and Operations,Grant and subscriptions awarded,15.05.2015,5100790972,"11,980.45",Community Forests Northwest Ltd
Manchester City Council,Adult Social Care,Grant and subscriptions awarded,15.05.2015,5100791039,"4,250.00",Hideaway Youth Project
Manchester City Council,Adult Social Care,Grant and subscriptions awarded,15.05.2015,5100790804,"1,364.33",Anson Cabin Project
Manchester City Council,Environment and Operations,Grant and subscriptions awarded,15.05.2015,1904626895,816.00,Friends of Clayton Park
Manchester City Council,Adult Social Care,Grant and subscriptions awarded,15.05.2015,5100791886,"1,408.94",Youth Project @ Apostles &
Manchester City Council,Adult Social Care,Grant and subscriptions awarded,15.05.2015,5100791891,"1,408.85",Youth Project @ Apostles &
Manchester City Council,Adult Social Care,Grant and subscriptions awarded,15.05.2015,5100792184,"1,333.37",N-Gage Project
Manchester City Council,Adult Social Care,Grant and subscriptions awarded,15.05.2015,5100792134,"1,333.33",N-Gage Project
Manchester City Council,Adult Social Care,Grant and subscriptions awarded,15.05.2015,5100791182,631.25,Street League
Manchester City Council,Regeneration Finance,Grant and subscriptions awarded,15.05.2015,1904634514,950.00,Mancunian Way
Manchester City Council,Regeneration Finance,Grant Payments,15.05.2015,5100792476,"9,167.33",Harpurhey Neighbourhood Project
Manchester City Council,Environment and Operations,Grounds Maintenance,15.05.2015,5100790658,"1,800.00",Groundwork Landscapes Ltd
Manchester City Council,Environment and Operations,Grounds Maintenance,15.05.2015,5100790660,950.00,Groundwork Landscapes Ltd
Manchester City Council,Environment and Operations,Grounds Maintenance,15.05.2015,5100792379,"8,659.91",Wythenshawe Community Housing Group
Manchester City Council,Environment and Operations,Grounds Maintenance,15.05.2015,5100792207,"8,587.95",Wythenshawe Community Housing Group
Manchester City Council,Hospitality + Trading Services,Hire of Machinery,15.05.2015,5100792276,"1,038.50",R & M Developments Ltd
Manchester City Council,Manchester Leisure,Hire of Machinery,15.05.2015,5100790659,750.00,Groundwork Landscapes Ltd
Manchester City Council,Hospitality + Trading Services,Hire of Machinery,15.05.2015,5100792566,722.70,Mastacab LLP
Manchester City Council,Insurance Fund,Househld Ins Premium,15.05.2015,1904625526,"9,268.69",Zurich Municipal
Manchester City Council,Adult Social Care,I T Provision,15.05.2015,5100791534,"1,079.22",Computerland Uk Ltd
Manchester City Council,Manchester Leisure,I T Provision,15.05.2015,5100791047,"1,140.00",Bleep 2000 (Computers) Ltd
Manchester City Council,Chief Executives,I T Provision,15.05.2015,5100792371,"2,400.00",Advanced Legal Solutions Ltd
Manchester City Council,Hospitality + Trading Services,I T Provision,15.05.2015,5100790776,"74,725.00",Mouchel Limited
Manchester City Council,Manchester Leisure,I T Provision,15.05.2015,5100790800,745.18,Xerox Global Outsourcing
Manchester City Council,Corporate Services,I T Provision,15.05.2015,5100791022,520.00,NSC LegacyData Solutions Ltd
Manchester City Council,Manchester Leisure,I T Provision,15.05.2015,5100790950,"2,520.00",Figment Productions Limited
Manchester City Council,Insurance Fund,Insurance,15.05.2015,5100792239,"7,459.07",Zurich Municipal
Manchester City Council,Hospitality + Trading Services,Internal Repairs and Maintenance for buildings,15.05.2015,5100791935,"35,046.56",Manchester Working Ltd
Manchester City Council,Hospitality + Trading Services,Internal Repairs and Maintenance for buildings,15.05.2015,5100792213,"26,764.38",Manchester Working Ltd
Manchester City Council,Adult Social Care,Internal Repairs and Maintenance for buildings,15.05.2015,5100792387,"64,896.96",Manchester Working Ltd
Manchester City Council,Insurance Fund,Misc Insnce Clms Inc,15.05.2015,1904625526,"-1,748.81",Zurich Municipal
Manchester City Council,Hospitality + Trading Services,Other Insurance,15.05.2015,5100792325,"2,000.00",Zurich Insurance
Manchester City Council,Adult Social Care,Payments for services,15.05.2015,5100792412,"2,860.00",Cambian Childcare Ltd
Manchester City Council,Adult Social Care,Payments for services,15.05.2015,5100792406,"2,600.00",Cambian Childcare Ltd
Manchester City Council,Adult Social Care,Payments for services,15.05.2015,5100792404,"1,950.00",Cambian Childcare Ltd
Manchester City Council,Adult Social Care,Payments for services,15.05.2015,5100792337,"231,243.18",Standwalk Ltd
Manchester City Council,Adult Social Care,Payments for services,15.05.2015,5100791751,"25,060.00",St John Vianney School
Manchester City Council,Adult Social Care,Payments for services,15.05.2015,5100791734,"3,316.75",St John Vianney School
Manchester City Council,Adult Social Care,Payments for services,15.05.2015,5100792529,-795.00,Prime Care Ambulance Service
Manchester City Council,Adult Social Care,Payments for services,15.05.2015,5100791744,"2,543.10",IndePendent Business Services Ltd
Manchester City Council,Adult Social Care,Payments for services,15.05.2015,5100792493,"3,128.10",Beechkeys Ltd
Manchester City Council,Adult Social Care,Payments for services,15.05.2015,5100792327,750.00,Faith in Families
Manchester City Council,Adult Social Care,Payments for services,15.05.2015,5100792329,750.00,Faith in Families
Manchester City Council,Adult Social Care,Payments for services,15.05.2015,5100792335,750.00,Faith in Families
Manchester City Council,Hospitality + Trading Services,Payments to Sub-Contractors,15.05.2015,5100791579,"24,540.75",Kenny Bros (Civil Eng) Ltd
Manchester City Council,Hospitality + Trading Services,Payments to Sub-Contractors,15.05.2015,5100792231,650.00,Kenny Bros (Civil Eng) Ltd
Manchester City Council,Adult Social Care,Personal needs of client,15.05.2015,5100791768,617.50,Big Stars Play Club
Manchester City Council,Corporate Services,Postage,15.05.2015,5100792309,"7,324.73",Royal Mail Group Plc
Manchester City Council,Corporate Services,Postage,15.05.2015,1904634509,"2,090.29",Royal Mail Group Plc
Manchester City Council,Corporate Services,Postage,15.05.2015,1904634508,"1,972.47",Royal Mail Group Plc
Manchester City Council,Corporate Services,Postage,15.05.2015,5100792315,"-7,324.73",Royal Mail Group Plc
Manchester City Council,Adult Social Care,Private Finance and Public Private partnership initiatives,15.05.2015,5100791456,"72,608.14",NU3PS
Manchester City Council,Adult Social Care,Professional fees,15.05.2015,5100792036,"14,000.00",Places for People Homes Limited
Manchester City Council,Corporate Services,Professional fees,15.05.2015,5100792455,"18,000.00",Price Waterhouse Coopers LLP
Manchester City Council,Adult Social Care,Professional fees,15.05.2015,5100790971,"119,254.00",Cruden Group Ltd
Manchester City Council,Adult Social Care,Professional fees,15.05.2015,5100790971,"25,979.00",Cruden Group Ltd
Manchester City Council,Corporate Services,Professional fees,15.05.2015,5100791637,"4,466.00",Rider Levett Bucknall UK Ltd
Manchester City Council,Adult Social Care,Professional fees,15.05.2015,5100792544,"16,454.50",Time Specialist Support Ltd
Manchester City Council,Corporate Services,Professional fees,15.05.2015,5100790730,"2,074.91",Keelagher Okey Associates Ltd t/a
Manchester City Council,Corporate Services,Professional fees,15.05.2015,5100790737,"1,058.50",Keelagher Okey Associates Ltd t/a
Manchester City Council,Corporate Services,Professional fees,15.05.2015,5100790725,570.00,Keelagher Okey Associates Ltd t/a
Manchester City Council,Chief Executives,Publications,15.05.2015,5100791260,876.00,Thompson Reuters
Manchester City Council,Adult Social Care,Rents,15.05.2015,5100792445,"4,734.25",B & A Properties
Manchester City Council,Adult Social Care,Rents,15.05.2015,5100792503,"-2,856.12",Eastlands Homes Partnership Ltd
Manchester City Council,Adult Social Care,Rents,15.05.2015,5100792505,"-2,856.12",Eastlands Homes Partnership Ltd
Manchester City Council,Adult Social Care,Subsistence and Conference Expenses,15.05.2015,5100792235,"2,400.00",North West Media Ltd
Manchester City Council,Adult Social Care,Supporting People Payments,15.05.2015,5100791329,"4,592.24",People First Housing Association
Manchester City Council,Adult Social Care,Supporting People Payments,15.05.2015,5100791388,"35,500.00",The Salvation Army
Manchester City Council,Adult Social Care,Supporting People Payments,15.05.2015,5100792432,"2,313.00",Great Places Housing Association
Manchester City Council,Environment and Operations,Testing Fees,15.05.2015,5100792351,"1,780.00",County Scientific Services
Manchester City Council,Environment and Operations,Testing Fees,15.05.2015,5100792348,"-1,780.00",County Scientific Services
Manchester City Council,Adult Social Care,Third party payments relating to Voluntary Organisations,15.05.2015,5100790953,"3,075.00",Assist
Manchester City Council,Adult Social Care,Third party payments relating to Voluntary Organisations,15.05.2015,5100792004,"1,650.00",Barlow Moor Community Association
Manchester City Council,Adult Social Care,Third party payments relating to Voluntary Organisations,15.05.2015,5100792005,"1,650.00",Barlow Moor Community Association
Manchester City Council,Adult Social Care,Third party payments relating to Voluntary Organisations,15.05.2015,5100791341,"8,410.50",People First Housing Association
Manchester City Council,Adult Social Care,Third party payments relating to Voluntary Organisations,15.05.2015,5100791279,"1,950.00",People First Housing Association
Manchester City Council,Adult Social Care,Third party payments relating to Voluntary Organisations,15.05.2015,5100791053,773.50,Irish Community Care
Manchester City Council,Adult Social Care,Third party payments relating to Voluntary Organisations,15.05.2015,5100790413,"1,500.00",Afro Carribean Care Group
Manchester City Council,Adult Social Care,Third party payments relating to Voluntary Organisations,15.05.2015,5100790714,765.00,Afro Carribean Care Group
Manchester City Council,Adult Social Care,Third party payments relating to Voluntary Organisations,15.05.2015,5100791834,"27,100.00",Black Health Agency
Manchester City Council,Adult Social Care,Third party payments relating to Voluntary Organisations,15.05.2015,5100792152,"8,995.00",Wai Yin Society
Manchester City Council,Adult Social Care,Third party payments relating to Voluntary Organisations,15.05.2015,5100791396,"4,275.00",Caritas Diocese of Salford
Manchester City Council,Adult Social Care,Third party payments relating to Voluntary Organisations,15.05.2015,5100785170,"117,398.00",Central Manchester University Hosp
Manchester City Council,Adult Social Care,Third party payments relating to Voluntary Organisations,15.05.2015,5100791064,"110,505.00",Central Manchester University Hosp
Manchester City Council,Adult Social Care,Third party payments relating to Voluntary Organisations,15.05.2015,5100785182,"109,270.00",Central Manchester University Hosp
Manchester City Council,Adult Social Care,Third party payments relating to Voluntary Organisations,15.05.2015,5100792227,"-92,136.09",Central Manchester University Hosp
Manchester City Council,Adult Social Care,Third party payments relating to Voluntary Organisations,15.05.2015,5100792240,"-110,505.00",Central Manchester University Hosp
Manchester City Council,Adult Social Care,Third party payments relating to Voluntary Organisations,15.05.2015,5100785174,"-134,290.32",Central Manchester University Hosp
Manchester City Council,Adult Social Care,Third party payments relating to Voluntary Organisations,15.05.2015,5100791963,"1,520.25",4CT Limited
Manchester City Council,Adult Social Care,Third party payments relating to Voluntary Organisations,15.05.2015,5100791025,600.00,Manchester Black Health Forum
Manchester City Council,Adult Social Care,Third party payments relating to Voluntary Organisations,15.05.2015,5100790731,"6,396.00",Manchester Mind
Manchester City Council,Adult Social Care,Third party payments relating to Voluntary Organisations,15.05.2015,5100790728,"5,373.25",Manchester Mind
Manchester City Council,Adult Social Care,Third party payments relating to Voluntary Organisations,15.05.2015,5100790770,666.50,The Generation Project
Manchester City Council,GMIST (Greater Mcr Integrated),Third party payments to other Local Authorities,15.05.2015,5100792498,"493,000.00",Stockport Metropolitan Borough
Manchester City Council,GMIST (Greater Mcr Integrated),Third party payments to other Local Authorities,15.05.2015,5100792499,"333,500.00",Trafford M.B.C.
Manchester City Council,Chief Executives,Training and Development,15.05.2015,5100792442,650.00,The Manchester College
Manchester City Council,Chief Executives,Training and Development,15.05.2015,5100792510,-650.00,The Manchester College
Manchester City Council,Adult Social Care,Training and Development,15.05.2015,5100792514,881.05,Pearson Education Ltd
Manchester City Council,Manchester Leisure,Transport Coach Hire,15.05.2015,5100792408,"29,100.00",Belle Vue Manchester
Manchester City Council,Manchester Leisure,Transport Coach Hire,15.05.2015,5100792407,"13,140.00",Belle Vue Manchester
Manchester City Council,Hospitality + Trading Services,Vehicle Fuel Costs,15.05.2015,5100792173,"16,521.39",Carlton Fuels Ltd
Manchester City Council,Hospitality + Trading Services,Vehicle Fuel Costs,15.05.2015,5100792316,"15,993.60",Carlton Fuels Ltd
Manchester City Council,Hospitality + Trading Services,Vehicle Fuel Costs,15.05.2015,5100792306,965.40,Carlton Fuels Ltd
Manchester City Council,Hospitality + Trading Services,Vehicle Hire Costs,15.05.2015,5100792350,"7,044.80",Fleet Dynamic Consultancy Ltd
Manchester City Council,Hospitality + Trading Services,Vehicle Hire Costs,15.05.2015,5100792364,-635.00,Fleet Dynamic Consultancy Ltd
Manchester City Council,Hospitality + Trading Services,Vehicle Hire Costs,15.05.2015,5100792527,808.00,Dawson Rentals Sweepers
Manchester City Council,Hospitality + Trading Services,Vehicle Repairs,15.05.2015,5100790460,"4,125.97",Manchester Van Hire Ltd
Manchester City Council,Hospitality + Trading Services,Vehicle Repairs,15.05.2015,5100792513,"3,400.02",Winners Contract Hire Ltd
Manchester City Council,Hospitality + Trading Services,Vehicle Repairs,15.05.2015,5100791783,808.00,Dawson Rentals Sweepers
Manchester City Council,Hospitality + Trading Services,Vehicle Repairs,15.05.2015,5100792524,-808.00,Dawson Rentals Sweepers
Manchester City Council,Childrens Services,Works and associated costs for Land and Buildings,15.05.2015,5100790795,"92,835.00",ISG Construction Limited
Manchester City Council,Manchester Leisure,Works and associated costs for Land and Buildings,15.05.2015,5100792031,"870,965.03",Balfour Beatty Regional
Manchester City Council,Manchester Leisure,Works and associated costs for Land and Buildings,15.05.2015,5100792492,"768,611.00",Balfour Beatty Regional
Manchester City Council,Manchester Leisure,Works and associated costs for Land and Buildings,15.05.2015,5100792031,"10,792.71",Balfour Beatty Regional
Manchester City Council,Manchester Leisure,Works and associated costs for Land and Buildings,15.05.2015,5100792035,"-768,611.00",Balfour Beatty Regional
Manchester City Council,Chief Executives,Works and associated costs for Land and Buildings,15.05.2015,5100791181,"16,348.00",Mike Stoane Lighting Ltd
Manchester City Council,Housing General Fund,Works and associated costs for Land and Buildings,15.05.2015,5100790793,"140,286.61",Keepmoat Regeneration Ltd
Manchester City Council,Corporate Services,Works and associated costs for Land and Buildings,15.05.2015,5100791959,"1,994.00",Manchester Working Ltd
Manchester City Council,Corporate Services,Works and associated costs for Land and Buildings,15.05.2015,5100790747,"13,644.00",Morrison Facilities Services Ltd
Manchester City Council,Chief Executives,Works and associated costs for Land and Buildings,15.05.2015,5100792307,"14,574.00",Principal Agent Management Ltd
Manchester City Council,Adult Social Care,Compensation Payments,15.05.2015,1904619417,"1,125.62",Susan McColl & Associates
Manchester City Council,Adult Social Care,Compensation Payments,15.05.2015,1904636753,"2,510.00",HMCTS (Manchester County Court)
Manchester City Council,Adult Social Care,Compensation Payments,15.05.2015,1904636753,"2,055.00",HMCTS (Manchester County Court)
Manchester City Council,Chief Executives,Compensation Payments,15.05.2015,1904636753,610.00,HMCTS (Manchester County Court)
Manchester City Council,Adult Social Care,Compensation Payments,15.05.2015,1904619422,"78,472.66",Acumension Ltd
Manchester City Council,Adult Social Care,Compensation Payments,15.05.2015,1904619422,"51,527.34",Acumension Ltd
Manchester City Council,Adult Social Care,Compensation Payments,15.05.2015,1904628995,"9,000.00",Switalskis Solicitors
Manchester City Council,Adult Social Care,Adult Placements,18.05.2015,5100792627,"2,960.00",Redacted Personal Information
Manchester City Council,Adult Social Care,Agency staff provision,18.05.2015,5100792706,737.80,Reed Employment Plc
Manchester City Council,Chief Executives,Agency staff provision,18.05.2015,5100792706,"6,065.52",Reed Employment Plc
Manchester City Council,Chief Executives,Agency staff provision,18.05.2015,5100792706,"1,617.65",Reed Employment Plc
Manchester City Council,Chief Executives,Agency staff provision,18.05.2015,5100792708,"1,617.65",Reed Employment Plc
Manchester City Council,Adult Social Care,Agency staff provision,18.05.2015,5100792666,"2,469.60",Eden Brown Ltd
Manchester City Council,Adult Social Care,Agency staff provision,18.05.2015,5100792659,"1,734.94",Eden Brown Ltd
Manchester City Council,Adult Social Care,Agency staff provision,18.05.2015,5100792665,"1,691.06",Eden Brown Ltd
Manchester City Council,Adult Social Care,Agency staff provision,18.05.2015,5100792668,"1,519.28",Eden Brown Ltd
Manchester City Council,Adult Social Care,Agency staff provision,18.05.2015,5100792657,"1,309.14",Eden Brown Ltd
Manchester City Council,Adult Social Care,Agency staff provision,18.05.2015,5100792658,727.30,Eden Brown Ltd
Manchester City Council,Adult Social Care,Agency staff provision,18.05.2015,5100792667,651.00,Eden Brown Ltd
Manchester City Council,Corporate Services,Agency staff provision,18.05.2015,5100792660,"6,300.36",Eden Brown Ltd
Manchester City Council,Chief Executives,Agency staff provision,18.05.2015,5100792688,"18,480.67",Eden Brown Ltd
Manchester City Council,Adult Social Care,Agency staff provision,18.05.2015,5100791331,"2,132.13",Medicare First
Manchester City Council,Adult Social Care,Agency staff provision,18.05.2015,5100792646,814.10,Bennett Staff Bureau
Manchester City Council,Chief Executives,Agency staff provision,18.05.2015,5100792646,"1,113.15",Bennett Staff Bureau
Manchester City Council,Chief Executives,Agency staff provision,18.05.2015,5100792646,916.30,Bennett Staff Bureau
Manchester City Council,Chief Executives,Agency staff provision,18.05.2015,5100792646,816.42,Bennett Staff Bureau
Manchester City Council,Hospitality + Trading Services,Agency staff provision,18.05.2015,5100791319,"1,461.60",Aptus Personnel Ltd t/a Jark
Manchester City Council,Chief Executives,Agency staff provision,18.05.2015,5100791319,621.18,Aptus Personnel Ltd t/a Jark
Manchester City Council,Hospitality + Trading Services,Agency staff provision,18.05.2015,5100792763,"1,415.04",Hays Personnel
Manchester City Council,Environment and Operations,Agency staff provision,18.05.2015,5100792771,861.00,Hays Personnel
Manchester City Council,Chief Executives,Agency staff provision,18.05.2015,5100792767,"3,105.00",Hays Personnel
Manchester City Council,Chief Executives,Agency staff provision,18.05.2015,5100792765,"2,192.06",Hays Personnel
Manchester City Council,Chief Executives,Agency staff provision,18.05.2015,5100792762,"1,500.00",Hays Personnel
Manchester City Council,Regeneration Finance,Agency staff provision,18.05.2015,5100792761,"1,038.97",Hays Personnel
Manchester City Council,Chief Executives,Agency staff provision,18.05.2015,5100791339,"3,173.61",Routes Healthcare (North) Ltd
Manchester City Council,Adult Social Care,Agency staff provision,18.05.2015,5100790872,"1,195.32",P S Recruitment Specialists Ltd
Manchester City Council,Chief Executives,Agency staff provision,18.05.2015,5100790872,"1,073.52",P S Recruitment Specialists Ltd
Manchester City Council,Adult Social Care,Agency staff provision,18.05.2015,5100791794,774.76,Semester Recruitment Ltd
Manchester City Council,Adult Social Care,Agency staff provision,18.05.2015,5100791798,671.44,Semester Recruitment Ltd
Manchester City Council,Chief Executives,Agency staff provision,18.05.2015,5100791334,"15,828.80",247 Professional Health
Manchester City Council,Adult Social Care,Agency staff provision,18.05.2015,5100791323,965.17,Barker Ross Health & Social Care
Manchester City Council,Chief Executives,Agency staff provision,18.05.2015,5100791323,"33,002.14",Barker Ross Health & Social Care
Manchester City Council,Chief Executives,Agency staff provision,18.05.2015,5100791324,"1,226.40",HBS (UK) Cleaning Services Ltd
Manchester City Council,Regeneration Finance,Agency staff provision,18.05.2015,1904628994,800.00,UBM (UK) Ltd
Manchester City Council,Hospitality + Trading Services,Building Materials for direct delivery,18.05.2015,5100792746,"5,770.00",Marshalls Mono Ltd
Manchester City Council,Hospitality + Trading Services,Building Materials for direct delivery,18.05.2015,5100792747,"5,770.00",Marshalls Mono Ltd
Manchester City Council,Hospitality + Trading Services,Building Materials for direct delivery,18.05.2015,5100791243,"8,970.00",Earth Anchors Ltd
Manchester City Council,Libraries and Theatres,Building Materials for direct delivery,18.05.2015,5100792731,"1,150.00",Springbank Flowers
Manchester City Council,Environment and Operations,Building Materials for direct delivery,18.05.2015,5100791793,"1,850.00",A P Broome Landscapes Ltd
Manchester City Council,Environment and Operations,Building Materials for direct delivery,18.05.2015,5100791816,"1,475.00",A P Broome Landscapes Ltd
Manchester City Council,Environment and Operations,Building Materials for direct delivery,18.05.2015,5100791792,"1,310.00",A P Broome Landscapes Ltd
Manchester City Council,Childrens Services,Building Works,18.05.2015,5100791269,"196,869.62",Diocese of Salford
Manchester City Council,Chief Executives,Building Works,18.05.2015,5100791871,"54,390.00",CONGENICA
Manchester City Council,Chief Executives,Building Works,18.05.2015,5100791417,"56,923.00",Alchemy Pharmatech Limited
Manchester City Council,Hospitality + Trading Services,Cleaning Equipment and Materials,18.05.2015,5100792685,509.70,Alliance Disposables Ltd
Manchester City Council,Hospitality + Trading Services,ClothsUniformLaundry,18.05.2015,5100791070,"2,163.50",Slater Menswear
Manchester City Council,Hospitality + Trading Services,Compensation Payments,18.05.2015,1904625331,"1,590.00",Imzi Communications
Manchester City Council,Hospitality + Trading Services,Compensation Payments,18.05.2015,1904624545,974.80,Hoysons Jewellers Ltd
Manchester City Council,Environment and Operations,Compensation Payments,18.05.2015,1904636198,"2,100.00",Express Solicitors
Manchester City Council,Environment and Operations,Compensation Payments,18.05.2015,1904627476,"1,000.00",Express Solicitors
Manchester City Council,Environment and Operations,Compensation Payments,18.05.2015,1904636200,"6,000.00",Harvey Roberts
Manchester City Council,Environment and Operations,Compensation Payments,18.05.2015,1904636749,600.00,Department For Work & Pensions
Manchester City Council,Environment and Operations,Compensation Payments,18.05.2015,1904636721,"19,150.00",Redacted Personal Information
Manchester City Council,Environment and Operations,Compensation Payments,18.05.2015,1904636723,"2,870.63",Redacted Personal Information
Manchester City Council,Housing Revenue Account,Council Dwelling Adaptations,18.05.2015,5100791068,945.00,Life Environmental Services
Manchester City Council,Regeneration Finance,Equipment,18.05.2015,5100792344,585.00,Canford Audio Plc
Manchester City Council,Hospitality + Trading Services,Equipment,18.05.2015,5100792750,"1,680.00",Egan Reid Stationery Co Ltd
Manchester City Council,Hospitality + Trading Services,Equipment,18.05.2015,5100791614,"4,255.00",A Venning Ltd
Manchester City Council,Adult Social Care,Equipment,18.05.2015,5100792418,"1,227.00",Bentley Fielden Ltd
Manchester City Council,Adult Social Care,Equipment,18.05.2015,5100792417,800.00,Bentley Fielden Ltd
Manchester City Council,Regeneration Finance,Equipment,18.05.2015,5100792585,"1,402.85",Data Space Limited
Manchester City Council,Regeneration Finance,Equipment,18.05.2015,5100792584,"1,226.80",Data Space Limited
Manchester City Council,Hospitality + Trading Services,Equipment,18.05.2015,5100792613,"17,510.03",Ascot Wholesale Ltd
Manchester City Council,Manchester Leisure,Grant and subscriptions awarded,18.05.2015,5100791274,"5,000.00",Royal Exchange Theatre Co Ltd
Manchester City Council,Regeneration Finance,Grant and subscriptions awarded,18.05.2015,5100791255,"13,066.00",Bury College
Manchester City Council,Adult Social Care,Grant and subscriptions awarded,18.05.2015,5100792237,"1,452.95",Anson Cabin Project
Manchester City Council,Adult Social Care,Grant and subscriptions awarded,18.05.2015,5100792236,"1,452.55",Anson Cabin Project
Manchester City Council,Adult Social Care,Grant and subscriptions awarded,18.05.2015,5100791873,"14,250.00",The Mustard Tree
Manchester City Council,Regeneration Finance,Grant and subscriptions awarded,18.05.2015,1904636195,"3,180.00",Community Minded Ltd
Manchester City Council,Regeneration Finance,Grant Payments,18.05.2015,5100792639,"5,725.00",Turkey Lane & Monsall Neighbourhood
Manchester City Council,Manchester Leisure,Grounds Maintenance,18.05.2015,5100791326,"2,670.00",Groundwork Landscapes Ltd
Manchester City Council,Corporate Services,I T Provision,18.05.2015,5100791678,"2,391.16",Northgate Information Solutions Ltd
Manchester City Council,Chief Executives,Infrastructure Fees,18.05.2015,5100792706,"4,657.50",Reed Employment Plc
Manchester City Council,Chief Executives,Infrastructure Fees,18.05.2015,5100792706,"4,235.28",Reed Employment Plc
Manchester City Council,Chief Executives,Infrastructure Fees,18.05.2015,5100792708,"2,647.05",Reed Employment Plc
Manchester City Council,Chief Executives,Infrastructure Fees,18.05.2015,5100792708,"2,587.52",Reed Employment Plc
Manchester City Council,Chief Executives,Infrastructure Fees,18.05.2015,5100792769,"2,000.00",Hays Personnel
Manchester City Council,Chief Executives,Infrastructure Fees,18.05.2015,5100791616,"6,440.00",Nigel Frank International
Manchester City Council,Insurance Fund,Insurance,18.05.2015,1904636722,850.00,Redacted Personal Information
Manchester City Council,Adult Social Care,Internal Repairs and Maintenance for buildings,18.05.2015,5100791776,"1,223.57",Chiltern Invadex Ltd
Manchester City Council,Hospitality + Trading Services,Internal Repairs and Maintenance for buildings,18.05.2015,5100792729,"3,364.44",Sitewatch Fire & Surveillance Ltd
Manchester City Council,Hospitality + Trading Services,Internal Repairs and Maintenance for buildings,18.05.2015,5100792722,877.80,Sitewatch Fire & Surveillance Ltd
Manchester City Council,Manchester Leisure,Library Materials Acquisition,18.05.2015,1904628977,"1,724.67",Martin Lavell Limited
Manchester City Council,Adult Social Care,Payments for services,18.05.2015,5100792158,"4,623.56",Rossendale School Priory
Manchester City Council,Adult Social Care,Payments for services,18.05.2015,5100792640,"7,128.00",TTP Communities Ltd
Manchester City Council,Adult Social Care,Payments for services,18.05.2015,5100792642,"2,640.00",TTP Communities Ltd
Manchester City Council,Adult Social Care,Payments for services,18.05.2015,5100792641,"1,848.00",TTP Communities Ltd
Manchester City Council,Adult Social Care,Personal needs of client,18.05.2015,5100792294,"1,989.00",Kirton Health Care Group Ltd
Manchester City Council,Adult Social Care,Personal needs of client,18.05.2015,5100791634,683.76,NRS Healthcare
Manchester City Council,Corporate Services,Printing,18.05.2015,5100792148,555.00,Mail Solutions
Manchester City Council,Chief Executives,Printing,18.05.2015,5100792146,550.00,Mail Solutions
Manchester City Council,Chief Executives,Printing,18.05.2015,5100791857,"1,800.00",S G World
Manchester City Council,Chief Executives,Printing,18.05.2015,5100792562,"4,890.00",Tangent Print service
Manchester City Council,Hospitality + Trading Services,Professional fees,18.05.2015,5100792171,"1,800.00",British Standards Institution
Manchester City Council,Chief Executives,Professional fees,18.05.2015,5100792342,"2,936.00",Clearview Event Services Limited
Manchester City Council,Corporate Services,Professional fees,18.05.2015,5100792460,980.00,Airborne Environmental Consultants
Manchester City Council,Manchester Leisure,Professional fees,18.05.2015,5100791372,"2,800.00",Axis Graphic Design Ltd
Manchester City Council,Environment and Operations,Professional fees,18.05.2015,5100790171,661.89,Aecom Infrastructure & Environment
Manchester City Council,Regeneration Finance,Professional fees,18.05.2015,5100791226,"1,056.00",Creative Concern
Manchester City Council,Manchester Leisure,Professional fees,18.05.2015,5100791570,"6,050.00","Knight, Kavanagh & Page"
Manchester City Council,Corporate Services,Professional fees,18.05.2015,5100791671,"49,641.92",Jacobs UK Ltd
Manchester City Council,Regeneration Finance,Professional fees,18.05.2015,5100792624,791.67,Action for Sustainable Living Ltd
Manchester City Council,Adult Social Care,Professional fees,18.05.2015,5100791737,"3,300.00",Index Software Ltd
Manchester City Council,Chief Executives,Professional fees,18.05.2015,5100792193,"22,861.46",Actinista Limited
Manchester City Council,Libraries and Theatres,Public Transport,18.05.2015,5100790830,"5,309.39",Greater Manchester Police
Manchester City Council,Hospitality + Trading Services,Purchase of stores for re-distribution,18.05.2015,5100792705,"2,349.12",Marshalls Mono Ltd
Manchester City Council,Hospitality + Trading Services,Purchase of stores for re-distribution,18.05.2015,5100792684,"1,314.00",Marshalls Mono Ltd
Manchester City Council,Hospitality + Trading Services,Refuse Collection,18.05.2015,5100792581,"21,133.10",Ocean Contract Cleaning Ltd
Manchester City Council,Adult Social Care,Rents,18.05.2015,5100792580,"1,339.55",Northern Way Properties Limited
Manchester City Council,Adult Social Care,Rents,18.05.2015,5100792577,"-1,339.55",Northern Way Properties Limited
Manchester City Council,Hospitality + Trading Services,Security,18.05.2015,5100792721,"387,033.39",Group 4 Total Security Ltd T/A G4S
Manchester City Council,Libraries and Theatres,Subsistence and Conference Expenses,18.05.2015,5100791670,885.00,Serco Limited
Manchester City Council,Adult Social Care,Supporting People Payments,18.05.2015,5100791342,"11,272.16",People First Housing Association
Manchester City Council,Adult Social Care,Supporting People Payments,18.05.2015,5100792574,"1,255.41",Anchor Trust
Manchester City Council,Adult Social Care,Supporting People Payments,18.05.2015,5100792574,930.00,Anchor Trust
Manchester City Council,Adult Social Care,Supporting People Payments,18.05.2015,5100792713,"7,331.92",SLC Paragon
Manchester City Council,Adult Social Care,Supporting People Payments,18.05.2015,5100792142,"6,576.60",SLC Paragon
Manchester City Council,Adult Social Care,Supporting People Payments,18.05.2015,5100792713,"6,567.60",SLC Paragon
Manchester City Council,Adult Social Care,Supporting People Payments,18.05.2015,5100792137,"6,293.12",SLC Paragon
Manchester City Council,Adult Social Care,Supporting People Payments,18.05.2015,5100792140,"4,629.07",SLC Paragon
Manchester City Council,Adult Social Care,Supporting People Payments,18.05.2015,5100792713,"3,467.05",SLC Paragon
Manchester City Council,Adult Social Care,Supporting People Payments,18.05.2015,5100790245,"-3,467.05",SLC Paragon
Manchester City Council,Adult Social Care,Supporting People Payments,18.05.2015,5100792720,"-3,467.05",SLC Paragon
Manchester City Council,Adult Social Care,Supporting People Payments,18.05.2015,5100790245,"-6,567.60",SLC Paragon
Manchester City Council,Adult Social Care,Supporting People Payments,18.05.2015,5100792720,"-6,567.60",SLC Paragon
Manchester City Council,Adult Social Care,Supporting People Payments,18.05.2015,5100790245,"-7,331.92",SLC Paragon
Manchester City Council,Adult Social Care,Supporting People Payments,18.05.2015,5100792720,"-7,331.92",SLC Paragon
Manchester City Council,Adult Social Care,Supporting People Payments,18.05.2015,5100792433,"10,761.25",Great Places Housing Association
Manchester City Council,Adult Social Care,Supporting People Payments,18.05.2015,5100792563,"4,980.00",Irwell Valley Housing Association
Manchester City Council,Adult Social Care,Supporting People Payments,18.05.2015,5100792568,"3,548.50",Irwell Valley Housing Association
Manchester City Council,Adult Social Care,Supporting People Payments,18.05.2015,5100792569,"3,548.50",Irwell Valley Housing Association
Manchester City Council,Adult Social Care,Supporting People Payments,18.05.2015,5100792564,760.15,Irwell Valley Housing Association
Manchester City Council,Adult Social Care,Supporting People Payments,18.05.2015,5100792228,839.59,City Of Salford Community & Social
Manchester City Council,Adult Social Care,Supporting People Payments,18.05.2015,5100791780,"20,905.38",City Care Partnership Ltd
Manchester City Council,Adult Social Care,Supporting People Payments,18.05.2015,5100792495,"4,441.19",Tung Sing (Orient) Housing Assoc.Lt
Manchester City Council,Adult Social Care,Supporting People Payments,18.05.2015,5100792723,"-4,441.19",Tung Sing (Orient) Housing Assoc.Lt
Manchester City Council,Adult Social Care,Supporting People Payments,18.05.2015,5100792724,"-4,441.19",Tung Sing (Orient) Housing Assoc.Lt
Manchester City Council,Manchester Leisure,Third party payments relating to Voluntary Organisations,18.05.2015,5100791277,"114,032.87",Cornerhouse
Manchester City Council,Adult Social Care,Third party payments relating to Voluntary Organisations,18.05.2015,5100792520,"1,612.50",GMCVO
Manchester City Council,Adult Social Care,Third party payments relating to Voluntary Organisations,18.05.2015,5100792453,"4,413.33",Independent Choices Gtr Manchester
Manchester City Council,Adult Social Care,Third party payments relating to Voluntary Organisations,18.05.2015,5100792547,"4,413.33",Independent Choices Gtr Manchester
Manchester City Council,Adult Social Care,Third party payments relating to Voluntary Organisations,18.05.2015,5100791775,"1,404.00",Stockport Psychology Services
Manchester City Council,Adult Social Care,Third party payments relating to Voluntary Organisations,18.05.2015,5100791065,"1,440.00",Impact For All
Manchester City Council,Adult Social Care,Third party payments to Health Authority,18.05.2015,1904636708,"7,660.06",Stockport NHS Foundation Trust
Manchester City Council,Adult Social Care,Third party payments to Health Authority,18.05.2015,1904636686,"4,824.54",Stockport NHS Foundation Trust
Manchester City Council,Adult Social Care,Third party payments to Health Authority,18.05.2015,1904636693,"2,571.00",Bolton NHS FT
Manchester City Council,Adult Social Care,Third party payments to Health Authority,18.05.2015,1904636707,630.00,Royal Liverpool & B/green UH NHS T
Manchester City Council,Adult Social Care,Third party payments to other Local Authorities,18.05.2015,5100792552,"7,718.49",Bolton Mbc
Manchester City Council,Adult Social Care,Transport Coach Hire,18.05.2015,5100791134,805.00,Hastings Private Hire
Manchester City Council,Adult Social Care,Transport Coach Hire,18.05.2015,5100791163,682.50,Hastings Private Hire
Manchester City Council,Adult Social Care,Transport Coach Hire,18.05.2015,5100791162,651.00,Hastings Private Hire
Manchester City Council,Adult Social Care,Transport Coach Hire,18.05.2015,5100791124,528.00,Hastings Private Hire
Manchester City Council,Adult Social Care,Transport Coach Hire,18.05.2015,5100792080,"24,971.10",Mantax Radio Taxis Ltd
Manchester City Council,Environment and Operations,Transport Coach Hire,18.05.2015,5100791896,"1,330.00",Ashalls Coaches
Manchester City Council,Adult Social Care,Transport Coach Hire,18.05.2015,5100791677,963.50,Crelling Harnesses For Disabled Ltd
Manchester City Council,Adult Social Care,Transport Coach Hire,18.05.2015,5100792211,"2,030.00",Affys Travel
Manchester City Council,Adult Social Care,Transport Coach Hire,18.05.2015,5100792739,"1,056.00",Nelson Transport
Manchester City Council,Hospitality + Trading Services,Vehicle Parts/Spares,18.05.2015,5100792650,848.03,Faun Zoeller (UK) Ltd
Manchester City Council,Chief Executives,Vehicle Plant Furniture and Equipment,18.05.2015,5100791667,"1,309.85",Computacenter (UK) Ltd
Manchester City Council,Chief Executives,Vehicle Plant Furniture and Equipment,18.05.2015,5100791616,"8,625.00",Nigel Frank International
Manchester City Council,Hospitality + Trading Services,Vehicle Repairs,18.05.2015,5100791464,"2,013.90",Advanced Vehicle Technicians Ltd
Manchester City Council,Hospitality + Trading Services,Vehicle Repairs,18.05.2015,5100791668,"1,392.00",Advanced Vehicle Technicians Ltd
Manchester City Council,Hospitality + Trading Services,Vehicle Repairs,18.05.2015,5100791411,549.97,Advanced Vehicle Technicians Ltd
Manchester City Council,Hospitality + Trading Services,Vehicle Repairs,18.05.2015,5100792153,536.08,Dawson Rentals Sweepers
Manchester City Council,Hospitality + Trading Services,Window Cleaning,18.05.2015,5100792732,586.92,Ferguson Cleaning Services LLP
Manchester City Council,Manchester Leisure,Works and associated costs for Land and Buildings,18.05.2015,5100792367,"714,348.57",Laing O'Rourke Construction Ltd
Manchester City Council,Chief Executives,Works and associated costs for Land and Buildings,18.05.2015,5100792734,"176,449.21",Wates Construction Ltd
Manchester City Council,Chief Executives,Works and associated costs for Land and Buildings,18.05.2015,5100792734,"112,760.32",Wates Construction Ltd
Manchester City Council,Corporate Services,Works and associated costs for Land and Buildings,18.05.2015,5100790873,"55,562.56",Cruden Group Ltd
Manchester City Council,Corporate Services,Works and associated costs for Land and Buildings,18.05.2015,5100790874,"51,525.16",Cruden Group Ltd
Manchester City Council,Adult Social Care,Legal Fees,18.05.2015,5100791925,"1,000.00",Redacted Personal Information
Manchester City Council,Environment and Operations,Legal Fees,18.05.2015,5100791881,525.00,Redacted Personal Information
Manchester City Council,Environment and Operations,Compensation Payments,18.05.2015,1904636199,996.00,Harvey Roberts
Manchester City Council,Environment and Operations,Compensation Payments,18.05.2015,1904636197,627.00,Department For Work & Pensions
Manchester City Council,Adult Social Care,Compensation Payments,18.05.2015,5100791019,"1,000.00",11KBW
Manchester City Council,Chief Executives,Advertising,19.05.2015,5100791524,"4,700.00",Exterion Media
Manchester City Council,Chief Executives,Advertising,19.05.2015,5100793023,"-4,700.00",Exterion Media
Manchester City Council,Adult Social Care,Agency staff provision,19.05.2015,5100792924,"1,561.74",Eden Brown Ltd
Manchester City Council,Chief Executives,Agency staff provision,19.05.2015,5100792987,"2,484.11",Proactive Personnel Ltd
Manchester City Council,Adult Social Care,Agency staff provision,19.05.2015,5100792984,"1,525.55",Ashberry Recruitment Ltd
Manchester City Council,Adult Social Care,Agency staff provision,19.05.2015,5100792983,752.09,Ashberry Recruitment Ltd
Manchester City Council,Chief Executives,Agency staff provision,19.05.2015,5100792984,"5,760.47",Ashberry Recruitment Ltd
Manchester City Council,Chief Executives,Agency staff provision,19.05.2015,5100792961,"6,020.00",Caritas Recruitment
Manchester City Council,Chief Executives,Agency staff provision,19.05.2015,5100792964,"6,020.00",Caritas Recruitment
Manchester City Council,Chief Executives,Agency staff provision,19.05.2015,5100792963,"2,408.00",Caritas Recruitment
Manchester City Council,Chief Executives,Agency staff provision,19.05.2015,5100792960,"1,204.00",Caritas Recruitment
Manchester City Council,Chief Executives,Agency staff provision,19.05.2015,5100792962,"1,204.00",Caritas Recruitment
Manchester City Council,Environment and Operations,Agency staff provision,19.05.2015,5100792991,"1,101.33",Resolve Personnel Ltd
Manchester City Council,Environment and Operations,Agency staff provision,19.05.2015,5100792991,861.00,Resolve Personnel Ltd
Manchester City Council,Chief Executives,Agency staff provision,19.05.2015,5100792991,"6,559.79",Resolve Personnel Ltd
Manchester City Council,Adult Social Care,Agency staff provision,19.05.2015,5100793004,"2,625.00",Edwina Grant Associates Ltd
Manchester City Council,Adult Social Care,Agency staff provision,19.05.2015,5100793006,"1,700.00",Edwina Grant Associates Ltd
Manchester City Council,Manchester Leisure,Agency staff provision,19.05.2015,5100792830,"10,666.66",Access Sport CIO
Manchester City Council,Adult Social Care,Bed & Breakfast Acc,19.05.2015,5100792919,"6,420.00",Redacted Personal Information
Manchester City Council,Housing General Fund,Building Works,19.05.2015,5100791684,"1,400.00",Jacobs UK Ltd
Manchester City Council,Housing General Fund,Building Works,19.05.2015,5100792766,"-1,400.00",Jacobs UK Ltd
Manchester City Council,Housing General Fund,Building Works,19.05.2015,1904638735,"5,479.74",Redacted Personal Information
Manchester City Council,Housing General Fund,Building Works,19.05.2015,1904638433,"7,133.82",Great Places
Manchester City Council,Housing General Fund,Building Works,19.05.2015,1904638440,"3,194.82",Great Places
Manchester City Council,Housing General Fund,Building Works,19.05.2015,1904638432,"3,046.82",Great Places
Manchester City Council,Housing General Fund,Building Works,19.05.2015,1904638434,"3,046.82",Great Places
Manchester City Council,Collection Fund,Bus Rate - Preceptor,19.05.2015,1904548494,"265,850.00",Greater Manchester Fire & Rescue
Manchester City Council,Regeneration Finance,Car Parking Permits,19.05.2015,1904636194,"1,522.82",Manchester Airport Plc
Manchester City Council,Hospitality + Trading Services,Catering Provisions,19.05.2015,1904638635,"1,272.73",Brake Bros Foodservice Ltd
Manchester City Council,Hospitality + Trading Services,Catering Provisions,19.05.2015,1904638550,627.57,Brake Bros Foodservice Ltd
Manchester City Council,Hospitality + Trading Services,Catering Provisions,19.05.2015,1904638504,622.58,Brake Bros Foodservice Ltd
Manchester City Council,Hospitality + Trading Services,Catering Provisions,19.05.2015,1904638495,538.52,Brake Bros Foodservice Ltd
Manchester City Council,Hospitality + Trading Services,Catering Provisions,19.05.2015,1904638634,529.86,Brake Bros Foodservice Ltd
Manchester City Council,Hospitality + Trading Services,Catering Provisions,19.05.2015,1904638561,528.76,Brake Bros Foodservice Ltd
Manchester City Council,Adult Social Care,Compensation Payments,19.05.2015,1904636751,"8,250.00",Abney Garsden Mcdonald
Manchester City Council,Adult Social Care,Compensation Payments,19.05.2015,1904636746,"1,375.00",Abney Garsden Mcdonald
Manchester City Council,Adult Social Care,Compensation Payments,19.05.2015,1904636747,"1,100.00",Abney Garsden Mcdonald
Manchester City Council,Collection Fund,Ctax Preceptr Pymnts,19.05.2015,1904548494,"105,850.00",Greater Manchester Fire & Rescue
Manchester City Council,Collection Fund,Ctax Preceptr Pymnts,19.05.2015,1904587301,"1,515,599.00",GMPCC (PRECEPTS)
Manchester City Council,Adult Social Care,Funeral and coroner related services,19.05.2015,5100792870,"1,048.00",Funeral Prtnrs t/a Michael Kennedy
Manchester City Council,Corporate Services,Furniture,19.05.2015,5100790445,"15,452.95",Egan Reid Stationery Co Ltd
Manchester City Council,Adult Social Care,Grant and subscriptions awarded,19.05.2015,5100792915,"1,539.12",Whiz Project
Manchester City Council,Hospitality + Trading Services,Hire of Machinery,19.05.2015,5100792760,"2,253.30",Portakabin Ltd
Manchester City Council,Corporate Services,I T Provision,19.05.2015,5100791305,814.80,Computerland Uk Ltd
Manchester City Council,Adult Social Care,I T Provision,19.05.2015,5100792975,"1,818.00",Trojan Consultants Ltd (CASPAR)
Manchester City Council,Insurance Fund,Insurance,19.05.2015,1904636020,"2,250.00",Simpsons Solicitors
Manchester City Council,Adult Social Care,Payments for services,19.05.2015,5100792774,"657,433.12",The Together Trust
Manchester City Council,Adult Social Care,Payments for services,19.05.2015,5100793019,"3,900.00",Cambian Childcare Ltd
Manchester City Council,Adult Social Care,Payments for services,19.05.2015,5100793015,"2,470.00",Cambian Childcare Ltd
Manchester City Council,Adult Social Care,Payments for services,19.05.2015,5100793007,"2,080.00",Cambian Childcare Ltd
Manchester City Council,Adult Social Care,Payments for services,19.05.2015,5100793014,"1,950.00",Cambian Childcare Ltd
Manchester City Council,Adult Social Care,Payments for services,19.05.2015,5100793009,"1,430.00",Cambian Childcare Ltd
Manchester City Council,Adult Social Care,Payments for services,19.05.2015,5100793001,540.00,Randstad Education
Manchester City Council,Adult Social Care,Payments for services,19.05.2015,5100792922,"9,636.20",Progress Care & Education Ltd
Manchester City Council,Adult Social Care,Payments for services,19.05.2015,5100792952,"9,636.20",Progress Care & Education Ltd
Manchester City Council,Adult Social Care,Payments for services,19.05.2015,5100788868,"40,020.00",Greater Manchester West
Manchester City Council,Adult Social Care,Payments for services,19.05.2015,5100792965,"3,419.63",Chaigeley Education Foundation
Manchester City Council,Adult Social Care,Payments for services,19.05.2015,5100792958,"1,682.55",Chaigeley Education Foundation
Manchester City Council,Hospitality + Trading Services,Payments to Sub-Contractors,19.05.2015,5100792244,"50,710.96",Kenny Bros (Civil Eng) Ltd
Manchester City Council,Hospitality + Trading Services,Payments to Sub-Contractors,19.05.2015,5100791600,"18,135.00",Kenny Bros (Civil Eng) Ltd
Manchester City Council,Chief Executives,Postage,19.05.2015,5100791427,"1,037.27",Royal Mail Group Plc
Manchester City Council,Manchester Leisure,Professional fees,19.05.2015,5100793002,575.00,Experian  Ltd
Manchester City Council,Housing Revenue Account,Professional fees,19.05.2015,5100792625,"77,853.59",Great Places Housing Association
Manchester City Council,Manchester Leisure,Professional fees,19.05.2015,5100791684,552.00,Jacobs UK Ltd
Manchester City Council,Manchester Leisure,Professional fees,19.05.2015,5100792766,-552.00,Jacobs UK Ltd
Manchester City Council,Environment and Operations,Professional fees,19.05.2015,5100791684,"2,346.00",Jacobs UK Ltd
Manchester City Council,Environment and Operations,Professional fees,19.05.2015,5100791684,500.00,Jacobs UK Ltd
Manchester City Council,Environment and Operations,Professional fees,19.05.2015,5100792766,-500.00,Jacobs UK Ltd
Manchester City Council,Environment and Operations,Professional fees,19.05.2015,5100792766,"-2,346.00",Jacobs UK Ltd
Manchester City Council,Corporate Services,Professional fees,19.05.2015,5100791684,"11,000.00",Jacobs UK Ltd
Manchester City Council,Corporate Services,Professional fees,19.05.2015,5100791684,"3,000.00",Jacobs UK Ltd
Manchester City Council,Corporate Services,Professional fees,19.05.2015,5100791684,"2,437.50",Jacobs UK Ltd
Manchester City Council,Corporate Services,Professional fees,19.05.2015,5100791684,"1,192.80",Jacobs UK Ltd
Manchester City Council,Corporate Services,Professional fees,19.05.2015,5100791684,"1,085.60",Jacobs UK Ltd
Manchester City Council,Corporate Services,Professional fees,19.05.2015,5100791684,872.00,Jacobs UK Ltd
Manchester City Council,Corporate Services,Professional fees,19.05.2015,5100791684,738.40,Jacobs UK Ltd
Manchester City Council,Corporate Services,Professional fees,19.05.2015,5100791684,738.40,Jacobs UK Ltd
Manchester City Council,Corporate Services,Professional fees,19.05.2015,5100791684,717.50,Jacobs UK Ltd
Manchester City Council,Corporate Services,Professional fees,19.05.2015,5100791684,607.20,Jacobs UK Ltd
Manchester City Council,Corporate Services,Professional fees,19.05.2015,5100791684,568.00,Jacobs UK Ltd
Manchester City Council,Corporate Services,Professional fees,19.05.2015,5100791684,544.69,Jacobs UK Ltd
Manchester City Council,Corporate Services,Professional fees,19.05.2015,5100791684,526.35,Jacobs UK Ltd
Manchester City Council,Corporate Services,Professional fees,19.05.2015,5100792766,-526.35,Jacobs UK Ltd
Manchester City Council,Corporate Services,Professional fees,19.05.2015,5100792766,-544.69,Jacobs UK Ltd
Manchester City Council,Corporate Services,Professional fees,19.05.2015,5100792766,-568.00,Jacobs UK Ltd
Manchester City Council,Corporate Services,Professional fees,19.05.2015,5100792766,-607.20,Jacobs UK Ltd
Manchester City Council,Corporate Services,Professional fees,19.05.2015,5100792766,-717.50,Jacobs UK Ltd
Manchester City Council,Corporate Services,Professional fees,19.05.2015,5100792766,-738.40,Jacobs UK Ltd
Manchester City Council,Corporate Services,Professional fees,19.05.2015,5100792766,-738.40,Jacobs UK Ltd
Manchester City Council,Corporate Services,Professional fees,19.05.2015,5100792766,-872.00,Jacobs UK Ltd
Manchester City Council,Corporate Services,Professional fees,19.05.2015,5100792766,"-1,085.60",Jacobs UK Ltd
Manchester City Council,Corporate Services,Professional fees,19.05.2015,5100792766,"-1,192.80",Jacobs UK Ltd
Manchester City Council,Corporate Services,Professional fees,19.05.2015,5100792766,"-2,437.50",Jacobs UK Ltd
Manchester City Council,Corporate Services,Professional fees,19.05.2015,5100792766,"-3,000.00",Jacobs UK Ltd
Manchester City Council,Corporate Services,Professional fees,19.05.2015,5100792766,"-11,000.00",Jacobs UK Ltd
Manchester City Council,Manchester Leisure,Professional fees,19.05.2015,5100791523,"2,000.00",Sport Event Solutions Ltd
Manchester City Council,Manchester Leisure,Professional fees,19.05.2015,1904629358,535.00,Greenprint Consultancy Ltd
Manchester City Council,Adult Social Care,Rents,19.05.2015,5100791603,"38,947.14",Accommodation Links Ltd
Manchester City Council,Adult Social Care,Storage Costs,19.05.2015,5100793005,"1,016.40",Apex Self Storage Ltd
Manchester City Council,Adult Social Care,Storage Costs,19.05.2015,5100792622,"2,594.70",PHS Records Management
Manchester City Council,Adult Social Care,Supporting People Payments,19.05.2015,5100792752,"19,091.41",Riverside ECHG
Manchester City Council,Adult Social Care,Supporting People Payments,19.05.2015,5100792752,"16,642.92",Riverside ECHG
Manchester City Council,Adult Social Care,Supporting People Payments,19.05.2015,5100792752,"13,934.63",Riverside ECHG
Manchester City Council,Adult Social Care,Supporting People Payments,19.05.2015,5100792752,"8,604.09",Riverside ECHG
Manchester City Council,Adult Social Care,Supporting People Payments,19.05.2015,5100792752,"7,315.09",Riverside ECHG
Manchester City Council,Adult Social Care,Supporting People Payments,19.05.2015,5100792752,"5,521.14",Riverside ECHG
Manchester City Council,Adult Social Care,Supporting People Payments,19.05.2015,5100792752,"3,979.18",Riverside ECHG
Manchester City Council,Adult Social Care,Supporting People Payments,19.05.2015,5100792752,"3,596.52",Riverside ECHG
Manchester City Council,Adult Social Care,Supporting People Payments,19.05.2015,5100792752,"3,334.49",Riverside ECHG
Manchester City Council,Adult Social Care,Supporting People Payments,19.05.2015,5100792752,"2,092.96",Riverside ECHG
Manchester City Council,Adult Social Care,Supporting People Payments,19.05.2015,5100792752,"1,499.20",Riverside ECHG
Manchester City Council,Adult Social Care,Supporting People Payments,19.05.2015,5100792752,"1,077.42",Riverside ECHG
